Workbook

Sheet ALL
A1: Customer | B1: Address | C1: City | D1: State | E1: Zip | F1: Phone | G1: Group | H1: Website | I1: Products
A2: 2 HEALTHY SOLES | B2: 218 EAST MARKET STREET | C2: LOGANSPORT | D2: IN | E2: 46947 | F2: 574-735-2886 | G2: Store | H2: -
A3: 21st Century Medicine | B3: 647 Eastern Boulevard | C3: Clarksville | D3: IN | E3: 47129 | F3: 812-282-4309 | G3: Health Care Professional | H3: -
A4: 3 Med Health Institute | B4: 3500 Coral Way Ste 102 | C4: Miami | D4: FL | E4: 33145 | F4: 305-443-4126 | G4: Health Care Professional | H4: -
A5: A & B NATURAL FOODS, INC. | B5: 5960 W JEFFERSON BLVD TIME CORNERS SHOPPING CTR | C5: FT. WAYNE | D5: IN | E5: 46804 | F5: 260-432-2104 | G5: Store | H5: -
A6: A & S Natural Health | B6: 7816 Fairview Road | C6: Charlotte | D6: NC | E6: 28226 | F6: 704-366-1906 | G6: Store | H6: - | I6: Silver Biotics 4 oz. , Silver Biotics 16 oz., ASAP365 Silver Gel 4 oz.
A7: A & S Natural Health | B7: 435-C Dolley Madison Road | C7: Greensboro | D7: NC | E7: 27410 | F7: 336-855-6500 | G7: Store | H7: - | I7: Silver Biotics 4 oz. , Silver Biotics 16 oz., ASAP365 Silver Gel 4 oz.
A8: A & S NATURAL HEALTH | B8: 1559 Hanes Mall Blvd | C8: Winston Salem | D8: NC | E8: 27103 | F8: 336-774-8600 | G8: Store | H8: - | I8: Silver Biotics 4 oz. , Silver Biotics 16 oz., ASAP365 Silver Gel 4 oz.
A9: A & Z Pharmaceutical LLC | B9: 316 Larch Lane | C9: Pittsburgh | D9: PA | E9: 15234 | F9: 412-279-8000 | G9: Health Care Professional | H9: www.azpharm.com
A10: A Beautiful Face | B10: 792 South Main St. | C10: Templeton | D10: CA | E10: 93465 | F10: 805-434-2961 | G10: Store | H10: www.BeautifulFace.biz | I10: ASAP365 Silver Gel 4 oz.
A11: A BETTER WAY TO HEALTH | B11: 76 BLAKE ROAD | C11: Epping | D11: NH | E11: 3042 | F11: 603-679-9595 | G11: Store | H11: www.Betterway2health.com | I11: Silver Biotics 16 oz., ASAP365 Silver Gel 1.5 oz.
A12: A DEZIGN | B12: 5 West Hazel Drive | C12: Salem | D12: UT | E12: 84653 | F12: 801-423-1234 | G12: Store | H12: - | I12: Silver Biotics 4 oz.
A13: A Health Forest | B13: 2814 East 20th Street | C13: Farmington | D13: NM | E13: 87402 | F13: 505-326-4190 | G13: Store | H13: - | I13: Silver Biotics 16 oz., ASAP 22ppm 8 oz.
A14: A Market | B14: 125 Loring St | C14: Manchester | D14: NH | E14: 3103 | F14: 603-668-8445 | G14: Store | H14: AMARKETNATURALFOODS.COM
A15: A NATURAL HEALTH CENTER | B15: 1378 US Hwy. 64 | C15: Manteo | D15: SC | E15: 27954 | F15: 252-473-6060 | G15: Health Care Professional | H15: - | I15: Silver Biotics 16 oz.
A16: A NATURAL PATH | B16: 5375 FIVE FORKS TRICKUM SOUTHWEST SUITE H | C16: LILBURN | D16: GA | E16: 30047 | F16: 770-925-8473 | G16: Store | H16: -
A17: A NU YOU Wellness Center | B17: 8595 Plank | C17: Montville | D17: Ohio | E17: 44064 | F17: 440 968 3995 | G17: Health Care Professional | H17: - | I17: ASAP Health Max 10 16 oz., ASAP Health Max 30 16 oz.
A18: A PLACE FOR HEALTH | B18: 755 27TH AVENUE SW #1 | C18: VERO BEACH | D18: FL | E18: 32968 | F18: 772-567-6700 | G18: Store | H18: -
A19: A to Zinc Nutritional Shop | B19: 12130 US Highway 19 | C19: Hudson | D19: FL | E19: 34667 | F19: 727-861-7238 | G19: Store | H19: - | I19: Silver Biotics 16 oz., Silver Biotics 32 oz.
A20: A TO ZINC NUTRITIONAL SHOP | B20: 12130 US HWY 19 | C20: HUDSON | D20: FL | E20: 34667 | F20: 727-861-2818 | G20: Store | H20: - | I20: Silver Biotics 16 oz., Silver Biotics 32 oz.
A21: A Touch Of Nature | B21: 1057 N Street | C21: Greenwich | D21: CT | E21: 6831 | F21: 203-862-8554 | G21: Store | H21: -
A22: A View to your health | B22: 3747 Church Rd | C22: Mt. Laurel | D22: NJ | E22: 8054 | F22: 856-234-4433 | G22: Health Care Professional | H22: http://www.aviewtoyourhealth.com/
A23: A Way Of Life Natural Foods | B23: 9359 N Milwaukee Ave Millbrook Shopping Ctr | C23: Niles | D23: IL | E23: 60714 | F23: 847-966-5565 | G23: Store | H23: -
A24: A&M Family Grocery | B24: 18509 Hurshtown Rd | C24: Grabill | D24: IN | E24: 46741 | F24: 260-657-5800 | G24: Store | H24: -
A25: Abby's Health Food Inc | B25: 14374 N Dale Mabry Hwy | C25: Tampa | D25: FL | E25: 33618 | F25: 813-265-4951 | G25: Store | H25: -
A26: ABC Drugs | B26: 1942 86th St | C26: Brooklyn | D26: NY | E26: 11214 | F26: 877-212-9119 | G26: Health Care Professional
A27: ABL ASIA Pte Ltd | B27: 18 Boon Lay Way #10-126 TradeHub 21 | C27: Singapore | D27: Singapore | E27: 609966 | F27: 65 67952031 | G27: Distributor | H27: www.ablasia-silver.com | I27: ASAP365 Silver Gel 1.5 oz.
A28: ABL Technology Sdn Bhd | E28: Malaysia | F28: 60 378767066 | G28: Store | H28: abltech@myjaring.net
A29: Abners Nutrition | B29: 2327 Kell Blvd. #100 | C29: WICHITA FALLS | D29: TX | E29: 76308 | F29: 940-766-1371 | G29: Store | H29: -
A30: Abro Sutker N.D. | B30: 1178 Arch St. | C30: Berkeley | D30: CA | E30: 94708 | F30: 415-250-7949 | G30: Health Care Professional | H30: -
A31: Absolutely Best Health Food | B31: 1717 W Oak Ridge Rd | C31: Orlando | D31: FL | E31: 32809 | F31: 407-816-0191 | G31: Store | H31: -
A32: ABSOLUTELY THE BEST VITAMINS | B32: 6100 S ORANGE AVE STE L | C32: ORLANDO | D32: FL | E32: 32809 | F32: 407-816-0191 | G32: Store | H32: -
A33: Abundalife Health Food | B33: 819 W South St | C33: Clinton | D33: IL | E33: 61727 | F33: 217-935-6532 | G33: Store | H33: -
A34: ABUNDANCE | B34: c/o BRIAN JUNGLING 11 MARBLE CANYON | C34: ALAMOGORDO | D34: NM | E34: 88310 | F34: 575-921-1995 | G34: Store | H34: -
A35: Abundant Life Health Food | B35: 1130A W. Main St. | C35: Lewisville | D35: TX | E35: 75067 | F35: 972-221-1210 | G35: Store | H35: -
A36: Abundant Life Health Foods | B36: 500 N Highway 377 suite E | C36: Roanoke | D36: TX | E36: 76262-7100 | F36: 817-430-4624 | G36: Store | H36: -
A37: Abundant Life Natural Foods | B37: 292 Kamehameha Avenue | C37: Hilo | D37: HI | E37: 96720 | F37: 808-935-7411 | G37: Store | H37: www.abundantlifenaturalfoods.com
A38: Abundant Life Wellness Center | B38: 2723 W. Lincoln Ave. | C38: Milwaukee | D38: WI | E38: 53215 | F38: 414-389-0249 | G38: Store | H38: -
A39: Accent On Health | B39: 18559 Devonshire St. | C39: Northridge | D39: CA | E39: 91324 | F39: 818-360-1516 | G39: Store | H39: -
A40: Access Dental | B40: 23 South Cannon Ave | C40: Hagerstown | D40: MD | E40: 21740 | F40: 301-613-7047 | G40: Health Care Professional | H40: -
A41: Accredited Chiropractic Care | B41: 4235 Convoy St. | C41: San Diego | D41: CA | E41: 92111 | F41: 858-715-9400 | G41: Health Care Professional | H41: -
A42: Acropolis | B42: 66 Main Street | C42: Califon | D42: NJ | E42: 7830 | F42: 908-832-6464 | G42: Store | H42: -
A43: Action Chiropractic Clinic | B43: 1542 South Timesquare Lane | C43: Boise | D43: ID | E43: 83709 | F43: 208-376-0660 | G43: Health Care Professional | H43: -
A44: Active Chiropractic Clinic | B44: 5845 Sunnyside Rd | C44: Indianapolis | D44: IN | E44: 46235 | F44: 260-492-2145 | G44: Health Care Professional | H44: -
A45: Active Spine Center | B45: 5606 River Oaks Dr | C45: Titusville | D45: FL | E45: 32780 | F45: 321-268-1999 | G45: Health Care Professional | H45: - | I45: ASAP Health Max 30 16 oz.
A46: Acupuncture Wellness Center | B46: 612 Wells Street Suite B | C46: Lake Geneva | D46: WI | E46: 53147 | F46: 262-249-0770 | G46: Health Care Professional | H46: - | I46: ASAP Health Max 30 16 oz.
A47: Adams Drugs | B47: 35 Mitchelle Dr. | C47: Montgomery | D47: AL | E47: 36109 | F47: 334.272.8953 | G47: Health Care Professional | H47: -
A48: Adolescent & Animal Resource Fund | B48: 555 Goose Hole Rd. | C48: Benson, | D48: NC | E48: 27504 | F48: 919-894-1111 | G48: Health Care Professional | H48: -
A49: Advanced Bioceuticals | B49: 991C Lomas Santa Fe Dr. #176 | C49: Solana Beach | D49: CA | E49: 92075 | F49: 858-794-8116 | G49: Health Care Professional | H49: -
A50: Advanced Chiro Concepts | B50: 2120 Grand Ave. Suite E | C50: Chino Hills | D50: CA | E50: 91709 | F50: 909-627-3404 | G50: Store | H50: www.advancedchiroconcepts.com | I50: ASAP Health Max 30 8 oz.
A51: Advanced Chiropractic Clinic | B51: 411 West Haycraft Avenue | C51: Coeur D Alene | D51: ID | E51: 83815 | F51: 208-765-6804 | G51: Health Care Professional | H51: -
A52: Advanced Family Wellness | B52: 1115 West Bay Dr. NW Ste 202 | C52: Olympia | D52: WA | E52: 98502 | F52: 360-570-8010 | G52: Health Care Professional | H52: www.metabolicadvancedwellness.com | I52: ASAP Health Max 10 8 oz., ASAP Health Max 30 8 oz., ASAP Health Max 30 16 oz.
A53: Advanced Fitness Equipment | B53: 2320 Ubank NE | C53: Albuquerque | D53: NM | E53: 87112 | F53: 505-299-0036 | G53: Store | H53: -
A54: Advanced Health | B54: 9030 W Fort Island Trail #10A | C54: Crystal River | D54: FL | E54: 34429 | F54: 352-563-2597 | G54: Health Care Professional | H54: www.mydrhorn.org | I54: ASAP Health Max Gel 24 ppm 1.5 oz.
A55: Advanced Holistic Health LLC | B55: 1745 Camino Palmero St. #429 | C55: Los Angeles | D55: CA | E55: 90046 | F55: 424-202-1601 | G55: Health Care Professional | H55: - | I55: ASAP Health Max 10 8 oz., ASAP Health Max 30 8 oz., ASAP Health Max 30 16 oz.
A56: Advanced Nutrition Center | B56: 1769 Gallatin Pike N | C56: Madison | D56: TN | E56: 37115 | F56: 615-865-5784 | G56: Store | H56: -
A57: Advanced Nutritional Solutions | B57: 4041 Old Mill Rd | C57: Fort Wayne | D57: IN | E57: 46807 | F57: 260-744-3505 | G57: Store | H57: -
A58: Advanced Pain Solutions | B58: 112 Portland Ave | C58: Redding | D58: CT | E58: 06896-3119 | F58: 203-544-9090 | G58: Health Care Professional | H58: - | I58: ASAP Health Max 10 8 oz.
A59: Advanced Spinal Care | B59: 750 N Main | C59: Spanish Fork | D59: UT | E59: 84660 | F59: 801-798-2515 | G59: Health Care Professional | H59: -
A60: Advanced Wellness Center | B60: 6423 East Pacific Coast Highway | C60: Long Beach | D60: CA | E60: 90803 | F60: 562-795-6680 | G60: Health Care Professional | H60: www.advancedwellness.org | I60: ASAP Health Max 10 8 oz., ASAP Health Max 30 8 oz.
A61: Advantages Pharmacy | B61: 2665 Royal Forest Dr. Suite B 150 | C61: KINGWOOD | D61: TX | E61: 77339 | F61: 281-359-3892 | G61: Health Care Professional | H61: - | I61: ASAP Health Max 30 8 oz., ASAP Health Max Gel 24 ppm 1.5 oz.
A62: Aeon Asthetics | B62: 4001 White Blossom Estates | C62: Louisville | D62: KY | E62: 40241 | G62: Health Care Professional | H62: -
A63: Aesthetica Med Spa | B63: 4107 S. Cap of Tx Hwy #100 B | C63: Austin | D63: TX | E63: 78704 | G63: Health Care Professional | H63: -
A64: Agape Healing | B64: 8710 Lockhaven Dr. | C64: Dallas | D64: TX | E64: 75238-3551 | F64: 214-348-1466 | G64: Health Care Professional | H64: -
A65: Age-less Acupuncture and Wellness Center | B65: 5855 E. Naples Plaza Dr. Suite 206 | C65: Long Beach | D65: CA | E65: 90803 | F65: 562-434-2700 | G65: Health Care Professional | H65: - | I65: ASAP Health Max 30 8 oz., ASAP Health Max 30 16 oz., ASAP Health Max Gel 24 ppm 4 oz.
A66: Aimee D. Vakula-rollins | B66: 1044 North Irish Road | C66: Davison | D66: MI | E66: 48423 | F66: 810-653-4447 | G66: Store | H66: - | I66: ASAP Health Max 30 16 oz.
A67: AK Chiropractic Center | B67: 1276-A Jungermann Road | C67: St. Peters | D67: MO | E67: 63376 | F67: 636-922-9993 | G67: Health Care Professional | H67: - | I67: ASAP Health Max 10 8 oz.
A68: Akahi Wellness | B68: 4351 A Hana Highway | C68: Hana | D68: HI | E68: 96713 | F68: 808-248-8384 | G68: Health Care Professional | I68: Silver Biotics 4 oz. , ASAP Health Max 10 8 oz., ASAP Health Max 30 8 oz., ASAP Health Max 30 16 oz., ASAP Health Max Gel 24 ppm 1.5 oz.
A69: Akins Natural Food Market | B69: 12003 E. Memorial Drive | C69: Bixby | D69: OK | E69: 74008 | F69: 918-366-8400 | G69: Store | H69: -
A70: Akins Natural Food Market | B70: 2370 W. Memorial Rd | C70: Oklahoma City | D70: OK | E70: 73134 | F70: 405-418-4305 | G70: Store | H70: -
A71: Akins Natural Food Market | B71: N.W. 63rd & N. May | C71: Oklahoma City | D71: OK | E71: 73116 | F71: 405-843-3033 | G71: Store | H71: -
A72: Akins Natural Food Market | B72: 3321 East 31st Street | C72: Tulsa | D72: OK | E72: 74135 | F72: 918-742-6630 | G72: Store | H72: -
A73: Akins Natural Food Market | B73: 7807 E. 51st Street | C73: Tulsa | D73: OK | E73: 74145 | F73: 918-663-4137 | G73: Store | H73: -
A74: Alan Lew | B74: 11825 Major Street Penthouse Suite | C74: Playa Vista | D74: CA | E74: 90230 | F74: 310-915-6100 | G74: Health Care Professional | H74: www.evolution-pt.com
A75: Albert Cuevas DC | B75: 6600 Florence Ave | C75: Bell Gardens | D75: CA | E75: 90201 | F75: 562-927-5117 | G75: Health Care Professional | H75: -
A76: Albert Lui MD | B76: 31292 Alpine Meadows Road | C76: Shingletown | D76: CA | E76: 96088 | F76: 530-474-3390 | G76: Health Care Professional | H76: - | I76: ASAP Health Max 30 16 oz.
A77: Alexander Wellness | B77: 230 W Airport Rd Unit C | C77: Heber City | D77: UT | E77: 84032 | F77: 435-654-9246 | G77: Health Care Professional | H77: - | I77: Silver Biotics 16 oz.
A78: Alford Mikolaj | B78: 9687 Little Santa Monica Blvd. | C78: Beverly Hills | D78: CA | E78: 90210 | F78: 310-278-6634 | G78: Store | H78: -
A79: Alive & Well | B79: 2537 Farnum Street | C79: Casper | D79: WY | E79: 82609 | F79: 307-473-9585 | G79: Health Care Professional | H79: -
A80: ALIVE FOODS | B80: 226 LINCOLN AVENUE | C80: CLAWSON | D80: MI | E80: 48017 | F80: 248-585-1122 | G80: Store | H80: -
A81: ALL NATURAL | B81: 8838 VISCOUNT BLVD.SUITE C | C81: EL PASO | D81: TX | E81: 79925 | F81: 915-219-9335 | G81: Store | H81: - | I81: ASAP Health Max 30 8 oz.
A82: ALL NATURAL HEALTH & BEAUTY CENTER | B82: 101 E College St | C82: Simpsonville | D82: SC | E82: 29681 | F82: 864-963-2882 | G82: Store | H82: www.naturalfarmacy.net | I82: Silver Biotics 16 oz., ASAP365 Silver Gel 1.5 oz., ASAP365 Silver Gel 4 oz.
A83: All Natures Own Nutrition Ctr | B83: 2713 W Lincoln Ave | C83: Anaheim | D83: CA | E83: 92801 | F83: 714-821-6811 | G83: Store | H83: -
A84: All PRO Nutrition | B84: 286 Front Street | C84: Marietta | D84: Ohio | E84: 44750 | F84: 740 373 6991 | G84: Store | H84: - | I84: Silver Biotics 4 oz.
A85: ALL PRO NUTRITION LLC | B85: 286 FRONT ST | C85: MARIETTA | D85: OH | E85: 45750-2910 | F85: 740-373-6991 | G85: Store | H85: - | I85: Silver Biotics 4 oz.
A86: All Total Health | B86: 6430 Hwy 6 North | C86: Houston | D86: TX | E86: 77084 | F86: 281-859-8313 | G86: Store | H86: -
A87: ALL VITAMINS PLUS | B87: 19 S DIXIE HWY | C87: LAKE WORTH | D87: FL | E87: 33460 | F87: 866-437-4002 | G87: Store | H87: - | I87: Silver Biotics 4 oz.
A88: Allan Thompson, EMT | B88: 8515 FM 182 | C88: Gatesville | D88: TX | E88: 76528 | F88: 254-499-0169 | G88: Health Care Professional | H88: -
A89: Allen Natural Food | B89: 1150 Carlisle St. | C89: Hanover | D89: PA | E89: 17331 | F89: 717-637-7230 | G89: Store | H89: -
A90: Allen's Health Foods | B90: 62 Franklin St #10 | C90: Westerly | D90: RI | E90: 02891 | F90: 401-596-5569 | G90: Store | H90: -
A91: Allergy & Health of Knoxville | B91: 110 Center Park Drive #103 | C91: Knoxville | D91: TN | E91: 37922 | F91: 865-692-3456 | G91: Health Care Professional | H91: -
A92: All's Well Herb & Vitamin Shop | B92: 107 Oak St | C92: Ashland | D92: OR | E92: 97520 | F92: 541-488-0594 | G92: Store | H92: -
A93: Almedia's Day Spa and Salon | B93: 201 Harper Dr. | C93: MARSHALL | D93: TX | E93: 75672 | F93: 903-935-9511 | G93: Store | H93: - | I93: Silver Biotics 16 oz., ASAP365 Silver Gel 4 oz.
A94: Aloha Nutrition | B94: 1948 N Woodland Park Drive | C94: Layton | D94: UT | E94: 84041 | F94: 801-525-6464 | G94: Store | H94: -
A95: ALOHA NUTRITION | B95: 1948 NORTH 1000 WEST | C95: LAYTON | D95: UT | E95: 84041 | F95: 801-525-6464 | G95: Store | H95: -
A96: Alpenglow Natural Foods | B96: 109 E Second St | C96: Casper | D96: WY | E96: 82601 | F96: 307-234-4196 | G96: Store | H96: - | I96: Silver Biotics 16 oz., ASAP365 Silver Gel 1.5 oz., ASAP365 Silver Gel 4 oz.
A97: Alpha Center of Renewal & Rejuvenation | B97: 715 E Idaho Bldg 3-C | C97: Las Cruces | D97: NM | E97: 88001 | F97: 575-621-3195 | G97: Store | H97: -
A98: Alternative Food Company | B98: 2611 Boston Ave | C98: LUBBOCK | D98: TX | E98: 79410 | F98: 806-747-8740 | G98: Health Care Professional | H98: - | I98: ASAP Health Max 30 16 oz.
A99: Alternative Health Concepts | B99: 4420 Hillsboruough Ave. | C99: Orange | D99: CA | E99: 92867 | F99: 714-709-9632 | G99: Store | H99: -
A100: Alternative Health Concepts | B100: 2821 Post Road | C100: Stevens Point | D100: WI | E100: 54481 | F100: 715-341-4949 | G100: Health Care Professional | H100: -
A101: Alternative Health Services | B101: 1555-2 Fm 646 Road East | C101: Dickinson | D101: TX | E101: 77539 | F101: 281-559-3383 | G101: Health Care Professional | H101: -
A102: Alternative Health Shoppe | B102: 710 Glade Rd | C102: COLLEYVILLE | D102: TX | E102: 76034 | F102: 817-498-8055 | G102: Health Care Professional | H102: - | I102: Silver Biotics 16 oz.
A103: Alternative Health Supplements | B103: 46658 Lake Pointe Ct. | C103: Shelby Township | D103: MI | E103: 48315 | F103: 866-446-9924 | G103: Store | H103: -
A104: ALTERNATIVE IN HEALTH CARE | B104: 168 Sneed Drive | C104: Crossville | D104: TN | E104: 38558 | F104: 760-722-1976 | G104: Health Care Professional | H104: -
A105: Alternative Pet Marketing | B105: 235 East 9th Street | C105: New York | D105: NY | E105: 10003 | F105: 212-979-2532 | G105: Store | H105: www.1800whiskers.com | I105: Silver Biotics 16 oz., Silver Biotics 32 oz., ASAP365 Silver Gel 1.5 oz.
A106: Alternative Wellness | B106: 2160 Hwy 130 W | C106: Shelbyville | D106: TN | E106: 37360 | F106: 931-684-2301 | G106: Store | H106: - | I106: Silver Biotics 16 oz.
A107: Amazing Grains | B107: 383 Torrington Rd | C107: Litchfield | D107: CT | E107: 6759 | F107: 860-567-4435 | G107: Store | H107: -
A108: Amazing Health | B108: 2013 - 248th St. | C108: Langley | D108: BC | E108: V4W 2B7 | F108: 866-572-9457 | G108: Store | H108: www.amazinghealth.com | I108: Silver Biotics 4 oz.
A109: American Health Foods | B109: 21202 State Highway 249 Suite500 | C109: Houston | D109: TX | E109: 77070 | F109: 281-257-5511 | G109: Store | H109: -
A110: American Health Foods | B110: 5142 W 95th St | C110: Oak Lawn | D110: IL | E110: 60453 | F110: 708-423-5099 | G110: Store | H110: -
A111: American Health Foods #19 | B111: 10944 Westheimer | C111: Houston | D111: TX | E111: 77042 | F111: 713-785-4130 | G111: Store | H111: -
A112: American Health Foods #21 | B112: 211 FM 1960 W | C112: Houston | D112: TX | E112: 77090 | F112: 281-537-7662 | G112: Store | H112: -
A113: AMERICAN SPORTS NUTRITION | B113: 11131 230TH S | C113: BARNESVILLE | D113: MN | E113: 56514 | F113: 218-937-5674 | G113: Store | H113: -
A114: Amethyst Wellness and Fitness Store | B114: 1509-A Vandalia St | C114: Collinsville | D114: IL | E114: 62234 | F114: 618-343-3560 | G114: Store | H114: http://www.amethyst1994.com/
A115: Amy Wiesner, ND | B115: 1 Westport Ave | C115: Norwalk | D115: CT | E115: 6851 | F115: 203-962-5887 | G115: Health Care Professional | H115: - | I115: ASAP Health Max 10 16 oz., ASAP Health Max 30 16 oz.
A116: Anchor Bay Market | B116: 35515 S. Hwy1 Box 124 | C116: Gualala | D116: CA | E116: 95445 | F116: 707-884-4245 | G116: Store | H116: -
A117: ANCIENT WISDOM | B117: 357 HWY 15 S | C117: JACKSON | D117: KY | E117: 41465 | F117: 606-693-4769 | G117: Store | H117: -
A118: Anderson Health Emporium | B118: 230 E. Portersville Rd. | C118: Portersville | D118: PA | E118: 16051 | F118: 724-368-2098 | G118: Store | H118: www.andersonhealthemporium.com | I118: Silver Biotics 16 oz.
A119: Andi's Off the Beaten Path | B119: 126 W 1200 S | C119: Silver Lake | D119: IN | E119: 46982 | F119: 260-352-2640 | G119: Store | H119: -
A120: Angelic Touch Reiki | B120: 18210 Lyles Dr. | C120: Hagerstown | D120: MD | E120: 21740-9514 | F120: 301-639-8839 | G120: Health Care Professional | H120: -
A121: Angie's World | B121: 5225 Canyon Crest Dr. #62 | C121: Riverside | D121: CA | E121: 92507 | F121: 951-683-0448 | G121: Health Care Professional | H121: www.angiesworld.net | I121: ASAP Health Max Gel 24 ppm 4 oz.
A122: Animal Health Center | B122: 5341 N. State Highway H | C122: Springfield | D122: MO | E122: 65803 | F122: 417-833-3122 | G122: Health Care Professional | H122: -
A123: Anna Estrada M.D. | B123: 965 Portola Dr. | C123: San Francisco | D123: CA | E123: 94127 | G123: Health Care Professional | H123: -
A124: ANNA'S HEALTH FOODS | B124: 1403 Hyder Street | C124: Anchorage | D124: AK | E124: 99501 | F124: 907-277-2662 | G124: Store | H124: -
A125: Anne Peurasaari | B125: 5018 Dorsey Hall Professional Park Ste.205 | C125: Ellicott City | D125: MD | E125: 21042 | F125: 410-992-4940 | G125: Store | H125: -
A126: Anthony's Health Hut | B126: 5329 S Florida Ave | C126: Lakeland | D126: FL | E126: 33813 | F126: 863-644-5330 | G126: Store | H126: - | I126: Silver Biotics 4 oz. , Silver Biotics 16 oz., ASAP365 Silver Gel 4 oz.
A127: Anti-Aging and Wellness Center | B127: 4000 Stockdale Hwy. Ste D | C127: BAKERSFIELD | D127: CA | E127: 93309 | F127: 661-325-7452 | G127: Health Care Professional | H127: - | I127: ASAP Health Max 10 16 oz., ASAP Health Max Gel 24 ppm 1.5 oz.
A128: ANYANAKAI | B128: 3344 Secor | C128: Toledo | D128: Ohio | E128: 43606 | F128: 419-720-2972 | G128: Health Care Professional | H128: ANYANAKAI.com | I128: Silver Biotics 4 oz. , ASAP 10ppm 8 oz., ASAP 22ppm 8 oz., ASAP 10ppm 8 oz., ASAP Solution 16 oz.
A129: AP Birky | B129: 2025 Iron Springs Rd. | C129: Prescott | D129: AZ | E129: 86305 | F129: 949-230-8838 | G129: Store | H129: - | I129: Silver Biotics 4 oz. , Silver Biotics 16 oz.
A130: APACHE CHIROPRACTIC CLINIC | B130: 2160 E Brown Rd, Ste 3 | C130: Mesa | D130: AZ | E130: 85213 | F130: 480-534-7992 | G130: Health Care Professional | H130: - | I130: ASAP Health Max 30 8 oz.
A131: Apex Pharmacy & Nutritional Center | B131: 2380 Dixwell Ave | C131: Hamdon | D131: CT | E131: 6514 | F131: 203-281-6571 | G131: Store | H131: -
A132: Appalachian Whole Foods Market | B132: 100 W High Street | C132: Carlisle | D132: PA | E132: 17013 | F132: 717-241-6982 | G132: Store | H132: -
A133: APPALACHIAN WHOLE FOODS MARKET | B133: 100 WEST HIGH ST | C133: CARLISLE | D133: PA | E133: 17013 | F133: 717-241-6982 | G133: Store | H133: -
A134: Apple A Day | B134: 600 South Blanchard | C134: Finlay | D134: Ohio | E134: 45840 | F134: 419 423 3973 | G134: Store | H134: - | I134: Silver Biotics 4 oz. , ASAP365 Silver Gel 1.5 oz., ASAP 22ppm 8 oz.
A135: Apple A Day | B135: 464 N Main | C135: Heber | D135: UT | E135: 84032 | F135: 435-654-3010 | G135: Store | H135: - | I135: Silver Biotics 4 oz. , ASAP365 Silver Gel 1.5 oz., ASAP 22ppm 8 oz.
A136: Apple A Day | B136: 30262 Crown Valley Pkwy | C136: Laguna Niguel | D136: CA | E136: 92677 | F136: 949-495-3250 | G136: Store | H136: - | I136: Silver Biotics 4 oz. , ASAP365 Silver Gel 1.5 oz., ASAP 22ppm 8 oz.
A137: APPLE A DAY | B137: 1358 LEXINGTON AVE | C137: MANSFIELD | D137: OH | E137: 44907 | F137: 419-756-2040 | G137: Store | H137: - | I137: Silver Biotics 4 oz. , ASAP365 Silver Gel 1.5 oz., ASAP 22ppm 8 oz.
A138: APPLE A DAY | B138: 212 REVSON AVE | C138: SEBRING | D138: FL | E138: 33876 | F138: 863-386-0110 | G138: Store | H138: - | I138: Silver Biotics 4 oz. , ASAP365 Silver Gel 1.5 oz., ASAP 22ppm 8 oz.
A139: Apple A Day | B139: 2938 US Highway 27 S | C139: Sebring | D139: FL | E139: 33870 | F139: 863-386-0110 | G139: Store | H139: - | I139: Silver Biotics 4 oz. , ASAP365 Silver Gel 1.5 oz., ASAP 22ppm 8 oz.
A140: APPLE A DAY | B140: #5 Beckworth Drive | C140: Taylors | D140: SC | E140: 29687 | F140: 864-908-8935 | G140: Store | H140: appleadayandbeyond.com | I140: Silver Biotics 4 oz. , ASAP365 Silver Gel 1.5 oz., ASAP 22ppm 8 oz.
A141: APPLE A DAY HEALTH WORLD | B141: 280 N. 3RD STREET | C141: GADSDEN | D141: AL | E141: 35901 | F141: 256-546-8458 | G141: Store | H141: - | I141: Silver Biotics 4 oz. , ASAP365 Silver Gel 1.5 oz., ASAP 22ppm 8 oz.
A142: APPLE CRATE | B142: 2711 Raeford Rd. #110 | C142: Fayetteville | D142: NC | E142: 28303 | F142: 910-426-7777 | G142: Store | H142: - | I142: Silver Biotics 16 oz., ASAP365 Silver Gel 1.5 oz., ASAP365 Silver Gel 4 oz.
A143: APPLE CRATE | B143: 5430 Camden Rd.#103 | C143: Fayetteville | D143: NC | E143: 28306 | F143: 910-423-8800 | G143: Store | H143: - | I143: Silver Biotics 16 oz., ASAP365 Silver Gel 1.5 oz., ASAP365 Silver Gel 4 oz.
A144: Apple Tree Health Foods | B144: 1910 N Chester Ave | C144: Bakersfield | D144: CA | E144: 93308-2651 | F144: 661-393-6287 | G144: Store | H144: -
A145: Apple Valley Natural Foods | B145: 215 North Mitchell St. | C145: Cadillac | D145: Mi | E145: 49601 | F145: 231-775-6211 | G145: Store | H145: -
A146: Araceli Chambonpin M.D. | B146: 332 So. Chandler Ave. | C146: Monterey Park | D146: CA | E146: 91754 | F146: 626-576-0027 | G146: Health Care Professional | H146: -
A147: Arlen Brownstein N.D. | B147: 102 Clorinda Ave. | C147: San Rafael | D147: CA | E147: 94901 | F147: 415-250-6427 | G147: Health Care Professional | H147: - | I147: ASAP Health Max 10 16 oz.
A148: Armor Nutritioinals, LLC | B148: 8312 Geronimo Trail | C148: Yucca Valley | D148: CA | E148: 92284 | F148: 504-908-8898 | G148: Store | H148: -
A149: Aroma Crystal Therapy | B149: 155 Rainbow Road | C149: Salt Spring Island | D149: BC | E149: V8K 2M3 | F149: 250-537-9211 | G149: Store | H149: www.aromacrystal.com
A150: AROMANTICA | B150: 16 ST MARTINS WALK | C150: DORKING | D150: SURREY | E150: RH41UT | F150: 44-130-674-2005 | G150: Store | H150: -
A151: Arrowroot Natural Foods | B151: 834 West Lancaster | C151: Bryn Mawr | D151: PA | E151: 19010 | F151: 610-527-3393 | G151: Store | H151: -
A152: As Natue Intended Inc. | B152: 510 East Spruce | C152: Olathe | D152: KS | E152: 66061 | F152: 913-219-7244 | G152: Health Care Professional | H152: -
A153: Associated Healing Arts | B153: 109 Royal Pine Lane | C153: Cicero | D153: IN | E153: 46034 | F153: 317-770-0540 | G153: Health Care Professional | H153: - | I153: ASAP Health Max 10 16 oz.
A154: Asterix United B-Sdn Bhd | E154: Brunei | F154: 673 2333832 | G154: Store | H154: jl@asterixub.com.bn
A155: ATHENS SURGERY CLINIC | B155: 1005 W. Madison Ave. | C155: Athens | D155: TN | E155: 37303 | F155: 423-744-7540 | G155: Health Care Professional | H155: - | I155: Silver Biotics 16 oz., ASAP365 Silver Gel 4 oz., ASAP Health Max 10 16 oz.
A156: Atkins Pharmacy | B156: 701 3rd St | C156: Marble Falls | D156: TX | E156: 78654-5720 | F156: 830-693-2972 | G156: Store | H156: - | I156: Silver Biotics 4 oz. , Silver Biotics 32 oz.
A157: AU NATURAL INC. | B157: 1810 MAIN STREET | C157: BELLEFONTAINE | D157: OH | E157: 43311 | F157: 937-592-9311 | G157: Store | H157: -
A158: AUBURN NUTRITION | B158: 13112 LINCOLN WAY | C158: AUBURN | D158: CA | E158: 95603 | F158: 530-885-5095 | G158: Store | H158: -
A159: Auburn Nutrition | B159: 13112 Lincoln Way | C159: Auburn | D159: CA | E159: 95603 | F159: 530-885-5095 | G159: Store | H159: -
A160: AUSTIN PARKER NATURAL FOODS | B160: 509 S. MAIN | C160: PRINCETON | D160: IL | E160: 61356 | F160: 815-875-1751 | G160: Store | H160: -
A161: Australian Body Therapeutics | B161: 1808 Regency Ct. | C161: WARRINGTON | D161: PA | E161: 18976 | F161: 215-801-1067 | G161: Store | H161: - | I161: ASAP365 Silver Gel 4 oz.
A162: AVANTE MEDICAL CLINIC | B162: 915 W Northern Lights | C162: Anchorage | D162: AK | E162: 99503 | F162: 907-770-6700 | G162: Health Care Professional | H162: -
A163: Avian & Feline Hospital | B163: 3300 Hartzdale Dr., Ste 108 | C163: CAMP HILL | D163: PA | E163: 17011 | F163: 717-730-3755 | G163: Health Care Professional | H163: www.avianandfeline.com | I163: Silver Biotics 16 oz.
A164: AVP Caribe | B164: S-R #2 Km 177.7 Int. Bo Minillas Alto | C164: San German | E164: Puerto Rico | F164: 787-603-6700 | G164: Store | H164: -
A165: Awakening Health | B165: 510 King Fisher Creek Dr. | C165: AUSTIN | D165: TX | E165: 78748 | F165: 512-280-9621 | G165: Health Care Professional | H165: www.awakeninghealth.com
A166: B Alive | B166: 2321 S Oneida Street Ste 1 | C166: Green Bay | D166: WI | E166: 54304 | F166: 920-499-7396 | G166: Store | H166: -
A167: B H S | B167: 8191 ELEANOR STREET | C167: SPRING HILL | D167: FL | E167: 34606 | F167: 352-683-6432 | G167: Store | H167: -
A168: Baar Products | B168: 530 Trestle Place | C168: Downing Town | D168: PA | E168: 19335 | F168: 610-873-4591 | G168: Store | H168: baar.com | I168: ASAP365 Silver Gel 1.5 oz.
A169: BACK IN TIME NATURAL FOODS | B169: 7900 E US HIGHWAY 36 STE D | C169: AVON | D169: IN | E169: 46123 | F169: 317-272-0726 | G169: Store | H169: -
A170: Back to back chiropractic | B170: 15615 North Oracle Rd Ste 135 | C170: Tucson | D170: AZ | E170: 85739 | F170: 520-818-3774 | G170: Health Care Professional | H170: - | I170: ASAP Health Max 30 16 oz.
A171: Back to Basics | B171: 16117 McMullen Hwy | C171: Cumberland | D171: MD | E171: 21502 | F171: 301-729-9355 | G171: Health Care Professional | H171: - | I171: ASAP Health Max 10 16 oz.
A172: BACK TO BASICS | B172: 1307 A SOUTH HEATON | C172: KNOX | D172: IN | E172: 46534 | F172: 574-772-5996 | G172: Store | H172: - | I172: ASAP Health Max 10 16 oz.
A173: Back To Basics | B173: 175 N Lake Ave | C173: Phillips | D173: WI | E173: 54555-1220 | F173: 715-339-6750 | G173: Store | H173: - | I173: ASAP Health Max 10 16 oz.
A174: Back To Earth Natural Foods Market | B174: 306 S Main St | C174: New City | D174: NY | E174: 10956 | F174: 845-634-3511 | G174: Store | H174: -
A175: Back To Health Chiropractic | B175: 125 Horseshoe Lane | C175: North Wales | D175: PA | E175: 19454 | F175: 215-412-8081 | G175: Health Care Professional | H175: -
A176: BACK TO HEALTH NUTRITION | B176: 1600 N MCKENZIE ST | C176: FOLEY | D176: AL | E176: 36535-2248 | F176: 251-970-2225 | G176: Store | H176: -
A177: BACK TO NATURE | B177: 56 S. ARLINGTON HTS. ROAD | C177: ARLINGTON HEIGHTS | D177: IL | E177: 60005 | F177: 847-590-5667 | G177: Store | H177: -
A178: Back to Nature | B178: 1217 SE 47th Terr | C178: Cape Coral | D178: FL | E178: 33914 | F178: 239-549-7667 | G178: Store | H178: -
A179: BACK TO NATURE | B179: 5898 SOUTH ARCHER | C179: CHICAGO | D179: IL | E179: 60638 | F179: 773-582-8568 | G179: Store | H179: -
A180: Back To Nature | B180: 13 Walnut Ave | C180: Cranford | D180: NJ | E180: 7016 | F180: 908-276-4270 | G180: Store | H180: -
A181: Back To Nature Healthy Foods Supplements & Cafe | B181: 2520 Warren Rd | C181: Indiana | D181: PA | E181: 15701 | F181: 724-349-1772 | G181: Store | H181: -
A182: Back To Nature Inc | B182: 2707 Vine Northridge Plz, Ste 16 | C182: HAYS | D182: KS | E182: 67601 | F182: 785-625-0078 | G182: Store | H182: -
A183: Back to the Basics | B183: 1603 Main Street SW Suite A | C183: Los Lunas | D183: NM | E183: 87031 | F183: 505-869-3901 | G183: Store | H183: - | I183: ASAP 10ppm 8 oz., ASAP 10ppm 8 oz.
A184: Back To The Country Store | B184: 2581 Post Rd | C184: Plover | D184: WI | E184: 54467 | F184: 715-344-2581 | G184: Store | H184: http://www.bttcountrystore.com
A185: Balance Metabolic Evaluation Center | B185: 1627 Tillinghast Dr | C185: Columbus | D185: OH | E185: 43228 | F185: 614-571-3151 | G185: Health Care Professional | H185: - | I185: ASAP Health Max 30 16 oz.
A186: Barbara Berggren | B186: 2028-16th Terrace NW | C186: New Brighton | D186: MN | E186: 55112 | F186: 651-636-2805 | G186: Health Care Professional | H186: - | I186: Silver Biotics 16 oz., Silver Biotics 32 oz.
A187: Barbara Boehme | B187: 672 Howard St | C187: NEW BRAUNFELS | D187: TX | E187: 78130 | F187: 830-606-3021 | G187: Health Care Professional | H187: - | I187: Silver Biotics 32 oz.
A188: BARB'S | B188: 1923 Mulberry Street | C188: Montgomery | D188: AL | E188: 36106 | F188: 334 546 2233 | G188: Store | H188: -
A189: Barnard Wellness Center | B189: 2430 Dougall Avenue | C189: Windsor | D189: ON | E189: N8X 1T2 | F189: 519-967-1329 | G189: Health Care Professional | H189: -
A190: Basic Foods | B190: 229 Dowlen Road Ste 7 | C190: Beaumont | D190: TX | E190: 77706 | F190: 409-861-4424 | G190: Store | H190: -
A191: Basic Living Essentials | B191: 73 Midwayroad | C191: Lemitar | D191: NM | E191: 87823 | F191: 575-838-4071 | G191: Store | H191: - | I191: Silver Biotics 16 oz., ASAP Health Max 10 8 oz., ASAP Health Max 10 16 oz., ASAP Health Max 30 16 oz.
A192: BASSETTS | B192: 3344 Secor | C192: Toledo | D192: Ohio | E192: 43606 | F192: 419.531.0334 | G192: Store | H192: terramaxa.com | I192: Silver Biotics 4 oz. , ASAP 10ppm 8 oz., ASAP 22ppm 8 oz., ASAP 10ppm 8 oz., ASAP Solution 16 oz.
A193: BAUCOM FARMS | B193: 2218 Hwy 52 | C193: Payette | D193: ID | E193: 83661 | F193: 208-642-4905 | G193: Store | H193: - | I193: Silver Biotics 16 oz.
A194: Bay Pharmacy | B194: 1300 Egg Harbor Rd. | C194: Sturgeon Bay | D194: WI | E194: 54235-1279 | F194: 920-746-2977 | G194: Store | H194: -
A195: Bayshore Nutrition Ctr | B195: 3702 Bayshore Rd | C195: North Cape May | D195: NJ | E195: 8204 | F195: 609-886-8008 | G195: Store | H195: -
A196: Be Healthy with nurse Nancy | B196: 11130 West Primrose Pl | C196: Avondale | D196: AZ | E196: 85392 | F196: 623-451-7416 | G196: Health Care Professional | H196: - | I196: ASAP Health Max 10 16 oz., ASAP Health Max 30 16 oz.
A197: BE THE BUTTERFLY | B197: 202 SW CHERRY STREET | C197: ANKENY | D197: IA | E197: 50023 | F197: 515-963-7877 | G197: Store | H197: -
A198: Be Vi Natural Foods | B198: 6302 Bergenline Ave | C198: West New York | D198: NJ | E198: 7093 | F198: 201-868-6596 | G198: Store | H198: -
A199: BE WELL | B199: 30 Commerce Center | C199: Chillicothe | D199: Ohio | E199: 45601 | F199: 740-772-4920 | G199: Store | H199: -
A200: BE WELL | B200: 38 E. WATER ST. | C200: CHILLICOTHE | D200: OH | E200: 45601 | F200: 740-772-4920 | G200: Store | H200: -
... 2066 more rows

Sheet TheSheet (hidden)
D1: Type | E1: Date | F1: Num | G1: Name Address | H1: Name Street1 | I1: Name Street2 | J1: Name City | K1: Name State | L1: Name Zip | M1: Name Contact | N1: Name Phone # | O1: Name E-Mail | P1: Memo | Q1: Name | R1: Item | S1: Qty | T1: U/M | U1: Sales Price | V1: Amount | W1: Balance
B2: 3 Rivers Health Center
D3: Invoice | E3: 2012-08-13 | F3: 45274 | G3: 390 West 13th Street Idaho Falls, ID 83402 | H3: 390 West 13th Street | J3: Idaho Falls | K3: ID | L3: 83402 | M3: Randi | N3: 208-523-3531 | O3: 3rivershealthcenter@gmail.com | P3: MULTI-PACK #1 06-Silver Biotics 16 oz. 06-Silver Biotics 08 oz. 03-Silver Biotics 04 oz. ... | Q3: 3 Rivers Health Center | R3: Silver Biotics 16 oz., Silver Biotics 08 oz., Silver Biotics 04 oz. | S3: 1 | U3: 251.04 | V3: =ROUND(IF(ISNUMBER(U3), S3*U3, S3),5) -> 251.04 | W3: =ROUND(W2+V3,5) -> 251.04
D5: Invoice | E5: 2012-10-31 | F5: 46812 | G5: 390 West 13th Street Idaho Falls, ID 83402 | H5: 390 West 13th Street | J5: Idaho Falls | K5: ID | L5: 83402 | M5: Randi | N5: 208-523-3531 | O5: 3rivershealthcenter@gmail.com | P5: 4 oz. w/Spray Top Silver Biotics 10 ppm | Q5: 3 Rivers Health Center | R5: Silver Biotics 4 oz. | S5: 6 | U5: 9.28 | V5: =ROUND(IF(ISNUMBER(U5), S5*U5, S5),5) -> 55.68 | W5: =ROUND(W4+V5,5) -> 55.68
B6: Total 3 Rivers Health Center | S6: =ROUND(SUM(S1:S5),5) -> 7 | V6: =ROUND(SUM(V1:V5),5) -> 306.72 | W6: =W5 -> 55.68
B7: A & S Natural Health
D8: Invoice | E8: 2012-01-05 | F8: 41547 | G8: 1559 Hanes Mall Blvd. Winston Salem, NC 27103 | H8: 1559 Hanes Mall Blvd. | J8: Winston Salem | K8: NC | L8: 27103 | N8: 336-774-8600 | P8: 16 oz. W/Cap Silver Biotics 10 ppm | Q8: A & S Natural Health | R8: Silver Biotics 16 oz. | S8: 12 | U8: 21.7 | V8: =ROUND(IF(ISNUMBER(U8), S8*U8, S8),5) -> 260.4 | W8: =ROUND(W7+V8,5) -> 260.4
D9: Invoice | E9: 2012-01-18 | F9: 41751 | G9: 1559 Hanes Mall Blvd. Winston Salem, NC 27103 | H9: 1559 Hanes Mall Blvd. | J9: Winston Salem | K9: NC | L9: 27103 | N9: 336-774-8600 | P9: 4 oz. w/Spray Top Silver Biotics 10 ppm | Q9: A & S Natural Health | R9: Silver Biotics 4 oz. | S9: 12 | U9: 9.28 | V9: 111.36 | W9: 371.76
D10: Invoice | E10: 2012-03-02 | F10: 42608 | G10: 1559 Hanes Mall Blvd. Winston Salem, NC 27103 | H10: 1559 Hanes Mall Blvd. | J10: Winston Salem | K10: NC | L10: 27103 | N10: 336-774-8600 | P10: 4 oz. w/Spray Top Silver Biotics 10 ppm | Q10: A & S Natural Health | R10: Silver Biotics 4 oz. | S10: 12 | U10: 9.28 | V10: 111.36 | W10: 483.12
D11: Invoice | E11: 2012-03-26 | F11: 43123 | G11: 1559 Hanes Mall Blvd. Winston Salem, NC 27103 | H11: 1559 Hanes Mall Blvd. | J11: Winston Salem | K11: NC | L11: 27103 | N11: 336-774-8600 | P11: 16 oz. W/Cap Silver Biotics 10 ppm | Q11: A & S Natural Health | R11: Silver Biotics 16 oz. | S11: 12 | U11: 21.7 | V11: 260.4 | W11: 743.52
D12: Invoice | E12: 2012-04-17 | F12: 43541 | G12: 1559 Hanes Mall Blvd. Winston Salem, NC 27103 | H12: 1559 Hanes Mall Blvd. | J12: Winston Salem | K12: NC | L12: 27103 | N12: 336-774-8600 | P12: 4 oz. w/Spray Top Silver Biotics 10 ppm | Q12: A & S Natural Health | R12: Silver Biotics 4 oz. | S12: 12 | U12: 9.28 | V12: 111.36 | W12: 854.88
D13: Invoice | E13: 2012-04-30 | F13: 43744 | G13: 1559 Hanes Mall Blvd. Winston Salem, NC 27103 | H13: 1559 Hanes Mall Blvd. | J13: Winston Salem | K13: NC | L13: 27103 | N13: 336-774-8600 | P13: ASAP365 Silver Gel 4 oz. | Q13: A & S Natural Health | R13: ASAP365 Silver Gel 4 oz. | S13: 12 | U13: 14.84 | V13: 178.08 | W13: 1032.96
D14: Invoice | E14: 2012-06-05 | F14: 44260 | G14: 1559 Hanes Mall Blvd. Winston Salem, NC 27103 | H14: 1559 Hanes Mall Blvd. | J14: Winston Salem | K14: NC | L14: 27103 | N14: 336-774-8600 | P14: ASAP365 Silver Gel 4 oz. | Q14: A & S Natural Health | R14: ASAP365 Silver Gel 4 oz. | S14: 12 | U14: 14.84 | V14: 178.08 | W14: 1211.04
D15: Invoice | E15: 2012-06-19 | F15: 44502 | G15: 1559 Hanes Mall Blvd. Winston Salem, NC 27103 | H15: 1559 Hanes Mall Blvd. | J15: Winston Salem | K15: NC | L15: 27103 | N15: 336-774-8600 | P15: 16 oz. W/Cap Silver Biotics 10 ppm | Q15: A & S Natural Health | R15: Silver Biotics 16 oz. | S15: 12 | U15: 21.7 | V15: 260.4 | W15: 1471.44
D16: Invoice | E16: 2012-07-03 | F16: 44727 | G16: 1559 Hanes Mall Blvd. Winston Salem, NC 27103 | H16: 1559 Hanes Mall Blvd. | J16: Winston Salem | K16: NC | L16: 27103 | N16: 336-774-8600 | P16: ASAP365 Silver Gel 4 oz. | Q16: A & S Natural Health | R16: ASAP365 Silver Gel 4 oz. | S16: 12 | U16: 14.84 | V16: 178.08 | W16: 1649.52
D17: Invoice | E17: 2012-07-19 | F17: 44905 | G17: 1559 Hanes Mall Blvd. Winston Salem, NC 27103 | H17: 1559 Hanes Mall Blvd. | J17: Winston Salem | K17: NC | L17: 27103 | N17: 336-774-8600 | P17: 4 oz. w/Spray Top Silver Biotics 10 ppm | Q17: A & S Natural Health | R17: Silver Biotics 4 oz. | S17: 12 | U17: 9.28 | V17: 111.36 | W17: 1760.88
D18: Invoice | E18: 2012-08-07 | F18: 45181 | G18: 1559 Hanes Mall Blvd. Winston Salem, NC 27103 | H18: 1559 Hanes Mall Blvd. | J18: Winston Salem | K18: NC | L18: 27103 | N18: 336-774-8600 | P18: 16 oz. W/Cap Silver Biotics 10 ppm | Q18: A & S Natural Health | R18: Silver Biotics 16 oz. | S18: 24 | U18: 21.7 | V18: 520.8 | W18: 2281.68
D19: Invoice | E19: 2012-09-11 | F19: 45658 | G19: 1559 Hanes Mall Blvd. Winston Salem, NC 27103 | H19: 1559 Hanes Mall Blvd. | J19: Winston Salem | K19: NC | L19: 27103 | N19: 336-774-8600 | P19: 4 oz. w/Spray Top Silver Biotics 10 ppm | Q19: A & S Natural Health | R19: Silver Biotics 4 oz. | S19: 12 | U19: 9.28 | V19: 111.36 | W19: 2393.04
D20: Invoice | E20: 2012-10-09 | F20: 46211 | G20: 1559 Hanes Mall Blvd. Winston Salem, NC 27103 | H20: 1559 Hanes Mall Blvd. | J20: Winston Salem | K20: NC | L20: 27103 | N20: 336-774-8600 | P20: 4 oz. w/Spray Top Silver Biotics 10 ppm | Q20: A & S Natural Health | R20: Silver Biotics 4 oz. | S20: 12 | U20: 9.28 | V20: 111.36 | W20: 2504.4
D21: Credit Memo | E21: 2012-10-15 | F21: 46350 | G21: 1559 Hanes Mall Blvd. Winston Salem, NC 27103 | H21: 1559 Hanes Mall Blvd. | J21: Winston Salem | K21: NC | L21: 27103 | N21: 336-774-8600 | P21: 4 oz. w/Spray Top Silver Biotics 10 ppm | Q21: A & S Natural Health | R21: Silver Biotics 4 oz. | S21: -1 | U21: 9.28 | V21: -9.28 | W21: 2495.12
D22: Invoice | E22: 2012-11-15 | F22: 47201 | G22: 1559 Hanes Mall Blvd. Winston Salem, NC 27103 | H22: 1559 Hanes Mall Blvd. | J22: Winston Salem | K22: NC | L22: 27103 | N22: 336-774-8600 | P22: 4 oz. w/Spray Top Silver Biotics 10 ppm | Q22: A & S Natural Health | R22: Silver Biotics 4 oz. | S22: 12 | U22: 9.28 | V22: 111.36 | W22: 2606.48
B23: Total A & S Natural Health | S23: =ROUND(SUM(S1:S22),5) -> 193 | V23: =ROUND(SUM(V1:V22),5) -> 3219.92 | W23: =W22 -> 2606.48
B24: A Beautiful Face
D25: Invoice | E25: 2012-07-30 | F25: 45032 | G25: Linda Davis LE MP 792 South Main St Templeton, CA 93465 | H25: Linda Davis LE MP | I25: 792 South Main St | J25: Templeton | K25: CA | L25: 93465 | M25: Linda Davis LE MP | N25: 805-434-2961 | P25: ASAP365 Silver Gel 4 oz. | Q25: A Beautiful Face | R25: ASAP365 Silver Gel 4 oz. | S25: 24 | U25: 14.84 | V25: =ROUND(IF(ISNUMBER(U25), S25*U25, S25),5) -> 356.16 | W25: =ROUND(W24+V25,5) -> 356.16
D26: Invoice | E26: 2012-11-01 | F26: 46889 | G26: Linda Davis LE MP 792 South Main St Templeton, CA 93465 | H26: Linda Davis LE MP | I26: 792 South Main St | J26: Templeton | K26: CA | L26: 93465 | M26: Linda Davis LE MP | N26: 805-434-2961 | P26: ASAP365 Silver Gel 4 oz. | Q26: A Beautiful Face | R26: ASAP365 Silver Gel 4 oz. | S26: 12 | U26: 14.84 | V26: =ROUND(IF(ISNUMBER(U26), S26*U26, S26),5) -> 178.08 | W26: =ROUND(W25+V26,5) -> 534.24
B27: Total A Beautiful Face | S27: =ROUND(SUM(S18:S26),5) -> 288 | V27: =ROUND(SUM(V18:V26),5) -> 4599.76 | W27: =W26 -> 534.24
B28: A Better Way Massage, LLC
D29: Invoice | E29: 2012-01-10 | F29: 41626 | G29: PO Box 91 Custer, WA 98240 | H29: PO Box 91 | J29: Custer | K29: WA | L29: 98240 | M29: Shannon | N29: 360-389-0062 | O29: sfreemanlmp@msn.com | P29: 16 oz. W/Cap Silver Biotics 10 ppm | Q29: A Better Way Massage, LLC | R29: Silver Biotics 16 oz. | S29: 60 | U29: 21.7 | V29: =ROUND(IF(ISNUMBER(U29), S29*U29, S29),5) -> 1302 | W29: =ROUND(W28+V29,5) -> 1302
B30: Total A Better Way Massage, LLC | S30: =ROUND(SUM(S24:S29),5) -> 384 | V30: =ROUND(SUM(V24:V29),5) -> 6436 | W30: =W29 -> 1302
B31: A Better Way To Health
D32: Invoice | E32: 2012-02-01 | F32: 42048 | G32: Amy 76 Blake Road Epping, NH 03042 | H32: Amy | I32: 76 Blake Road | J32: Epping | K32: NH | L32: 03042 | M32: Amy | N32: 603-679-9595 | P32: 8 oz.-w/Cap Silver Biotics 10 ppm | Q32: A Better Way To Health | R32: Silver Biotics 8 oz. | S32: 12 | U32: 15.5 | V32: =ROUND(IF(ISNUMBER(U32), S32*U32, S32),5) -> 186 | W32: =ROUND(W31+V32,5) -> 186
D33: Invoice | E33: 2012-05-08 | F33: 43839 | G33: Amy 76 Blake Road Epping, NH 03042 | H33: Amy | I33: 76 Blake Road | J33: Epping | K33: NH | L33: 03042 | M33: Amy | N33: 603-679-9595 | P33: 16 oz. W/Cap Silver Biotics 10 ppm | Q33: A Better Way To Health | R33: Silver Biotics 16 oz. | S33: 24 | U33: 21.7 | V33: =ROUND(IF(ISNUMBER(U33), S33*U33, S33),5) -> 520.8 | W33: =ROUND(W32+V33,5) -> 706.8
D34: Invoice | E34: 2012-10-03 | F34: 46062 | G34: Amy 76 Blake Road Epping, NH 03042 | H34: Amy | I34: 76 Blake Road | J34: Epping | K34: NH | L34: 03042 | M34: Amy | N34: 603-679-9595 | P34: ASAP365 Silver Gel 1.5 oz. | Q34: A Better Way To Health | R34: ASAP365 Silver Gel 1.5 oz. | S34: 25 | U34: 6.2 | V34: =ROUND(IF(ISNUMBER(U34), S34*U34, S34),5) -> 155 | W34: =ROUND(W33+V34,5) -> 861.8
B35: Total A Better Way To Health | S35: =ROUND(SUM(S24:S34),5) -> 829 | V35: =ROUND(SUM(V24:V34),5) -> 13733.8 | W35: =W34 -> 861.8
B36: A Clear View
D37: Invoice | E37: 2012-03-26 | F37: 43119 | G37: Patti Ballone 319 Thoroughbred Lane Macon, GA 31216 | H37: Patti Ballone | I37: 319 Thoroughbred Lane | J37: Macon | K37: GA | L37: 31216 | M37: Petti Ballone | O37: pattieballone@aol.com | P37: 16 oz. W/Cap Silver Biotics 10 ppm | Q37: A Clear View | R37: Silver Biotics 16 oz. | S37: 12 | U37: 21.7 | V37: =ROUND(IF(ISNUMBER(U37), S37*U37, S37),5) -> 260.4 | W37: =ROUND(W36+V37,5) -> 260.4
D38: Invoice | E38: 2012-03-28 | F38: 43202 | G38: Patti Ballone 319 Thoroughbred Lane Macon, GA 31216 | H38: Patti Ballone | I38: 319 Thoroughbred Lane | J38: Macon | K38: GA | L38: 31216 | M38: Petti Ballone | O38: pattieballone@aol.com | P38: 16 oz. W/Cap Silver Biotics 10 ppm | Q38: A Clear View | R38: Silver Biotics 16 oz. | S38: 12 | U38: 21.7 | V38: 260.4 | W38: 520.8
D39: Invoice | E39: 2012-05-10 | F39: 43896 | G39: Patti Ballone 319 Thoroughbred Lane Macon, GA 31216 | H39: Patti Ballone | I39: 319 Thoroughbred Lane | J39: Macon | K39: GA | L39: 31216 | M39: Petti Ballone | O39: pattieballone@aol.com | P39: MULTI-PACK #2 04-Silver Biotics 16 oz. 04-Silver Biotics 08 oz. 02-Silver Biotics 04 oz. ... | Q39: A Clear View | R39: Silver Biotics 16 oz., Silver Biotics 08 oz., Silver Biotics 04 oz., ASAP365 Silver Gel 1.5 oz., ASAP365 Silver Gel 4 oz. | S39: 2 | U39: 251.52 | V39: 503.04 | W39: 1023.84
D40: Invoice | E40: 2012-07-17 | F40: 44865 | G40: Patti Ballone 319 Thoroughbred Lane Macon, GA 31216 | H40: Patti Ballone | I40: 319 Thoroughbred Lane | J40: Macon | K40: GA | L40: 31216 | M40: Petti Ballone | O40: pattieballone@aol.com | P40: MULTI-PACK #2 04-Silver Biotics 16 oz. 04-Silver Biotics 08 oz. 02-Silver Biotics 04 oz. ... | Q40: A Clear View | R40: Silver Biotics 16 oz., Silver Biotics 08 oz., Silver Biotics 04 oz., ASAP365 Silver Gel 1.5 oz., ASAP365 Silver Gel 4 oz. | S40: 1 | U40: 251.52 | V40: 251.52 | W40: 1275.36
D41: Invoice | E41: 2012-10-03 | F41: 46064 | G41: Patti Ballone 319 Thoroughbred Lane Macon, GA 31216 | H41: Patti Ballone | I41: 319 Thoroughbred Lane | J41: Macon | K41: GA | L41: 31216 | M41: Petti Ballone | O41: pattieballone@aol.com | P41: 32 oz. W/Cap Silver Biotics 10 ppm | Q41: A Clear View | R41: Silver Biotics 32 oz. | S41: 8 | T41: ea | U41: 37.59 | V41: 300.72 | W41: 1576.08
D42: Invoice | E42: 2012-10-23 | F42: 46535 | G42: Patti Ballone 319 Thoroughbred Lane Macon, GA 31216 | H42: Patti Ballone | I42: 319 Thoroughbred Lane | J42: Macon | K42: GA | L42: 31216 | M42: Petti Ballone | O42: pattieballone@aol.com | P42: 32 oz. W/Cap Silver Biotics 10 ppm | Q42: A Clear View | R42: Silver Biotics 32 oz. | S42: 8 | T42: ea | U42: 37.59 | V42: 300.72 | W42: 1876.8
D43: Invoice | E43: 2012-11-01 | F43: 46887 | G43: Patti Ballone 319 Thoroughbred Lane Macon, GA 31216 | H43: Patti Ballone | I43: 319 Thoroughbred Lane | J43: Macon | K43: GA | L43: 31216 | M43: Petti Ballone | O43: pattieballone@aol.com | P43: ASAP365 Silver Gel 4 oz. | Q43: A Clear View | R43: ASAP365 Silver Gel 4 oz. | S43: 12 | U43: 14.84 | V43: 178.08 | W43: 2054.88
D44: Invoice | E44: 2012-11-01 | F44: 46888 | G44: Patti Ballone 319 Thoroughbred Lane Macon, GA 31216 | H44: Patti Ballone | I44: 319 Thoroughbred Lane | J44: Macon | K44: GA | L44: 31216 | M44: Petti Ballone | O44: pattieballone@aol.com | P44: MULTI-PACK #2 04-Silver Biotics 16 oz. 04-Silver Biotics 08 oz. 02-Silver Biotics 04 oz. ... | Q44: A Clear View | R44: Silver Biotics 16 oz., Silver Biotics 08 oz., Silver Biotics 04 oz., ASAP365 Silver Gel 1.5 oz., ASAP365 Silver Gel 4 oz. | S44: 1 | U44: 251.52 | V44: 251.52 | W44: 2306.4
B45: Total A Clear View | S45: =ROUND(SUM(S14:S44),5) -> 2014 | V45: =ROUND(SUM(V14:V44),5) -> 34567.44 | W45: =W44 -> 2306.4
B46: A Dezign
D47: Invoice | E47: 2012-06-06 | F47: 44284 | G47: Allan Hale 5 West Hazel Drive Salem, UT 84653 | H47: Allan Hale | I47: 5 West Hazel Drive | J47: Salem | K47: UT | L47: 84653 | M47: Allan Hale | N47: 801-423-1234 | P47: 4 oz. w/Spray Top Silver Biotics 10 ppm | Q47: A Dezign | R47: Silver Biotics 4 oz. | S47: 12 | U47: 9.28 | V47: =ROUND(IF(ISNUMBER(U47), S47*U47, S47),5) -> 111.36 | W47: =ROUND(W46+V47,5) -> 111.36
B48: Total A Dezign | S48: =ROUND(SUM(S44:S47),5) -> 2027 | V48: =ROUND(SUM(V44:V47),5) -> 34930.32 | W48: =W47 -> 111.36
B49: A Green Financial Group
D50: Invoice | E50: 2012-06-12 | F50: 44392 | G50: 10 N. Washington Street Ypsilanti, MI 48197 | H50: 10 N. Washington Street | J50: Ypsilanti | K50: MI | L50: 48197 | M50: Allen Green | N50: 734-485-7100 | O50: agreen@agreen.us | P50: 8 oz.-w/Cap ASAP10 Silver Solution | Q50: A Green Financial Group | R50: ASAP 10ppm 8 oz. | S50: 50 | U50: 9.2 | V50: =ROUND(IF(ISNUMBER(U50), S50*U50, S50),5) -> 460 | W50: =ROUND(W49+V50,5) -> 460
D51: Invoice | E51: 2012-08-15 | F51: 45313 | G51: 10 N. Washington Street Ypsilanti, MI 48197 | H51: 10 N. Washington Street | J51: Ypsilanti | K51: MI | L51: 48197 | M51: Allen Green | N51: 734-485-7100 | O51: agreen@agreen.us | P51: ASAP365 Silver Gel 4 oz. | Q51: A Green Financial Group | R51: ASAP365 Silver Gel 4 oz. | S51: 24 | U51: 14.84 | V51: =ROUND(IF(ISNUMBER(U51), S51*U51, S51),5) -> 356.16 | W51: =ROUND(W50+V51,5) -> 816.16
D52: Invoice | E52: 2012-11-16 | F52: 47215 | G52: 10 N. Washington Street Ypsilanti, MI 48197 | H52: 10 N. Washington Street | J52: Ypsilanti | K52: MI | L52: 48197 | M52: Allen Green | N52: 734-485-7100 | O52: agreen@agreen.us | P52: 8 oz.-w/Cap ASAP10 Silver Solution | Q52: A Green Financial Group | R52: ASAP 10ppm 8 oz. | S52: 50 | U52: 9.2 | V52: =ROUND(IF(ISNUMBER(U52), S52*U52, S52),5) -> 460 | W52: =ROUND(W51+V52,5) -> 1276.16
B53: Total A Green Financial Group | S53: =ROUND(SUM(S49:S52),5) -> 124 | V53: =ROUND(SUM(V49:V52),5) -> 1276.16 | W53: =W52 -> 1276.16
B54: A Health Forest
D55: Invoice | E55: 2012-01-26 | F55: 41940 | G55: Tom Slade PO Box 1748 Durango, CO 81302 | H55: Tom Slade | I55: PO Box 1748 | J55: Durango | K55: CO | L55: 81302 | M55: Tom Slade | N55: 505-326-4190 | P55: MULTI-PACK #1 06-Silver Biotics 16 oz. 06-Silver Biotics 08 oz. 03-Silver Biotics 04 oz. ... | Q55: A Health Forest | R55: Silver Biotics 16 oz., Silver Biotics 08 oz., Silver Biotics 04 oz. | S55: 1 | U55: 188.28 | V55: =ROUND(IF(ISNUMBER(U55), S55*U55, S55),5) -> 188.28 | W55: =ROUND(W54+V55,5) -> 188.28
D56: Invoice | E56: 2012-02-09 | F56: 42210 | G56: Tom Slade PO Box 1748 Durango, CO 81302 | H56: Tom Slade | I56: PO Box 1748 | J56: Durango | K56: CO | L56: 81302 | M56: Tom Slade | N56: 505-326-4190 | P56: 8 oz.-w/Cap ASAP Solution Plus 22 ppm | Q56: A Health Forest | R56: ASAP 22ppm 8 oz. | S56: 12 | U56: 19.84 | V56: =ROUND(IF(ISNUMBER(U56), S56*U56, S56),5) -> 238.08 | W56: =ROUND(W55+V56,5) -> 426.36
D57: Invoice | E57: 2012-06-07 | F57: 44301 | G57: Tom Slade PO Box 1748 Durango, CO 81302 | H57: Tom Slade | I57: PO Box 1748 | J57: Durango | K57: CO | L57: 81302 | M57: Tom Slade | N57: 505-326-4190 | P57: MULTI-PACK #1 06-Silver Biotics 16 oz. 06-Silver Biotics 08 oz. 03-Silver Biotics 04 oz. ... | Q57: A Health Forest | R57: Silver Biotics 16 oz., Silver Biotics 08 oz., Silver Biotics 04 oz. | S57: 1 | U57: 251.04 | V57: =ROUND(IF(ISNUMBER(U57), S57*U57, S57),5) -> 251.04 | W57: =ROUND(W56+V57,5) -> 677.4
D58: Invoice | E58: 2012-07-16 | F58: 44847 | G58: Tom Slade PO Box 1748 Durango, CO 81302 | H58: Tom Slade | I58: PO Box 1748 | J58: Durango | K58: CO | L58: 81302 | M58: Tom Slade | N58: 505-326-4190 | P58: MULTI-PACK #1 06-Silver Biotics 16 oz. 06-Silver Biotics 08 oz. 03-Silver Biotics 04 oz. ... | Q58: A Health Forest | R58: Silver Biotics 16 oz., Silver Biotics 08 oz., Silver Biotics 04 oz. | S58: 1 | U58: 251.04 | V58: =ROUND(IF(ISNUMBER(U58), S58*U58, S58),5) -> 251.04 | W58: =ROUND(W57+V58,5) -> 928.44
B59: Total A Health Forest | S59: =ROUND(SUM(S51:S58),5) -> 213 | V59: =ROUND(SUM(V51:V58),5) -> 3020.76 | W59: =W58 -> 928.44
B60: A Mother Nature Midwifery Care
D61: Invoice | E61: 2012-02-27 | F61: 42485 | G61: Kelli R Johnson, CPM, LM 802 Fisher Rd Winter Springs, FL 32708 | H61: Kelli R Johnson, CPM, LM | I61: 802 Fisher Rd | J61: Winter Springs | K61: FL | L61: 32708 | M61: Kelli R Johnson | N61: 407-699-4207 | O61: kellijohnsonmidwife@gmail.com | P61: ASAP Health Max Gel 24 ppm 1.5 oz. | Q61: A Mother Nature Midwifery Care | R61: ASAP Health Max Gel 24 ppm 1.5 oz. | S61: 25 | U61: 6.2 | V61: =ROUND(IF(ISNUMBER(U61), S61*U61, S61),5) -> 155 | W61: =ROUND(W60+V61,5) -> 155
B62: Total A Mother Nature Midwifery Care | S62: =ROUND(SUM(S59:S61),5) -> 238 | V62: =ROUND(SUM(V59:V61),5) -> 3175.76 | W62: =W61 -> 155
B63: A Natural Health Center
D64: Invoice | E64: 2012-03-16 | F64: 42950 | G64: Patsy 1378 US Hwy. 64 Manteo, NC 27954 | H64: Patsy | I64: 1378 US Hwy. 64 | J64: Manteo | K64: NC | L64: 27954 | M64: Patsy ND | N64: 252-473-6060 | P64: 16 oz. W/Cap Silver Biotics 10 ppm | Q64: A Natural Health Center | R64: Silver Biotics 16 oz. | S64: 12 | U64: 21.7 | V64: =ROUND(IF(ISNUMBER(U64), S64*U64, S64),5) -> 260.4 | W64: =ROUND(W63+V64,5) -> 260.4
B65: Total A Natural Health Center | S65: =ROUND(SUM(S61:S64),5) -> 275 | V65: =ROUND(SUM(V61:V64),5) -> 3591.16 | W65: =W64 -> 260.4
B66: A Nu You Wellness Center
D67: Invoice | E67: 2012-03-19 | F67: 42967 | G67: Dr. Stacey Abbe, C.H.T. 8595 Plank Road Montville, OH 44064 | H67: Dr. Stacey Abbe, C.H.T. | I67: 8595 Plank Road | J67: Montville | K67: OH | L67: 44064 | M67: Dr. Stacey Abbe, C.H.T. | N67: 440-968-3995 | P67: ASAP Health Max 30-16 oz. | Q67: A Nu You Wellness Center | R67: ASAP Health Max 30 16 oz. | S67: 24 | U67: 31.02 | V67: =ROUND(IF(ISNUMBER(U67), S67*U67, S67),5) -> 744.48 | W67: =ROUND(W66+V67,5) -> 744.48
D68: Invoice | E68: 2012-10-18 | F68: 46447 | G68: Dr. Stacey Abbe, C.H.T. 8595 Plank Road Montville, OH 44064 | H68: Dr. Stacey Abbe, C.H.T. | I68: 8595 Plank Road | J68: Montville | K68: OH | L68: 44064 | M68: Dr. Stacey Abbe, C.H.T. | N68: 440-968-3995 | P68: ASAP Health Max 10-16 oz. | Q68: A Nu You Wellness Center | R68: ASAP Health Max 10 16 oz. | S68: 12 | U68: 21.7 | V68: =ROUND(IF(ISNUMBER(U68), S68*U68, S68),5) -> 260.4 | W68: =ROUND(W67+V68,5) -> 1004.88
B69: Total A Nu You Wellness Center | S69: =ROUND(SUM(S57:S68),5) -> 801 | V69: =ROUND(SUM(V57:V68),5) -> 11710.04 | W69: =W68 -> 1004.88
B70: A to Zinc Nutritional Shop
D71: Invoice | E71: 2012-03-02 | F71: 42614 | G71: 12130 US Highway 19 Hudson, FL 34667 | H71: 12130 US Highway 19 | J71: Hudson | K71: FL | L71: 34667 | M71: Frank | N71: 727-861-2818 | P71: 8 oz.-w/Cap Silver Biotics 10 ppm | Q71: A to Zinc Nutritional Shop | R71: Silver Biotics 8 oz. | S71: 12 | U71: 15.5 | V71: =ROUND(IF(ISNUMBER(U71), S71*U71, S71),5) -> 186 | W71: =ROUND(W70+V71,5) -> 186
D72: Invoice | E72: 2012-05-18 | F72: 44027 | G72: 12130 US Highway 19 Hudson, FL 34667 | H72: 12130 US Highway 19 | J72: Hudson | K72: FL | L72: 34667 | M72: Frank | N72: 727-861-2818 | P72: MULTI-PACK #1 06-Silver Biotics 16 oz. 06-Silver Biotics 08 oz. 03-Silver Biotics 04 oz. ... | Q72: A to Zinc Nutritional Shop | R72: Silver Biotics 16 oz., Silver Biotics 08 oz., Silver Biotics 04 oz. | S72: 1 | U72: 251.04 | V72: =ROUND(IF(ISNUMBER(U72), S72*U72, S72),5) -> 251.04 | W72: =ROUND(W71+V72,5) -> 437.04
D73: Invoice | E73: 2012-09-24 | F73: 45839 | G73: 12130 US Highway 19 Hudson, FL 34667 | H73: 12130 US Highway 19 | J73: Hudson | K73: FL | L73: 34667 | M73: Frank | N73: 727-861-2818 | P73: 32 oz. W/Cap Silver Biotics 10 ppm | Q73: A to Zinc Nutritional Shop | R73: Silver Biotics 32 oz. | S73: 8 | T73: ea | U73: 37.59 | V73: =ROUND(IF(ISNUMBER(U73), S73*U73, S73),5) -> 300.72 | W73: =ROUND(W72+V73,5) -> 737.76
D74: Invoice | E74: 2012-10-08 | F74: 46175 | G74: 12130 US Highway 19 Hudson, FL 34667 | H74: 12130 US Highway 19 | J74: Hudson | K74: FL | L74: 34667 | M74: Frank | N74: 727-861-2818 | P74: 32 oz. W/Cap Silver Biotics 10 ppm | Q74: A to Zinc Nutritional Shop | R74: Silver Biotics 32 oz. | S74: 0 | T74: ea | U74: 37.59 | V74: =ROUND(IF(ISNUMBER(U74), S74*U74, S74),5) -> 0 | W74: =ROUND(W73+V74,5) -> 737.76
B75: Total A to Zinc Nutritional Shop | S75: =ROUND(SUM(S39:S74),5) -> 5969 | V75: =ROUND(SUM(V39:V74),5) -> 98531.24 | W75: =W74 -> 737.76
B76: A Touch of Relief Massage Therapy
D77: Invoice | E77: 2012-03-05 | F77: 42626 | G77: Ericka Porter 4747 W Water Ave #4009 Tampa, FL 33614 | H77: Ericka Porter | I77: 4747 W Water Ave #4009 | J77: Tampa | K77: FL | L77: 33614 | M77: Ericka Porter | N77: 352-346-4497 | P77: ASAP Health Max 10-16 oz. | Q77: A Touch of Relief Massage Therapy | R77: ASAP Health Max 10 16 oz. | S77: 3 | U77: 21.7 | V77: =ROUND(IF(ISNUMBER(U77), S77*U77, S77),5) -> 65.1 | W77: =ROUND(W76+V77,5) -> 65.1
D78: Invoice | E78: 2012-03-07 | F78: 42704 | G78: Ericka Porter 4747 W Water Ave #4009 Tampa, FL 33614 | H78: Ericka Porter | I78: 4747 W Water Ave #4009 | J78: Tampa | K78: FL | L78: 33614 | M78: Ericka Porter | N78: 352-346-4497 | P78: ASAP Health Max Gel 24 ppm 4 oz. | Q78: A Touch of Relief Massage Therapy | R78: ASAP Health Max Gel 24 ppm 4 oz. | S78: 36 | U78: 14.84 | V78: =ROUND(IF(ISNUMBER(U78), S78*U78, S78),5) -> 534.24 | W78: =ROUND(W77+V78,5) -> 599.34
D79: Invoice | E79: 2012-06-06 | F79: 44271 | G79: Ericka Porter 4747 W Water Ave #4009 Tampa, FL 33614 | H79: Ericka Porter | I79: 4747 W Water Ave #4009 | J79: Tampa | K79: FL | L79: 33614 | M79: Ericka Porter | N79: 352-346-4497 | P79: ASAP Health Max 10-16 oz. | Q79: A Touch of Relief Massage Therapy | R79: ASAP Health Max 10 16 oz. | S79: 12 | U79: 21.7 | V79: =ROUND(IF(ISNUMBER(U79), S79*U79, S79),5) -> 260.4 | W79: =ROUND(W78+V79,5) -> 859.74
B80: Total A Touch of Relief Massage Therapy | S80: =ROUND(SUM(S67:S79),5) -> 6878 | V80: =ROUND(SUM(V67:V79),5) -> 112843.66 | W80: =W79 -> 859.74
B81: A1 Solutions
D82: Invoice | E82: 2012-11-14 | F82: 47148 | G82: Pat Hansen 832 Inchelium Hwy. Kettle Falls, WA 99141 | H82: Pat Hansen | I82: 832 Inchelium Hwy. | J82: Kettle Falls | K82: WA | L82: 99141 | M82: Pat Hansen | N82: 509-738-6574 | P82: 16 oz. W/Cap Silver Biotics 10 ppm | Q82: A1 Solutions | R82: Silver Biotics 16 oz. | S82: 12 | U82: 21.7 | V82: =ROUND(IF(ISNUMBER(U82), S82*U82, S82),5) -> 260.4 | W82: =ROUND(W81+V82,5) -> 260.4
B83: Total A1 Solutions | S83: =ROUND(SUM(S78:S82),5) -> 6938 | V83: =ROUND(SUM(V78:V82),5) -> 113898.7 | W83: =W82 -> 260.4
B84: Abell MD, John
D85: Invoice | E85: 2012-04-05 | F85: 43413 | G85: 521 W. 3rd Ave. Albany, GA 31701 | H85: 521 W. 3rd Ave. | J85: Albany | K85: GA | L85: 31701 | N85: 229-888-0044 | P85: ASAP365 Silver Gel 4 oz. | Q85: Abell MD, John | R85: ASAP365 Silver Gel 4 oz. | S85: 12 | U85: 14.84 | V85: =ROUND(IF(ISNUMBER(U85), S85*U85, S85),5) -> 178.08 | W85: =ROUND(W84+V85,5) -> 178.08
D86: Invoice | E86: 2012-10-15 | F86: 46339 | G86: 521 W. 3rd Ave. Albany, GA 31701 | H86: 521 W. 3rd Ave. | J86: Albany | K86: GA | L86: 31701 | N86: 229-888-0044 | P86: ASAP365 Silver Gel 1.5 oz. | Q86: Abell MD, John | R86: ASAP365 Silver Gel 1.5 oz. | S86: 25 | U86: 6.2 | V86: =ROUND(IF(ISNUMBER(U86), S86*U86, S86),5) -> 155 | W86: =ROUND(W85+V86,5) -> 333.08
B87: Total Abell MD, John | S87: =ROUND(SUM(S79:S86),5) -> 13877 | V87: =ROUND(SUM(V79:V86),5) -> 227596.24 | W87: =W86 -> 333.08
B88: ABL Asia Pte. Ltd.
D89: Invoice | E89: 2012-04-23 | F89: 43650 | G89: 18 Boon Lay Way #10-126 TradeHub 21 SINGAPORE 609966 | H89: 18 Boon Lay Way | I89: #10-126 TradeHub 21 | J89: SINGAPORE | L89: 609966 | M89: Poh Choon Sim | N89: (Tel) 67952039 | O89: simpohchoon@ecosave.sg | P89: ASAP365 Silver Gel 1.5 oz. | Q89: ABL Asia Pte. Ltd. | R89: ASAP365 Silver Gel 1.5 oz. | S89: 1400 | U89: 1.84 | V89: =ROUND(IF(ISNUMBER(U89), S89*U89, S89),5) -> 2576 | W89: =ROUND(W88+V89,5) -> 2576
B90: Total ABL Asia Pte. Ltd. | S90: =ROUND(SUM(S80:S89),5) -> 29142 | V90: =ROUND(SUM(V80:V89),5) -> 457508.08 | W90: =W89 -> 2576
B91: ABL Medical, LLC
B92: Total ABL Medical, LLC | S92: =ROUND(SUM(S1:S91),5) -> 72341 | V92: =ROUND(SUM(V1:V91),5) -> 1147366.62 | W92: =W91 -> 0
B93: ABL Stock
D94: Invoice | E94: 2012-08-16 | F94: 45342 | P94: ASAP Health Max 30-16 oz. | Q94: ABL Stock | R94: ASAP Health Max 30 16 oz. | S94: 2688 | V94: 0 | W94: =ROUND(W93+V94,5) -> 0
D95: Invoice | E95: 2012-08-16 | F95: 45343 | P95: ASAP Health Max 30-8oz. | Q95: ABL Stock | R95: ASAP Health Max 30 8 oz. | S95: 2400 | V95: 0 | W95: 0
D96: Invoice | E96: 2012-08-27 | F96: 45455 | P96: 8 oz.-w/Cap Silver Biotics 10 ppm | Q96: ABL Stock | R96: Silver Biotics 8 oz. | S96: 3814 | V96: 0 | W96: 0
D97: Invoice | E97: 2012-09-18 | F97: 45757 | P97: 32 oz. W/Cap Silver Biotics 10 ppm | Q97: ABL Stock | R97: Silver Biotics 32 oz. | S97: 4 | T97: ea | V97: 0 | W97: 0
D98: Invoice | E98: 2012-09-19 | F98: 45772 | P98: 32 oz. W/Cap Silver Biotics 10 ppm | Q98: ABL Stock | R98: Silver Biotics 32 oz. | S98: 1200 | T98: ea | V98: 0 | W98: 0
D99: Invoice | E99: 2012-09-25 | F99: 45862 | P99: 8 oz.-w/Cap Silver Biotics 10 ppm | Q99: ABL Stock | R99: Silver Biotics 8 oz. | S99: 3276 | V99: 0 | W99: 0
D100: Invoice | E100: 2012-09-27 | F100: 45913 | P100: 8 oz.-w/Cap Silver Biotics 10 ppm | Q100: ABL Stock | R100: Silver Biotics 8 oz. | S100: 1614 | V100: 0 | W100: 0
D101: Invoice | E101: 2012-09-27 | F101: 45914 | P101: 16 oz. W/Cap Silver Biotics 10 ppm | Q101: ABL Stock | R101: Silver Biotics 16 oz. | S101: 5109 | V101: 0 | W101: 0
D102: Invoice | E102: 2012-10-05 | F102: 46130 | P102: 4 oz. w/Spray Top Silver Biotics 10 ppm | Q102: ABL Stock | R102: Silver Biotics 4 oz. | S102: 2096 | V102: 0 | W102: 0
D103: Invoice | E103: 2012-10-15 | F103: 46318 | P103: 32 oz. W/Cap Silver Biotics 10 ppm | Q103: ABL Stock | R103: Silver Biotics 32 oz. | S103: 2420 | T103: ea | V103: 0 | W103: 0
D104: Invoice | E104: 2012-10-15 | F104: 46352 | P104: 8 oz.-w/Cap Silver Biotics 10 ppm/Samle Product | Q104: ABL Stock | R104: Silver Biotics 8 oz. | S104: 4 | V104: 0 | W104: 0
D105: Invoice | E105: 2012-10-16 | F105: 46373 | P105: 4 oz. w/Spray Top Silver Biotics 10 ppm | Q105: ABL Stock | R105: Silver Biotics 4 oz. | S105: 4093 | V105: 0 | W105: 0
D106: Invoice | E106: 2012-10-23 | F106: 46520 | P106: ASAP Health Max 10-16 oz. | Q106: ABL Stock | R106: ASAP Health Max 10 16 oz. | S106: 1344 | V106: 0 | W106: 0
D107: Invoice | E107: 2012-10-23 | F107: 46521 | P107: 16 oz. W/Cap Silver Biotics 10 ppm | Q107: ABL Stock | R107: Silver Biotics 16 oz. | S107: 2749 | V107: 0 | W107: 0
D108: Invoice | E108: 2012-10-30 | F108: 46731 | P108: ASAP Health Max 10-8 oz. | Q108: ABL Stock | R108: ASAP Health Max 10 8 oz. | S108: 1450 | V108: 0 | W108: 0
D109: Invoice | E109: 2012-11-02 | F109: 46924 | P109: 16 oz. W/Cap Silver Biotics 10 ppm | Q109: ABL Stock | R109: Silver Biotics 16 oz. | S109: 2688 | V109: 0 | W109: 0
D110: Invoice | E110: 2012-11-02 | F110: 46925 | P110: 8 oz.-w/Cap Silver Biotics 10 ppm | Q110: ABL Stock | R110: Silver Biotics 8 oz. | S110: 4800 | V110: 0 | W110: 0
D111: Invoice | E111: 2012-11-02 | F111: 46926 | P111: ASAP Health Max 30-16 oz. | Q111: ABL Stock | R111: ASAP Health Max 30 16 oz. | S111: 4032 | V111: 0 | W111: 0
D112: Invoice | E112: 2012-11-06 | F112: 46987 | P112: ASAP Health Max 30-8oz. | Q112: ABL Stock | R112: ASAP Health Max 30 8 oz. | S112: 2639 | V112: 0 | W112: 0
D113: Invoice | E113: 2012-11-06 | F113: 46988 | P113: 16 oz. W/Cap Silver Biotics 10 ppm | Q113: ABL Stock | R113: Silver Biotics 16 oz. | S113: 6090 | V113: 0 | W113: 0
D114: Invoice | E114: 2012-11-06 | F114: 46990 | P114: 8 oz.-w/Cap ASAP Solution Plus 22 ppm | Q114: ABL Stock | R114: ASAP 22ppm 8 oz. | S114: 2550 | V114: 0 | W114: 0
D115: Invoice | E115: 2012-11-07 | F115: 47009 | P115: 4 oz. w/Spray Top Silver Biotics 10 ppm | Q115: ABL Stock | R115: Silver Biotics 4 oz. | S115: 2676 | V115: 0 | W115: 0
D116: Invoice | E116: 2012-11-07 | F116: 47016 | P116: 16 oz. W/Cap Silver Biotics 10 ppm | Q116: ABL Stock | R116: Silver Biotics 16 oz. | S116: 2840 | V116: 0 | W116: 0
D117: Invoice | E117: 2012-11-12 | F117: 47110 | P117: 8 oz.-w/Cap Silver Biotics 10 ppm | Q117: ABL Stock | R117: Silver Biotics 8 oz. | S117: 4983 | V117: 0 | W117: 0
B118: Total ABL Stock | S118: =ROUND(SUM(S90:S117),5) -> 169042 | V118: =ROUND(SUM(V90:V117),5) -> 1604874.7 | W118: =W117 -> 0
B119: ABL SUPPLIES
D120: Invoice | E120: 2012-01-06 | F120: 41561 | G120: 80 West Canyon Crest Road Alpine, UT 84004 | H120: 80 West Canyon Crest Road | J120: Alpine | K120: UT | L120: 84004 | O120: tim.matheney@dhl.com | P120: ASAP Health Max 30-8oz. | Q120: ABL SUPPLIES | R120: ASAP Health Max 30 8 oz. | S120: 1 | V120: 0 | W120: =ROUND(W119+V120,5) -> 0
D121: Invoice | E121: 2012-01-06 | F121: 41586 | G121: 80 West Canyon Crest Road Alpine, UT 84004 | H121: 80 West Canyon Crest Road | J121: Alpine | K121: UT | L121: 84004 | O121: tim.matheney@dhl.com | P121: 8 oz.-w/Cap Silver Biotics 10 ppm | Q121: ABL SUPPLIES | R121: Silver Biotics 8 oz. | S121: 1 | V121: 0 | W121: 0
D122: Invoice | E122: 2012-01-10 | F122: 41641 | G122: 80 West Canyon Crest Road Alpine, UT 84004 | H122: 80 West Canyon Crest Road | J122: Alpine | K122: UT | L122: 84004 | O122: tim.matheney@dhl.com | P122: ASAP Health Max Gel 24 ppm 1.5 oz. | Q122: ABL SUPPLIES | R122: ASAP Health Max Gel 24 ppm 1.5 oz. | S122: 1 | V122: 0 | W122: 0
D123: Invoice | E123: 2012-01-11 | F123: 41659 | G123: 80 West Canyon Crest Road Alpine, UT 84004 | H123: 80 West Canyon Crest Road | J123: Alpine | K123: UT | L123: 84004 | O123: tim.matheney@dhl.com | P123: ASAP Health Max 30-8oz. | Q123: ABL SUPPLIES | R123: ASAP Health Max 30 8 oz. | S123: 1 | V123: 0 | W123: 0
D124: Invoice | E124: 2012-01-12 | F124: 41677 | G124: 80 West Canyon Crest Road Alpine, UT 84004 | H124: 80 West Canyon Crest Road | J124: Alpine | K124: UT | L124: 84004 | O124: tim.matheney@dhl.com | P124: 16 oz. W/Cap Silver Biotics 10 ppm | Q124: ABL SUPPLIES | R124: Silver Biotics 16 oz. | S124: 1 | V124: 0 | W124: 0
D125: Invoice | E125: 2012-01-13 | F125: 41694 | G125: 80 West Canyon Crest Road Alpine, UT 84004 | H125: 80 West Canyon Crest Road | J125: Alpine | K125: UT | L125: 84004 | O125: tim.matheney@dhl.com | P125: 8 oz.-w/Cap Silver Biotics 10 ppm | Q125: ABL SUPPLIES | R125: Silver Biotics 8 oz. | S125: 2 | V125: 0 | W125: 0
D126: Invoice | E126: 2012-01-13 | F126: 41716 | G126: 80 West Canyon Crest Road Alpine, UT 84004 | H126: 80 West Canyon Crest Road | J126: Alpine | K126: UT | L126: 84004 | O126: tim.matheney@dhl.com | P126: 4 oz. w/Spray Top Silver Biotics 10 ppm | Q126: ABL SUPPLIES | R126: Silver Biotics 4 oz. | S126: 2 | V126: 0 | W126: 0
D127: Invoice | E127: 2012-01-18 | F127: 41763 | G127: 80 West Canyon Crest Road Alpine, UT 84004 | H127: 80 West Canyon Crest Road | J127: Alpine | K127: UT | L127: 84004 | O127: tim.matheney@dhl.com | P127: ASAP Ultimate Skin & Body Care 1.5 oz. | Q127: ABL SUPPLIES | R127: ASAP365 Silver Gel 1.5 oz. | S127: 1 | V127: 0 | W127: 0
D128: Invoice | E128: 2012-01-19 | F128: 41780 | G128: 80 West Canyon Crest Road Alpine, UT 84004 | H128: 80 West Canyon Crest Road | J128: Alpine | K128: UT | L128: 84004 | O128: tim.matheney@dhl.com | P128: 8 oz.-w/Cap Silver Biotics 10 ppm | Q128: ABL SUPPLIES | R128: Silver Biotics 8 oz. | S128: 24 | V128: 0 | W128: 0
D129: Invoice | E129: 2012-01-19 | F129: 41781 | G129: 80 West Canyon Crest Road Alpine, UT 84004 | H129: 80 West Canyon Crest Road | J129: Alpine | K129: UT | L129: 84004 | O129: tim.matheney@dhl.com | P129: ASAP Health Max 10-8 oz. | Q129: ABL SUPPLIES | R129: ASAP Health Max 10 8 oz. | S129: 1 | V129: 0 | W129: 0
D130: Invoice | E130: 2012-01-23 | F130: 41826 | G130: 80 West Canyon Crest Road Alpine, UT 84004 | H130: 80 West Canyon Crest Road | J130: Alpine | K130: UT | L130: 84004 | O130: tim.matheney@dhl.com | P130: ASAP Ultimate Skin & Body Care 4 oz. WS | Q130: ABL SUPPLIES | R130: ASAP365 Silver Gel 4 oz. | S130: 1 | V130: 0 | W130: 0
D131: Invoice | E131: 2012-01-30 | F131: 41985 | G131: 80 West Canyon Crest Road Alpine, UT 84004 | H131: 80 West Canyon Crest Road | J131: Alpine | K131: UT | L131: 84004 | O131: tim.matheney@dhl.com | P131: 8 oz.-w/Cap Silver Biotics 10 ppm | Q131: ABL SUPPLIES | R131: Silver Biotics 8 oz. | S131: 2 | V131: 0 | W131: 0
D132: Invoice | E132: 2012-02-01 | F132: 42044 | G132: 80 West Canyon Crest Road Alpine, UT 84004 | H132: 80 West Canyon Crest Road | J132: Alpine | K132: UT | L132: 84004 | O132: tim.matheney@dhl.com | P132: ASAP Ultimate Skin & Body Care 4 oz. WS | Q132: ABL SUPPLIES | R132: ASAP365 Silver Gel 4 oz. | S132: 2 | V132: 0 | W132: 0
D133: Invoice | E133: 2012-02-01 | F133: 42063 | G133: 80 West Canyon Crest Road Alpine, UT 84004 | H133: 80 West Canyon Crest Road | J133: Alpine | K133: UT | L133: 84004 | O133: tim.matheney@dhl.com | P133: ASAP Health Max Gel 24 ppm 1.5 oz. | Q133: ABL SUPPLIES | R133: ASAP Health Max Gel 24 ppm 1.5 oz. | S133: 25 | V133: 0 | W133: 0
D134: Invoice | E134: 2012-02-08 | F134: 42180 | G134: 80 West Canyon Crest Road Alpine, UT 84004 | H134: 80 West Canyon Crest Road | J134: Alpine | K134: UT | L134: 84004 | O134: tim.matheney@dhl.com | P134: ASAP Health Max 30-8oz. | Q134: ABL SUPPLIES | R134: ASAP Health Max 30 8 oz. | S134: 1 | V134: 0 | W134: 0
D135: Invoice | E135: 2012-02-13 | F135: 42263 | G135: 80 West Canyon Crest Road Alpine, UT 84004 | H135: 80 West Canyon Crest Road | J135: Alpine | K135: UT | L135: 84004 | O135: tim.matheney@dhl.com | P135: ASAP Health Max Gel 24 ppm 1.5 oz. | Q135: ABL SUPPLIES | R135: ASAP Health Max Gel 24 ppm 1.5 oz. | S135: 25 | V135: 0 | W135: 0
D136: Invoice | E136: 2012-02-16 | F136: 42320 | G136: 80 West Canyon Crest Road Alpine, UT 84004 | H136: 80 West Canyon Crest Road | J136: Alpine | K136: UT | L136: 84004 | O136: tim.matheney@dhl.com | P136: ASAP Ultimate Skin & Body Care 1.5 oz. | Q136: ABL SUPPLIES | R136: ASAP365 Silver Gel 1.5 oz. | S136: 400 | V136: 0 | W136: 0
D137: Invoice | E137: 2012-02-22 | F137: 42415 | G137: 80 West Canyon Crest Road Alpine, UT 84004 | H137: 80 West Canyon Crest Road | J137: Alpine | K137: UT | L137: 84004 | O137: tim.matheney@dhl.com | P137: 4 oz. w/Spray Top Silver Biotics 10 ppm | Q137: ABL SUPPLIES | R137: Silver Biotics 4 oz. | S137: 48 | V137: 0 | W137: 0
D138: Invoice | E138: 2012-02-24 | F138: 42464 | G138: 80 West Canyon Crest Road Alpine, UT 84004 | H138: 80 West Canyon Crest Road | J138: Alpine | K138: UT | L138: 84004 | O138: tim.matheney@dhl.com | P138: 8 oz.-w/Cap Silver Biotics 10 ppm w/Sample Stickers | Q138: ABL SUPPLIES | R138: Silver Biotics 8 oz. | S138: 12 | V138: 0 | W138: 0
D139: Invoice | E139: 2012-02-29 | F139: 42589 | G139: 80 West Canyon Crest Road Alpine, UT 84004 | H139: 80 West Canyon Crest Road | J139: Alpine | K139: UT | L139: 84004 | O139: tim.matheney@dhl.com | P139: ASAP Ultimate Skin & Body Care 4 oz. WS | Q139: ABL SUPPLIES | R139: ASAP365 Silver Gel 4 oz. | S139: 1 | V139: 0 | W139: 0
D140: Invoice | E140: 2012-02-29 | F140: 42591 | G140: 80 West Canyon Crest Road Alpine, UT 84004 | H140: 80 West Canyon Crest Road | J140: Alpine | K140: UT | L140: 84004 | O140: tim.matheney@dhl.com | P140: 4 oz. w/Spray Top Silver Biotics 10 ppm | Q140: ABL SUPPLIES | R140: Silver Biotics 4 oz. | S140: 2 | V140: 0 | W140: 0
D141: Invoice | E141: 2012-03-02 | F141: 42594 | G141: 80 West Canyon Crest Road Alpine, UT 84004 | H141: 80 West Canyon Crest Road | J141: Alpine | K141: UT | L141: 84004 | O141: tim.matheney@dhl.com | P141: 16 oz. W/Cap Silver Biotics 10 ppm | Q141: ABL SUPPLIES | R141: Silver Biotics 16 oz. | S141: 1 | U141: 0 | V141: =ROUND(IF(ISNUMBER(U141), S141*U141, S141),5) -> 0 | W141: 0
D142: Invoice | E142: 2012-03-09 | F142: 42770 | G142: 80 West Canyon Crest Road Alpine, UT 84004 | H142: 80 West Canyon Crest Road | J142: Alpine | K142: UT | L142: 84004 | O142: tim.matheney@dhl.com | P142: 16 oz. W/Cap Silver Biotics 10 ppm | Q142: ABL SUPPLIES | R142: Silver Biotics 16 oz. | S142: 12 | V142: 0 | W142: 0
D143: Invoice | E143: 2012-03-19 | F143: 42955 | G143: 80 West Canyon Crest Road Alpine, UT 84004 | H143: 80 West Canyon Crest Road | J143: Alpine | K143: UT | L143: 84004 | O143: tim.matheney@dhl.com | P143: 16 oz. W/Cap Silver Biotics 10 ppm | Q143: ABL SUPPLIES | R143: Silver Biotics 16 oz. | S143: 1 | V143: 0 | W143: 0
D144: Invoice | E144: 2012-03-20 | F144: 43017 | G144: 80 West Canyon Crest Road Alpine, UT 84004 | H144: 80 West Canyon Crest Road | J144: Alpine | K144: UT | L144: 84004 | O144: tim.matheney@dhl.com | P144: 8 oz.-w/Cap Silver Biotics 10 ppm | Q144: ABL SUPPLIES | R144: Silver Biotics 8 oz. | S144: 12 | V144: 0 | W144: 0
D145: Invoice | E145: 2012-03-22 | F145: 43049 | G145: 80 West Canyon Crest Road Alpine, UT 84004 | H145: 80 West Canyon Crest Road | J145: Alpine | K145: UT | L145: 84004 | O145: tim.matheney@dhl.com | P145: 4 oz. w/Spray Top Silver Biotics 10 ppm | Q145: ABL SUPPLIES | R145: Silver Biotics 4 oz. | S145: 1 | V145: 0 | W145: 0
D146: Invoice | E146: 2012-03-23 | F146: 43093 | G146: 80 West Canyon Crest Road Alpine, UT 84004 | H146: 80 West Canyon Crest Road | J146: Alpine | K146: UT | L146: 84004 | O146: tim.matheney@dhl.com | P146: 16 oz. W/Cap Silver Biotics 10 ppm | Q146: ABL SUPPLIES | R146: Silver Biotics 16 oz. | S146: 12 | U146: 0 | V146: =ROUND(IF(ISNUMBER(U146), S146*U146, S146),5) -> 0 | W146: 0
D147: Invoice | E147: 2012-03-28 | F147: 43212 | G147: 80 West Canyon Crest Road Alpine, UT 84004 | H147: 80 West Canyon Crest Road | J147: Alpine | K147: UT | L147: 84004 | O147: tim.matheney@dhl.com | P147: 16 oz. ASAP Solution 10 ppm | Q147: ABL SUPPLIES | R147: ASAP Solution 16 oz. | S147: 4 | V147: 0 | W147: 0
D148: Invoice | E148: 2012-03-29 | F148: 43218 | G148: 80 West Canyon Crest Road Alpine, UT 84004 | H148: 80 West Canyon Crest Road | J148: Alpine | K148: UT | L148: 84004 | O148: tim.matheney@dhl.com | P148: ASAP 365 Silver Gel 4 oz. WS | Q148: ABL SUPPLIES | R148: ASAP365 Silver Gel 4 oz. | S148: 12 | V148: 0 | W148: 0
D149: Invoice | E149: 2012-04-05 | F149: 43404 | G149: 80 West Canyon Crest Road Alpine, UT 84004 | H149: 80 West Canyon Crest Road | J149: Alpine | K149: UT | L149: 84004 | O149: tim.matheney@dhl.com | P149: Silver Biotics 4 oz. w/Spray Top Close Out Price | Q149: ABL SUPPLIES | R149: Silver Biotics 4 oz. | S149: 8 | V149: 0 | W149: 0
D150: Invoice | E150: 2012-04-05 | F150: 43406 | G150: 80 West Canyon Crest Road Alpine, UT 84004 | H150: 80 West Canyon Crest Road | J150: Alpine | K150: UT | L150: 84004 | O150: tim.matheney@dhl.com | P150: ASAP Health Max Gel 24 ppm 1.5 oz. | Q150: ABL SUPPLIES | R150: ASAP Health Max Gel 24 ppm 1.5 oz. | S150: 300 | V150: 0 | W150: 0
D151: Invoice | E151: 2012-04-05 | F151: 43407 | G151: 80 West Canyon Crest Road Alpine, UT 84004 | H151: 80 West Canyon Crest Road | J151: Alpine | K151: UT | L151: 84004 | O151: tim.matheney@dhl.com | P151: ASAP365 Silver Gel 1.5 oz. | Q151: ABL SUPPLIES | R151: ASAP365 Silver Gel 1.5 oz. | S151: 400 | V151: 0 | W151: 0
D152: Invoice | E152: 2012-04-09 | F152: 43441 | G152: 80 West Canyon Crest Road Alpine, UT 84004 | H152: 80 West Canyon Crest Road | J152: Alpine | K152: UT | L152: 84004 | O152: tim.matheney@dhl.com | P152: 8 oz.-w/Cap Silver Biotics 10 ppm | Q152: ABL SUPPLIES | R152: Silver Biotics 8 oz. | S152: 12 | V152: 0 | W152: =ROUND(W151+V152,5) -> 0
D153: Invoice | E153: 2012-04-11 | F153: 43489 | G153: 80 West Canyon Crest Road Alpine, UT 84004 | H153: 80 West Canyon Crest Road | J153: Alpine | K153: UT | L153: 84004 | O153: tim.matheney@dhl.com | P153: 8 oz.-w/Cap ASAP10 Silver Solution | Q153: ABL SUPPLIES | R153: ASAP 10ppm 8 oz. | S153: 50 | V153: 0 | W153: 0
D154: Invoice | E154: 2012-04-17 | F154: 43545 | G154: 80 West Canyon Crest Road Alpine, UT 84004 | H154: 80 West Canyon Crest Road | J154: Alpine | K154: UT | L154: 84004 | O154: tim.matheney@dhl.com | P154: 4 oz. w/Spray Top Silver Biotics 10 ppm | Q154: ABL SUPPLIES | R154: Silver Biotics 4 oz. | S154: 1 | V154: 0 | W154: 0
D155: Invoice | E155: 2012-04-26 | F155: 43690 | G155: 80 West Canyon Crest Road Alpine, UT 84004 | H155: 80 West Canyon Crest Road | J155: Alpine | K155: UT | L155: 84004 | O155: tim.matheney@dhl.com | P155: 4 oz. w/Spray Top Silver Biotics 10 ppm | Q155: ABL SUPPLIES | R155: Silver Biotics 4 oz. | S155: 12 | V155: 0 | W155: 0
D156: Invoice | E156: 2012-04-30 | F156: 43722 | G156: 80 West Canyon Crest Road Alpine, UT 84004 | H156: 80 West Canyon Crest Road | J156: Alpine | K156: UT | L156: 84004 | O156: tim.matheney@dhl.com | P156: 8 oz.-w/Cap ASAP Solution Plus 22 ppm | Q156: ABL SUPPLIES | R156: ASAP 22ppm 8 oz. | S156: 1 | V156: 0 | W156: 0
D157: Invoice | E157: 2012-04-30 | F157: 43728 | G157: 80 West Canyon Crest Road Alpine, UT 84004 | H157: 80 West Canyon Crest Road | J157: Alpine | K157: UT | L157: 84004 | O157: tim.matheney@dhl.com | P157: ASAP Health Max 30-16 oz. | Q157: ABL SUPPLIES | R157: ASAP Health Max 30 16 oz. | S157: 1 | V157: 0 | W157: 0
D158: Invoice | E158: 2012-05-02 | F158: 43774 | G158: 80 West Canyon Crest Road Alpine, UT 84004 | H158: 80 West Canyon Crest Road | J158: Alpine | K158: UT | L158: 84004 | O158: tim.matheney@dhl.com | P158: ASAP365 Silver Gel 4 oz. | Q158: ABL SUPPLIES | R158: ASAP365 Silver Gel 4 oz. | S158: 1 | V158: 0 | W158: 0
D159: Invoice | E159: 2012-05-02 | F159: 43782 | G159: 80 West Canyon Crest Road Alpine, UT 84004 | H159: 80 West Canyon Crest Road | J159: Alpine | K159: UT | L159: 84004 | O159: tim.matheney@dhl.com | P159: 4 oz. w/Spray Top Silver Biotics 10 ppm | Q159: ABL SUPPLIES | R159: Silver Biotics 4 oz. | S159: 1 | V159: 0 | W159: 0
D160: Invoice | E160: 2012-05-09 | F160: 43875 | G160: 80 West Canyon Crest Road Alpine, UT 84004 | H160: 80 West Canyon Crest Road | J160: Alpine | K160: UT | L160: 84004 | O160: tim.matheney@dhl.com | P160: 16 oz. W/Cap Silver Biotics 10 ppm | Q160: ABL SUPPLIES | R160: Silver Biotics 16 oz. | S160: 1 | V160: 0 | W160: 0
D161: Invoice | E161: 2012-05-21 | F161: 44035 | G161: 80 West Canyon Crest Road Alpine, UT 84004 | H161: 80 West Canyon Crest Road | J161: Alpine | K161: UT | L161: 84004 | O161: tim.matheney@dhl.com | P161: 8 oz.-w/Cap ASAP10 Silver Solution | Q161: ABL SUPPLIES | R161: ASAP 10ppm 8 oz. | S161: 6 | U161: 11.242 | V161: =ROUND(IF(ISNUMBER(U161), S161*U161, S161),5) -> 67.452 | W161: 67.452
D162: Invoice | E162: 2012-05-21 | F162: 44050 | G162: 80 West Canyon Crest Road Alpine, UT 84004 | H162: 80 West Canyon Crest Road | J162: Alpine | K162: UT | L162: 84004 | O162: tim.matheney@dhl.com | P162: 8 oz.-w/Cap ASAP10 Silver Solution | Q162: ABL SUPPLIES | R162: ASAP 10ppm 8 oz. | S162: 6 | U162: 11.242 | V162: =ROUND(IF(ISNUMBER(U162), S162*U162, S162),5) -> 67.452 | W162: 134.904
D163: Invoice | E163: 2012-05-22 | F163: 44063 | G163: 80 West Canyon Crest Road Alpine, UT 84004 | H163: 80 West Canyon Crest Road | J163: Alpine | K163: UT | L163: 84004 | O163: tim.matheney@dhl.com | P163: 4 oz. w/Spray Top Silver Biotics 10 ppm | Q163: ABL SUPPLIES | R163: Silver Biotics 4 oz. | S163: 1 | V163: 0 | W163: 134.904
D164: Invoice | E164: 2012-05-22 | F164: 44074 | G164: 80 West Canyon Crest Road Alpine, UT 84004 | H164: 80 West Canyon Crest Road | J164: Alpine | K164: UT | L164: 84004 | O164: tim.matheney@dhl.com | P164: ASAP365 Silver Gel 1.5 oz. | Q164: ABL SUPPLIES | R164: ASAP365 Silver Gel 1.5 oz. | S164: 50 | V164: 0 | W164: 134.904
D165: Invoice | E165: 2012-06-04 | F165: 44237 | G165: 80 West Canyon Crest Road Alpine, UT 84004 | H165: 80 West Canyon Crest Road | J165: Alpine | K165: UT | L165: 84004 | O165: tim.matheney@dhl.com | P165: 8 oz.-w/Cap ASAP Solution Plus 22 ppm | Q165: ABL SUPPLIES | R165: ASAP 22ppm 8 oz. | S165: 36 | U165: 0 | V165: =ROUND(IF(ISNUMBER(U165), S165*U165, S165),5) -> 0 | W165: 134.904
D166: Invoice | E166: 2012-06-05 | F166: 44262 | G166: 80 West Canyon Crest Road Alpine, UT 84004 | H166: 80 West Canyon Crest Road | J166: Alpine | K166: UT | L166: 84004 | O166: tim.matheney@dhl.com | P166: ASAP-AGX-32-Dental | Q166: ABL SUPPLIES | R166: ASAP-AGX-32-Dental | S166: 1 | V166: 0 | W166: 134.904
D167: Invoice | E167: 2012-06-07 | F167: 44310 | G167: 80 West Canyon Crest Road Alpine, UT 84004 | H167: 80 West Canyon Crest Road | J167: Alpine | K167: UT | L167: 84004 | O167: tim.matheney@dhl.com | P167: ASAP365 Silver Gel 1.5 oz. (SAMPLES) | Q167: ABL SUPPLIES | R167: ASAP365 Silver Gel 1.5 oz. | S167: 2 | V167: 0 | W167: 134.904
D168: Invoice | E168: 2012-06-07 | F168: 44315 | G168: 80 West Canyon Crest Road Alpine, UT 84004 | H168: 80 West Canyon Crest Road | J168: Alpine | K168: UT | L168: 84004 | O168: tim.matheney@dhl.com | P168: 8 oz.-w/Cap Silver Biotics 10 ppm | Q168: ABL SUPPLIES | R168: Silver Biotics 8 oz. | S168: 192 | V168: 0 | W168: 134.904
D169: Invoice | E169: 2012-06-11 | F169: 44375 | G169: 80 West Canyon Crest Road Alpine, UT 84004 | H169: 80 West Canyon Crest Road | J169: Alpine | K169: UT | L169: 84004 | O169: tim.matheney@dhl.com | P169: 16 oz. W/Cap Silver Biotics 10 ppm | Q169: ABL SUPPLIES | R169: Silver Biotics 16 oz. | S169: 3154 | V169: 0 | W169: 134.904
D170: Invoice | E170: 2012-06-11 | F170: 44376 | G170: 80 West Canyon Crest Road Alpine, UT 84004 | H170: 80 West Canyon Crest Road | J170: Alpine | K170: UT | L170: 84004 | O170: tim.matheney@dhl.com | P170: ASAP365 Silver Gel 4 oz. (SAMPLE) | Q170: ABL SUPPLIES | R170: ASAP365 Silver Gel 4 oz. | S170: 1 | V170: 0 | W170: 134.904
D171: Invoice | E171: 2012-06-13 | F171: 44405rv | G171: 80 West Canyon Crest Road Alpine, UT 84004 | H171: 80 West Canyon Crest Road | J171: Alpine | K171: UT | L171: 84004 | O171: tim.matheney@dhl.com | P171: ASAP365 Silver Gel 1.5 oz. | Q171: ABL SUPPLIES | R171: ASAP365 Silver Gel 1.5 oz. | S171: 4000 | V171: 0 | W171: 134.904
D172: Invoice | E172: 2012-06-18 | F172: 44484 | G172: 80 West Canyon Crest Road Alpine, UT 84004 | H172: 80 West Canyon Crest Road | J172: Alpine | K172: UT | L172: 84004 | O172: tim.matheney@dhl.com | P172: ASAP365 Silver Gel 4 oz. | Q172: ABL SUPPLIES | R172: ASAP365 Silver Gel 4 oz. | S172: 12 | V172: 0 | W172: 134.904
D173: Invoice | E173: 2012-06-20 | F173: 44514 | G173: 80 West Canyon Crest Road Alpine, UT 84004 | H173: 80 West Canyon Crest Road | J173: Alpine | K173: UT | L173: 84004 | O173: tim.matheney@dhl.com | P173: ASAP Health Max 10-8 oz. | Q173: ABL SUPPLIES | R173: ASAP Health Max 10 8 oz. | S173: 2688 | V173: 0 | W173: 134.904
D174: Invoice | E174: 2012-06-20 | F174: 44519 | G174: 80 West Canyon Crest Road Alpine, UT 84004 | H174: 80 West Canyon Crest Road | J174: Alpine | K174: UT | L174: 84004 | O174: tim.matheney@dhl.com | P174: 8 oz.-w/Cap Silver Biotics 10 ppm | Q174: ABL SUPPLIES | R174: Silver Biotics 8 oz. | S174: 6726 | V174: 0 | W174: 134.904
D175: Invoice | E175: 2012-06-25 | F175: 44593 | G175: 80 West Canyon Crest Road Alpine, UT 84004 | H175: 80 West Canyon Crest Road | J175: Alpine | K175: UT | L175: 84004 | O175: tim.matheney@dhl.com | P175: ASAP365 Silver Gel 4 oz. | Q175: ABL SUPPLIES | R175: ASAP365 Silver Gel 4 oz. | S175: 1559 | V175: 0 | W175: 134.904
D176: Invoice | E176: 2012-07-03 | F176: 44736 | G176: 80 West Canyon Crest Road Alpine, UT 84004 | H176: 80 West Canyon Crest Road | J176: Alpine | K176: UT | L176: 84004 | O176: tim.matheney@dhl.com | P176: 16 oz. W/Cap Silver Biotics 10 ppm | Q176: ABL SUPPLIES | R176: Silver Biotics 16 oz. | S176: 2 | V176: 0 | W176: 134.904
D177: Invoice | E177: 2012-07-03 | F177: 44737 | G177: 80 West Canyon Crest Road Alpine, UT 84004 | H177: 80 West Canyon Crest Road | J177: Alpine | K177: UT | L177: 84004 | O177: tim.matheney@dhl.com | P177: 16 oz. W/Cap Silver Biotics 10 ppm | Q177: ABL SUPPLIES | R177: Silver Biotics 16 oz. | S177: 1 | V177: 0 | W177: 134.904
D178: Invoice | E178: 2012-07-10 | F178: 44788 | G178: 80 West Canyon Crest Road Alpine, UT 84004 | H178: 80 West Canyon Crest Road | J178: Alpine | K178: UT | L178: 84004 | O178: tim.matheney@dhl.com | P178: ASAP365 Silver Gel 1.5 oz. | Q178: ABL SUPPLIES | R178: ASAP365 Silver Gel 1.5 oz. | S178: 2 | V178: 0 | W178: 134.904
D179: Invoice | E179: 2012-07-10 | F179: 44795 | G179: 80 West Canyon Crest Road Alpine, UT 84004 | H179: 80 West Canyon Crest Road | J179: Alpine | K179: UT | L179: 84004 | O179: tim.matheney@dhl.com | P179: ASAP Health Max 30-16 oz. | Q179: ABL SUPPLIES | R179: ASAP Health Max 30 16 oz. | S179: 1584 | V179: 0 | W179: 134.904
D180: Invoice | E180: 2012-07-10 | F180: 44799 | G180: 80 West Canyon Crest Road Alpine, UT 84004 | H180: 80 West Canyon Crest Road | J180: Alpine | K180: UT | L180: 84004 | O180: tim.matheney@dhl.com | P180: 8 oz.-w/Cap Silver Biotics 10 ppm | Q180: ABL SUPPLIES | R180: Silver Biotics 8 oz. | S180: 2 | V180: 0 | W180: 134.904
D181: Invoice | E181: 2012-07-11 | F181: 44813 | G181: 80 West Canyon Crest Road Alpine, UT 84004 | H181: 80 West Canyon Crest Road | J181: Alpine | K181: UT | L181: 84004 | O181: tim.matheney@dhl.com | P181: 8 oz.-w/Cap Silver Biotics 10 ppm (SAMPLE) | Q181: ABL SUPPLIES | R181: Silver Biotics 8 oz. | S181: 1 | V181: 0 | W181: 134.904
D182: Invoice | E182: 2012-07-11 | F182: 44814 | G182: 80 West Canyon Crest Road Alpine, UT 84004 | H182: 80 West Canyon Crest Road | J182: Alpine | K182: UT | L182: 84004 | O182: tim.matheney@dhl.com | P182: 8 oz.-w/Cap Silver Biotics 10 ppm (SAMPLE) | Q182: ABL SUPPLIES | R182: Silver Biotics 8 oz. | S182: 1 | V182: 0 | W182: 134.904
D183: Invoice | E183: 2012-07-16 | F183: 44855 | G183: 80 West Canyon Crest Road Alpine, UT 84004 | H183: 80 West Canyon Crest Road | J183: Alpine | K183: UT | L183: 84004 | O183: tim.matheney@dhl.com | P183: 16 oz. W/Cap Silver Biotics 10 ppm | Q183: ABL SUPPLIES | R183: Silver Biotics 16 oz. | S183: 1 | U183: 0 | V183: =ROUND(IF(ISNUMBER(U183), S183*U183, S183),5) -> 0 | W183: 134.904
D184: Invoice | E184: 2012-07-16 | F184: 44857 | G184: 80 West Canyon Crest Road Alpine, UT 84004 | H184: 80 West Canyon Crest Road | J184: Alpine | K184: UT | L184: 84004 | O184: tim.matheney@dhl.com | P184: 16 oz. W/Cap Silver Biotics 10 ppm | Q184: ABL SUPPLIES | R184: Silver Biotics 16 oz. | S184: 12 | U184: 0 | V184: =ROUND(IF(ISNUMBER(U184), S184*U184, S184),5) -> 0 | W184: =ROUND(W183+V184,5) -> 134.904
D185: Invoice | E185: 2012-07-25 | F185: 44949 | G185: 80 West Canyon Crest Road Alpine, UT 84004 | H185: 80 West Canyon Crest Road | J185: Alpine | K185: UT | L185: 84004 | O185: tim.matheney@dhl.com | P185: ASAP365 Silver Gel 4 oz. (SAMPLE) | Q185: ABL SUPPLIES | R185: ASAP365 Silver Gel 4 oz. | S185: 1 | V185: 0 | W185: 134.904
D186: Invoice | E186: 2012-07-26 | F186: 44991 | G186: 80 West Canyon Crest Road Alpine, UT 84004 | H186: 80 West Canyon Crest Road | J186: Alpine | K186: UT | L186: 84004 | O186: tim.matheney@dhl.com | P186: ASAP Health Max Gel 24 ppm 4 oz. | Q186: ABL SUPPLIES | R186: ASAP Health Max Gel 24 ppm 4 oz. | S186: 1681 | V186: 0 | W186: 134.904
D187: Invoice | E187: 2012-07-26 | F187: 44992 | G187: 80 West Canyon Crest Road Alpine, UT 84004 | H187: 80 West Canyon Crest Road | J187: Alpine | K187: UT | L187: 84004 | O187: tim.matheney@dhl.com | P187: ASAP365 Silver Gel 4 oz. | Q187: ABL SUPPLIES | R187: ASAP365 Silver Gel 4 oz. | S187: 5029 | V187: 0 | W187: 134.904
D188: Invoice | E188: 2012-07-26 | F188: 44998 | G188: 80 West Canyon Crest Road Alpine, UT 84004 | H188: 80 West Canyon Crest Road | J188: Alpine | K188: UT | L188: 84004 | O188: tim.matheney@dhl.com | P188: ASAP365 Silver Gel 4 oz. | Q188: ABL SUPPLIES | R188: ASAP365 Silver Gel 4 oz. | S188: 2800 | V188: 0 | W188: 134.904
D189: Invoice | E189: 2012-07-26 | F189: 45001 | G189: 80 West Canyon Crest Road Alpine, UT 84004 | H189: 80 West Canyon Crest Road | J189: Alpine | K189: UT | L189: 84004 | O189: tim.matheney@dhl.com | P189: ASAP365 Silver Gel 4 oz. (SAMPLES) | Q189: ABL SUPPLIES | R189: ASAP365 Silver Gel 4 oz. | S189: 4 | V189: 0 | W189: 134.904
D190: Invoice | E190: 2012-08-02 | F190: 45121 | G190: 80 West Canyon Crest Road Alpine, UT 84004 | H190: 80 West Canyon Crest Road | J190: Alpine | K190: UT | L190: 84004 | O190: tim.matheney@dhl.com | P190: 8 oz.-w/Cap ASAP10 Silver Solution | Q190: ABL SUPPLIES | R190: ASAP 10ppm 8 oz. | S190: 2 | V190: 0 | W190: 134.904
D191: Invoice | E191: 2012-08-03 | F191: 45147 | G191: 80 West Canyon Crest Road Alpine, UT 84004 | H191: 80 West Canyon Crest Road | J191: Alpine | K191: UT | L191: 84004 | O191: tim.matheney@dhl.com | P191: ASAP Health Max 30-16 oz. | Q191: ABL SUPPLIES | R191: ASAP Health Max 30 16 oz. | S191: 1 | V191: 0 | W191: 134.904
D192: Invoice | E192: 2012-08-06 | F192: 45160 | G192: 80 West Canyon Crest Road Alpine, UT 84004 | H192: 80 West Canyon Crest Road | J192: Alpine | K192: UT | L192: 84004 | O192: tim.matheney@dhl.com | P192: 4 oz. w/Spray Top Silver Biotics 10 ppm | Q192: ABL SUPPLIES | R192: Silver Biotics 4 oz. | S192: 1 | V192: 0 | W192: 134.904
D193: Invoice | E193: 2012-08-06 | F193: 45167 | G193: 80 West Canyon Crest Road Alpine, UT 84004 | H193: 80 West Canyon Crest Road | J193: Alpine | K193: UT | L193: 84004 | O193: tim.matheney@dhl.com | P193: 16 oz. W/Cap Silver Biotics 10 ppm | Q193: ABL SUPPLIES | R193: Silver Biotics 16 oz. | S193: 2412 | V193: 0 | W193: 134.904
D194: Invoice | E194: 2012-08-06 | F194: 45168 | G194: 80 West Canyon Crest Road Alpine, UT 84004 | H194: 80 West Canyon Crest Road | J194: Alpine | K194: UT | L194: 84004 | O194: tim.matheney@dhl.com | P194: 8 oz.-w/Cap Silver Biotics 10 ppm | Q194: ABL SUPPLIES | R194: Silver Biotics 8 oz. | S194: 12 | V194: 0 | W194: 134.904
D195: Invoice | E195: 2012-08-07 | F195: 45203 | G195: 80 West Canyon Crest Road Alpine, UT 84004 | H195: 80 West Canyon Crest Road | J195: Alpine | K195: UT | L195: 84004 | O195: tim.matheney@dhl.com | P195: ASAP Health Max 10-8 oz. | Q195: ABL SUPPLIES | R195: ASAP Health Max 10 8 oz. | S195: 1 | U195: 0 | V195: =ROUND(IF(ISNUMBER(U195), S195*U195, S195),5) -> 0 | W195: 134.904
D196: Invoice | E196: 2012-08-09 | F196: 45231 | G196: 80 West Canyon Crest Road Alpine, UT 84004 | H196: 80 West Canyon Crest Road | J196: Alpine | K196: UT | L196: 84004 | O196: tim.matheney@dhl.com | P196: 4 oz. w/Spray Top Silver Biotics 10 ppm | Q196: ABL SUPPLIES | R196: Silver Biotics 4 oz. | S196: 48 | V196: 0 | W196: 134.904
D197: Invoice | E197: 2012-08-14 | F197: 45311 | G197: 80 West Canyon Crest Road Alpine, UT 84004 | H197: 80 West Canyon Crest Road | J197: Alpine | K197: UT | L197: 84004 | O197: tim.matheney@dhl.com | P197: 16 oz. W/Cap Silver Biotics 10 ppm | Q197: ABL SUPPLIES | R197: Silver Biotics 16 oz. | S197: 9696 | V197: 0 | W197: 134.904
D198: Invoice | E198: 2012-08-15 | F198: 45314 | G198: 80 West Canyon Crest Road Alpine, UT 84004 | H198: 80 West Canyon Crest Road | J198: Alpine | K198: UT | L198: 84004 | O198: tim.matheney@dhl.com | P198: ASAP365 Silver Gel 4 oz. | Q198: ABL SUPPLIES | R198: ASAP365 Silver Gel 4 oz. | S198: 3510 | V198: 0 | W198: 134.904
D199: Invoice | E199: 2012-08-15 | F199: 45315 | G199: 80 West Canyon Crest Road Alpine, UT 84004 | H199: 80 West Canyon Crest Road | J199: Alpine | K199: UT | L199: 84004 | O199: tim.matheney@dhl.com | P199: ASAP365 Silver Gel 1.5 oz. | Q199: ABL SUPPLIES | R199: ASAP365 Silver Gel 1.5 oz. | S199: 2547 | V199: 0 | W199: 134.904
D200: Invoice | E200: 2012-08-20 | F200: 45380 | G200: 80 West Canyon Crest Road Alpine, UT 84004 | H200: 80 West Canyon Crest Road | J200: Alpine | K200: UT | L200: 84004 | O200: tim.matheney@dhl.com | P200: 16 oz. W/Cap Silver Biotics 10 ppm | Q200: ABL SUPPLIES | R200: Silver Biotics 16 oz. | S200: 6 | V200: 0 | W200: 134.904
D201: Invoice | E201: 2012-09-10 | F201: 45647 | G201: 80 West Canyon Crest Road Alpine, UT 84004 | H201: 80 West Canyon Crest Road | J201: Alpine | K201: UT | L201: 84004 | O201: tim.matheney@dhl.com | P201: ASAP Health Max 30-8oz. | Q201: ABL SUPPLIES | R201: ASAP Health Max 30 8 oz. | S201: 1 | U201: 0 | V201: =ROUND(IF(ISNUMBER(U201), S201*U201, S201),5) -> 0 | W201: 134.904
... 4299 more rows

Sheet Sheet2 (hidden)

Sheet Sheet3 (hidden)

Sheet TheList (hidden)
A2: 3 Rivers Health Center | B2: Silver Biotics 4 oz. , Silver Biotics 16 oz. | C2: 390 West 13th Street | D2: 208-523-3531 | E2: 3 Rivers Health Center | F2: , Silver Biotics 4 oz. , Silver Biotics 16 oz.
A3: A & S Natural Health | B3: Silver Biotics 4 oz. , Silver Biotics 16 oz., ASAP365 Silver Gel 4 oz. | C3: 1559 Hanes Mall Blvd. | D3: 336-774-8600 | E3: A & S Natural Health | F3: , Silver Biotics 4 oz. , Silver Biotics 16 oz., ASAP365 Silver Gel 4 oz.
A4: A Beautiful Face | B4: ASAP365 Silver Gel 4 oz. | C4: 792 South Main St | D4: 805-434-2961 | E4: A Beautiful Face | F4: , ASAP365 Silver Gel 4 oz.
A5: A Better Way Massage, LLC | B5: Silver Biotics 16 oz. | C5: PO Box 91 | D5: 360-389-0062 | E5: LLC A Better Way Massage | F5: , Silver Biotics 16 oz.
A6: A Better Way To Health | B6: Silver Biotics 16 oz., ASAP365 Silver Gel 1.5 oz. | C6: 76 Blake Road | D6: 603-679-9595 | E6: A Better Way To Health | F6: , Silver Biotics 16 oz., ASAP365 Silver Gel 1.5 oz.
A7: A Clear View | B7: Silver Biotics 16 oz., Silver Biotics 32 oz., ASAP365 Silver Gel 1.5 oz., ASAP365 Silver Gel 4 oz. | C7: 319 Thoroughbred Lane | E7: A Clear View | F7: , Silver Biotics 16 oz., Silver Biotics 32 oz., ASAP365 Silver Gel 1.5 oz., ASAP365 Silver Gel 4 oz.
A8: A Dezign | B8: Silver Biotics 4 oz. | C8: 5 West Hazel Drive | D8: 801-423-1234 | E8: A Dezign | F8: , Silver Biotics 4 oz.
A9: A Green Financial Group | B9: ASAP 10ppm 8 oz., ASAP365 Silver Gel 4 oz., ASAP 10ppm 8 oz. | C9: 10 N. Washington Street | D9: 734-485-7100 | E9: A Green Financial Group | F9: , ASAP 10ppm 8 oz., ASAP365 Silver Gel 4 oz., ASAP 10ppm 8 oz.
A10: A Health Forest | B10: Silver Biotics 16 oz., ASAP 22ppm 8 oz. | C10: PO Box 1748 | D10: 505-326-4190 | E10: A Health Forest | F10: , Silver Biotics 16 oz., ASAP 22ppm 8 oz.
A11: A Mother Nature Midwifery Care | B11: ASAP Health Max Gel 24 ppm 1.5 oz. | C11: 802 Fisher Rd | D11: 407-699-4207 | E11: A Mother Nature Midwifery Care | F11: , ASAP Health Max Gel 24 ppm 1.5 oz.
A12: A Natural Health Center | B12: Silver Biotics 16 oz. | C12: 1378 US Hwy. 64 | D12: 252-473-6060 | E12: A Natural Health Center | F12: , Silver Biotics 16 oz.
A13: A Nu You Wellness Center | B13: ASAP Health Max 10 16 oz., ASAP Health Max 30 16 oz. | C13: 8595 Plank Road | D13: 440-968-3995 | E13: A Nu You Wellness Center | F13: , ASAP Health Max 10 16 oz., ASAP Health Max 30 16 oz.
A14: A to Zinc Nutritional Shop | B14: Silver Biotics 16 oz., Silver Biotics 32 oz. | C14: 12130 US Highway 19 | D14: 727-861-2818 | E14: A to Zinc Nutritional Shop | F14: , Silver Biotics 16 oz., Silver Biotics 32 oz.
A15: A Touch of Relief Massage Therapy | B15: ASAP Health Max 10 16 oz., ASAP Health Max Gel 24 ppm 4 oz. | C15: 4747 W Water Ave #4009 | D15: 352-346-4497 | E15: A Touch of Relief Massage Therapy | F15: , ASAP Health Max 10 16 oz., ASAP Health Max Gel 24 ppm 4 oz.
A16: A1 Solutions | B16: Silver Biotics 16 oz. | C16: 832 Inchelium Hwy. | D16: 509-738-6574 | E16: A1 Solutions | F16: , Silver Biotics 16 oz.
A17: Abell MD, John | B17: ASAP365 Silver Gel 1.5 oz., ASAP365 Silver Gel 4 oz. | C17: 521 W. 3rd Ave. | D17: 229-888-0044 | E17: John Abell MD | F17: , ASAP365 Silver Gel 1.5 oz., ASAP365 Silver Gel 4 oz.
A18: ABL Asia Pte. Ltd. | B18: ASAP365 Silver Gel 1.5 oz. | C18: #10-126 TradeHub 21 | D18: (Tel) 67952039 | E18: ABL Asia Pte. Ltd. | F18: , ASAP365 Silver Gel 1.5 oz.
A19: ABL Medical, LLC | E19: LLC ABL Medical
A20: ABL Stock | B20: Silver Biotics 4 oz. , Silver Biotics 16 oz., Silver Biotics 32 oz., ASAP Health Max 10 8 oz., ASAP Health Max 10 16 oz., ASAP Health Max 30 8 oz., ASAP Health Max 30 16 oz., ASAP 22ppm 8 oz. | E20: ABL Stock | F20: , Silver Biotics 4 oz. , Silver Biotics 16 oz., Silver Biotics 32 oz., ASAP Health Max 10 8 oz., ASAP Health Max 10 16 oz., ASAP Health Max 30 8 oz., ASAP Health Max 30 16 oz., ASAP 22ppm 8 oz.
A21: ABL SUPPLIES | B21: Silver Biotics 4 oz. , ASAP 10ppm 8 oz., Silver Biotics 16 oz., Silver Biotics 32 oz., ASAP365 Silver Gel 1.5 oz., ASAP365 Silver Gel 4 oz., ASAP Health Max 10 8 oz., ASAP Health Max 30 8 oz., ASAP Health Max 30 16 oz., ASAP Health Max Gel 24 ppm 1.5 oz., ASAP Health Max Gel 24 ppm 4 oz., ASAP 22ppm 8 oz., ASAP 10ppm 8 oz., ASAP Solution 16 oz. | C21: 80 West Canyon Crest Road | E21: ABL SUPPLIES | F21: , Silver Biotics 4 oz. , ASAP 10ppm 8 oz., Silver Biotics 16 oz., Silver Biotics 32 oz., ASAP365 Silver Gel 1.5 oz., ASAP365 Silver Gel 4 oz., ASAP Health Max 10 8 oz., ASAP Health Max 30 8 oz., ASAP Health Max 30 16 oz., ASAP Health Max Gel 24 ppm 1.5 oz., ASAP Health Max Gel 24 ppm 4 oz., ASAP 22ppm 8 oz., ASAP 10ppm 8 oz., ASAP Solution 16 oz.
A22: Absolutely Best Health Food | C22: 1717 W Oak Ridge Rd | D22: 407-816-0191 | E22: Absolutely Best Health Food
A23: Abundant Life Store | B23: Silver Biotics 16 oz. | C23: 17345 Township Road 395 | D23: 740-8283797 | E23: Abundant Life Store | F23: , Silver Biotics 16 oz.
A24: Abundant Living | B24: Silver Biotics 16 oz. | C24: 11700 Wms Co Rd. 21 North | D24: 419-551-0123 | E24: Abundant Living | F24: , Silver Biotics 16 oz.
A25: Academy of Natural Therapies | B25: Silver Biotics 16 oz. | C25: 3106 State Hwy. A1A | D25: 561-929-9200 | E25: Academy of Natural Therapies | F25: , Silver Biotics 16 oz.
A26: Access Health Care | B26: ASAP365 Silver Gel 1.5 oz. | C26: 920 W Jefferson St | D26: 352-799-1935 | E26: Access Health Care | F26: , ASAP365 Silver Gel 1.5 oz.
A27: Accordino DC, Dr. Phillip F. | B27: ASAP Health Max 10 16 oz. | C27: 8565 Hidden Hills Drive | D27: 330-647-0396 | E27: Dr. Phillip F. Accordino DC | F27: , ASAP Health Max 10 16 oz.
A28: Active Chiropractic Clinic - IN | B28: ASAP365 Silver Gel 4 oz., ASAP Health Max 30 16 oz., ASAP Health Max Gel 24 ppm 4 oz. | C28: 5845 Sunnyside Rd. | D28: 317-826-2273 | E28: Active Chiropractic Clinic - IN | F28: , ASAP365 Silver Gel 4 oz., ASAP Health Max 30 16 oz., ASAP Health Max Gel 24 ppm 4 oz.
A29: Active Spine Center | B29: ASAP Health Max 30 16 oz. | C29: 5606 River Oaks Dr. | D29: 321-268-1999 | E29: Active Spine Center | F29: , ASAP Health Max 30 16 oz.
A30: Acupuncture Energetics. LLC | B30: Silver Biotics 4 oz. , Silver Biotics 16 oz., Silver Biotics 32 oz., ASAP365 Silver Gel 4 oz. | C30: 92 High Street box 3 | D30: 603-944-6550 | E30: Acupuncture Energetics. LLC | F30: , Silver Biotics 4 oz. , Silver Biotics 16 oz., Silver Biotics 32 oz., ASAP365 Silver Gel 4 oz.
A31: Acupunture Wellness Center | B31: ASAP Health Max 30 16 oz. | C31: 612 Wells Street Suite B | D31: 262-249-0770 | E31: Acupunture Wellness Center | F31: , ASAP Health Max 30 16 oz.
A32: Adams Distributing | B32: Silver Biotics 16 oz., ASAP365 Silver Gel 4 oz. | C32: 4341 S. 3720 W. | D32: 801-967-2846 | E32: Adams Distributing | F32: , Silver Biotics 16 oz., ASAP365 Silver Gel 4 oz.
A33: Adamson, Donna | B33: ASAP 22ppm 8 oz. | C33: 2734 Prestwick Drive | D33: 863-802-3596 | E33: Donna Adamson | F33: , ASAP 22ppm 8 oz.
A34: ADG Nutrition | B34: Silver Biotics 16 oz. | C34: 5916 Carpenter St | D34: 630-863-6131 | E34: ADG Nutrition | F34: , Silver Biotics 16 oz.
A35: Adler Ph.D., Dr. Ilene | B35: ASAP Health Max 30 8 oz., ASAP Health Max 30 16 oz. | C35: 829 NE 94th Street | D35: 206-525-6075 | E35: Dr. Ilene Adler Ph.D. | F35: , ASAP Health Max 30 8 oz., ASAP Health Max 30 16 oz.
A36: Advanced Chiropractic Concepts | B36: ASAP Health Max 30 8 oz. | C36: 2120 Grand Ave. Suite E | D36: 909-627-3404 | E36: Advanced Chiropractic Concepts | F36: , ASAP Health Max 30 8 oz.
A37: Advanced Family Wellness | B37: ASAP Health Max 10 8 oz., ASAP Health Max 30 8 oz., ASAP Health Max 30 16 oz. | C37: 1115 West Bay Dr. NW Suite 202 | D37: 360-570-8010 | E37: Advanced Family Wellness | F37: , ASAP Health Max 10 8 oz., ASAP Health Max 30 8 oz., ASAP Health Max 30 16 oz.
A38: Advanced Healing Institute | E38: Advanced Healing Institute
A39: Advanced Health | B39: ASAP Health Max Gel 24 ppm 1.5 oz. | C39: 9030 W. Fort Island Trail #10A | D39: 352-563-2597 | E39: Advanced Health | F39: , ASAP Health Max Gel 24 ppm 1.5 oz.
A40: Advanced Holistic Health LLC | B40: ASAP Health Max 10 8 oz., ASAP Health Max 30 8 oz., ASAP Health Max 30 16 oz. | C40: 1745 Camino Palmero St. Ste. 429 | D40: 424-202-1601 | E40: Advanced Holistic Health LLC | F40: , ASAP Health Max 10 8 oz., ASAP Health Max 30 8 oz., ASAP Health Max 30 16 oz.
A41: Advanced Medicine Alternatives, LTD | B41: ASAP Health Max Gel 24 ppm 4 oz. | C41: 11500 Hwy 7 Ste 204 | D41: 612-251-0247 | E41: LTD Advanced Medicine Alternatives | F41: , ASAP Health Max Gel 24 ppm 4 oz.
A42: Advanced Medicine and Longevity Center | B42: ASAP Health Max 30 16 oz. | C42: 6030 Bethelview Road, Suite 403 | D42: 770-205-6068 | E42: Advanced Medicine and Longevity Center | F42: , ASAP Health Max 30 16 oz.
A43: Advanced Pain Solutions | B43: ASAP Health Max 10 8 oz. | C43: 112 Portland Avenue | D43: 203-544-9090 | E43: Advanced Pain Solutions | F43: , ASAP Health Max 10 8 oz.
A44: Advanced Quantim Health LLC | B44: ASAP Health Max 30 16 oz. | C44: 107 West Washington Street | D44: 262-248-6888 | E44: Advanced Quantim Health LLC | F44: , ASAP Health Max 30 16 oz.
A45: Advanced Skin Center | B45: ASAP365 Silver Gel 4 oz. | C45: 1813 West Harvard Ave Ste 310 | D45: 541-440-6759 | E45: Advanced Skin Center | F45: , ASAP365 Silver Gel 4 oz.
A46: Advanced Wellness Center | B46: ASAP Health Max 10 8 oz., ASAP Health Max 30 8 oz. | C46: 6423 E. Pacific Coast Hwy. | D46: 562-795-6680 | E46: Advanced Wellness Center | F46: , ASAP Health Max 10 8 oz., ASAP Health Max 30 8 oz.
A47: Advantages Pharmacy | B47: ASAP Health Max 30 8 oz., ASAP Health Max Gel 24 ppm 1.5 oz. | C47: 2665 Royal Forest Dr. Ste. B-150 | D47: 281-359-3892 | E47: Advantages Pharmacy | F47: , ASAP Health Max 30 8 oz., ASAP Health Max Gel 24 ppm 1.5 oz.
A48: Adventura Laser & Electrolysis Spa | B48: ASAP Health Max 30 16 oz. | C48: 21414 W Dixie Hwy | D48: 305-792-9008 | E48: Adventura Laser & Electrolysis Spa | F48: , ASAP Health Max 30 16 oz.
A49: Age-less Acupuncture and Wellness Center | B49: ASAP Health Max 30 8 oz., ASAP Health Max Gel 24 ppm 4 oz. | C49: 5855 E. Naples Plaza Dr. Ste. 206 | D49: 562-434-2700 | E49: Age-less Acupuncture and Wellness Center | F49: , ASAP Health Max 30 8 oz., ASAP Health Max Gel 24 ppm 4 oz.
A50: Agren MD, Dr. Stuart | B50: ASAP Health Max 10 8 oz., ASAP Health Max Gel 24 ppm 1.5 oz. | C50: Suite 122 | D50: 877-276-3393 | E50: Dr. Stuart Agren MD | F50: , ASAP Health Max 10 8 oz., ASAP Health Max Gel 24 ppm 1.5 oz.
A51: Aguinaldo, Edgardo, M.D. | B51: ASAP Health Max 30 8 oz. | C51: PO Box 8017 | D51: 623-939-9871 | E51: Edgardo, M.D. Aguinaldo | F51: , ASAP Health Max 30 8 oz.
A52: Agwale, Simon | B52: ASAP 10ppm 8 oz., ASAP 10ppm 8 oz., ASAP Solution 16 oz. | C52: 4731 Thistle Hill Drive | D52: 410-814-8916 | E52: Simon Agwale | F52: , ASAP 10ppm 8 oz., ASAP 10ppm 8 oz., ASAP Solution 16 oz.
A53: Ailanto, LLC | B53: ASAP Health Max 10 8 oz. | C53: 3003 E 98th St., Suite 261 | D53: 317-708-3939 | E53: LLC Ailanto | F53: , ASAP Health Max 10 8 oz.
A54: Air Energy Systems & Services | B54: Silver Biotics 16 oz. | C54: PO Box 67818 | D54: 602-454-0210 | E54: Air Energy Systems & Services | F54: , Silver Biotics 16 oz.
A55: AJA Behavioral Health | B55: ASAP Health Max 30 16 oz. | C55: PO Box 146 | D55: 419-335-6122 | E55: AJA Behavioral Health | F55: , ASAP Health Max 30 16 oz.
A56: AK Chiropractic Center | B56: ASAP Health Max 10 8 oz. | C56: 1276-A Jungermann Road | D56: 636-922-9993 | E56: AK Chiropractic Center | F56: , ASAP Health Max 10 8 oz.
A57: Akahi Wellness | B57: Silver Biotics 4 oz. , ASAP Health Max 10 8 oz., ASAP Health Max 30 8 oz., ASAP Health Max 30 16 oz., ASAP Health Max Gel 24 ppm 1.5 oz. | C57: 4351 A Hana Hwy | D57: 808-248-8384 | E57: Akahi Wellness | F57: , Silver Biotics 4 oz. , ASAP Health Max 10 8 oz., ASAP Health Max 30 8 oz., ASAP Health Max 30 16 oz., ASAP Health Max Gel 24 ppm 1.5 oz.
A58: Alden, Rosemary | B58: ASAP Health Max 30 16 oz. | C58: 2212 Primrose Ln | D58: 541-997-4003 | E58: Rosemary Alden | F58: , ASAP Health Max 30 16 oz.
A59: Alexander Wellness | B59: Silver Biotics 16 oz. | C59: PO Box 656 | D59: 435-654-9246 | E59: Alexander Wellness | F59: , Silver Biotics 16 oz.
A60: Alexiades-Armenakas, Dr. | B60: ASAP365 Silver Gel 4 oz. | C60: 955 Park Avenue | D60: 212-570-2067 | E60: Dr. Alexiades-Armenakas | F60: , ASAP365 Silver Gel 4 oz.
A61: Alford, Kenneth L DMD | B61: ASAP Health Max 30 8 oz. | C61: 233 Farmers Lane | D61: 707-575-1900 | E61: Kenneth L DMD Alford | F61: , ASAP Health Max 30 8 oz.
A62: All American Chiropractic | B62: ASAP Health Max 30 8 oz. | C62: 115 S 15th Suite C | D62: 208-232-7558 | E62: All American Chiropractic | F62: , ASAP Health Max 30 8 oz.
A63: All Natural Health & Beauty Center | B63: Silver Biotics 16 oz., ASAP365 Silver Gel 1.5 oz., ASAP365 Silver Gel 4 oz. | C63: 101 E. College St. | D63: 864-963-2882 | E63: All Natural Health & Beauty Center | F63: , Silver Biotics 16 oz., ASAP365 Silver Gel 1.5 oz., ASAP365 Silver Gel 4 oz.
A64: All Pro Nutrition LLC | B64: Silver Biotics 4 oz. | C64: 286 Front Street | D64: 740-373-6991 | E64: All Pro Nutrition LLC | F64: , Silver Biotics 4 oz.
A65: All Total Health | E65: All Total Health
A66: Allan Hordal (Nutronix Int'l) | B66: ASAP365 Silver Gel 4 oz. | C66: 91 Dunlop St West | D66: 306-782-6813 | E66: Allan Hordal (Nutronix Int'l) | F66: , ASAP365 Silver Gel 4 oz.
A67: Allen Chiropractic Center | B67: ASAP Health Max 30 16 oz. | C67: 3917 East Pima St. | D67: 520-318-9841 | E67: Allen Chiropractic Center | F67: , ASAP Health Max 30 16 oz.
A68: Allen, David | B68: ASAP 22ppm 8 oz. | C68: 5744 Ash Street | D68: 951-360-6460 | E68: David Allen | F68: , ASAP 22ppm 8 oz.
A69: Allen, Jane | B69: ASAP 10ppm 8 oz., ASAP 10ppm 8 oz. | C69: 3425 Emanuel Church Road | D69: (704)279-7176 | E69: Jane Allen | F69: , ASAP 10ppm 8 oz., ASAP 10ppm 8 oz.
A70: Allen, John | B70: ASAP 10ppm 8 oz., ASAP365 Silver Gel 4 oz., ASAP 10ppm 8 oz. | C70: 16611 HIGHLAND VALLEY ROAD | D70: (760)789-3924 | E70: John Allen | F70: , ASAP 10ppm 8 oz., ASAP365 Silver Gel 4 oz., ASAP 10ppm 8 oz.
A71: Allen, Roger & Virginia | B71: ASAP 22ppm 8 oz. | C71: 9647 W. Pebble Brook Lane | D71: 208-853-3711 | E71: Roger & Virginia Allen | F71: , ASAP 22ppm 8 oz.
A72: Allied Health Association | E72: Allied Health Association
A73: Allongo, Jose | B73: ASAP Health Max 30 8 oz. | C73: 601 N Atlantic | D73: 561-790-5666 | E73: Jose Allongo | F73: , ASAP Health Max 30 8 oz.
A74: Almed, Inc. | B74: ASAP365 Silver Gel 4 oz. | C74: 1285 Denmark Dr. SW | D74: 770-923-7391 | E74: Inc. Almed | F74: , ASAP365 Silver Gel 4 oz.
A75: Almedia's Day Spa and Salon | B75: Silver Biotics 16 oz., ASAP365 Silver Gel 4 oz. | C75: 201 Harper Dr. | D75: 903-935-9511 | E75: Almedia's Day Spa and Salon | F75: , Silver Biotics 16 oz., ASAP365 Silver Gel 4 oz.
A76: Alpenglow Natural Foods | B76: Silver Biotics 16 oz., ASAP365 Silver Gel 1.5 oz., ASAP365 Silver Gel 4 oz. | C76: 109 E. Second St. | D76: 307-234-4196 | E76: Alpenglow Natural Foods | F76: , Silver Biotics 16 oz., ASAP365 Silver Gel 1.5 oz., ASAP365 Silver Gel 4 oz.
A77: Alpha Center of Renewal & Rejuvenation | E77: Alpha Center of Renewal & Rejuvenation
A78: Alpine Chiropractic Center | E78: Alpine Chiropractic Center
A79: Alpine Family Chiropractic and Nutrition | B79: ASAP365 Silver Gel 4 oz., ASAP Health Max 30 8 oz. | C79: 8585 Bobsled Train | D79: 303-838-7700 | E79: Alpine Family Chiropractic and Nutrition | F79: , ASAP365 Silver Gel 4 oz., ASAP Health Max 30 8 oz.
A80: Alternative Food Company | B80: ASAP Health Max 30 16 oz. | C80: 3107 26th St | D80: 806-747-8740 | E80: Alternative Food Company | F80: , ASAP Health Max 30 16 oz.
A81: Alternative Health Concepts | B81: ASAP Health Max 30 16 oz. | C81: PO BOX 753 | D81: 715-341-4949 | E81: Alternative Health Concepts | F81: , ASAP Health Max 30 16 oz.
A82: Alternative Health Concepts - Orange CA | B82: Silver Biotics 16 oz., Silver Biotics 32 oz., ASAP Health Max 10 16 oz., ASAP Health Max 30 16 oz. | C82: PO Box 18748 | D82: 714-397-4206 | E82: Alternative Health Concepts - Orange CA | F82: , Silver Biotics 16 oz., Silver Biotics 32 oz., ASAP Health Max 10 16 oz., ASAP Health Max 30 16 oz.
A83: Alternative Health Oasis | B83: ASAP Health Max 10 16 oz. | C83: 10223 Sawmill Pkwy. | D83: 614-717-9144 | E83: Alternative Health Oasis | F83: , ASAP Health Max 10 16 oz.
A84: Alternative Health Shoppe | B84: ASAP Health Max 30 8 oz., ASAP Health Max 30 16 oz. | C84: 4620 Colleyville Blvd | D84: 817-514-8055 | E84: Alternative Health Shoppe | F84: , ASAP Health Max 30 8 oz., ASAP Health Max 30 16 oz.
A85: Alternative In Healthcare | B85: Silver Biotics 16 oz., ASAP Health Max 10 16 oz., ASAP Health Max 30 16 oz. | C85: 168 Snead Dr | D85: 931-287-0386 | E85: Alternative In Healthcare | F85: , Silver Biotics 16 oz., ASAP Health Max 10 16 oz., ASAP Health Max 30 16 oz.
A86: Alternative Pet Marketing | B86: Silver Biotics 16 oz., Silver Biotics 32 oz., ASAP365 Silver Gel 1.5 oz. | C86: 235 East 9th Street | D86: 212-979-2532 | E86: Alternative Pet Marketing | F86: , Silver Biotics 16 oz., Silver Biotics 32 oz., ASAP365 Silver Gel 1.5 oz.
A87: Alternative Wellness | B87: Silver Biotics 16 oz. | C87: 155 Old Camargo Rd. | D87: 931-684-2301 | E87: Alternative Wellness | F87: , Silver Biotics 16 oz.
A88: Amadeus | B88: ASAP Health Max 30 16 oz., ASAP Health Max Gel 24 ppm 1.5 oz. | C88: 4465 Hills & Dales | E88: Amadeus | F88: , ASAP Health Max 30 16 oz., ASAP Health Max Gel 24 ppm 1.5 oz.
A89: AMARUKA USA | B89: ASAP Health Max 30 8 oz. | C89: 4779 Collins Ave | D89: (480) 381-1424 | E89: AMARUKA USA | F89: , ASAP Health Max 30 8 oz.
A90: Amazing Health | B90: Silver Biotics 4 oz. | C90: 2013 248th St | D90: 866-572-9457 | E90: Amazing Health | F90: , Silver Biotics 4 oz.
A91: Amazon Prosperity | E91: Amazon Prosperity
A92: Amdur, Latifa LAc | B92: ASAP Health Max 10 16 oz. | C92: 1031 Sarasota Circle | D92: 808-639-3305 | E92: Latifa LAc Amdur | F92: , ASAP Health Max 10 16 oz.
A93: American Civil Defense Association | B93: ASAP 22ppm 8 oz. | C93: 11576 State St. Unit 502 | D93: 800-425-5397 | E93: American Civil Defense Association | F93: , ASAP 22ppm 8 oz.
A94: Ammon Health Center | B94: Silver Biotics 16 oz. | C94: 5461 Scoresby Ave. | D94: 83427 | E94: Ammon Health Center | F94: , Silver Biotics 16 oz.
A95: Anacortes Health & Nutrition | B95: Silver Biotics 4 oz. | C95: 1020 7th Street | D95: 360-293-8849 | E95: Anacortes Health & Nutrition | F95: , Silver Biotics 4 oz.
A96: Ancient Art of Massage | B96: Silver Biotics 16 oz. | C96: 79 Colon Ave | D96: 904-806-6255 | E96: Ancient Art of Massage | F96: , Silver Biotics 16 oz.
A97: Anderson, David | B97: ASAP365 Silver Gel 4 oz. | C97: 7403 Northrup Drive | D97: 858-485-2705 | E97: David Anderson | F97: , ASAP365 Silver Gel 4 oz.
A98: Andes Country Store | B98: Silver Biotics 16 oz., ASAP365 Silver Gel 1.5 oz., ASAP365 Silver Gel 4 oz. | C98: 16590 120 First Road | D98: 620-221-3637 | E98: Andes Country Store | F98: , Silver Biotics 16 oz., ASAP365 Silver Gel 1.5 oz., ASAP365 Silver Gel 4 oz.
A99: Angie's World | B99: ASAP Health Max Gel 24 ppm 4 oz. | C99: Attn: Angie Lustick | D99: 951 522 6067 | E99: Angie's World | F99: , ASAP Health Max Gel 24 ppm 4 oz.
A100: Ankrum, Leigh DO | B100: ASAP Health Max 10 16 oz. | C100: 3523 South Trenton | D100: 918-743-1858 | E100: Leigh DO Ankrum | F100: , ASAP Health Max 10 16 oz.
A101: Ann's Health Food Store | B101: Silver Biotics 16 oz. | C101: 9800 Highway 107 | D101: 501-835-6415 | E101: Ann's Health Food Store | F101: , Silver Biotics 16 oz.
A102: Anthony's Health Hut | B102: Silver Biotics 4 oz. , Silver Biotics 16 oz., ASAP365 Silver Gel 4 oz. | C102: 5329 S. Florida Ave. | D102: 863-644-5330 | E102: Anthony's Health Hut | F102: , Silver Biotics 4 oz. , Silver Biotics 16 oz., ASAP365 Silver Gel 4 oz.
A103: Anthony, Karen1 | B103: ASAP 10ppm 8 oz., ASAP 10ppm 8 oz. | C103: 4930 Thomas Brook Lane | D103: 402-483-0440 | E103: Karen1 Anthony | F103: , ASAP 10ppm 8 oz., ASAP 10ppm 8 oz.
A104: Anti-Aging and Wellness Center | B104: ASAP Health Max 10 16 oz., ASAP Health Max Gel 24 ppm 1.5 oz. | C104: 4000 Stockdale Hwy, Suite D | D104: 661-325-7452 | E104: Anti-Aging and Wellness Center | F104: , ASAP Health Max 10 16 oz., ASAP Health Max Gel 24 ppm 1.5 oz.
A105: AP Birky | B105: Silver Biotics 4 oz. , Silver Biotics 16 oz. | C105: Unit 21-375 | D105: 949-230-8838 | E105: AP Birky | F105: , Silver Biotics 4 oz. , Silver Biotics 16 oz.
A106: Apache Chiropractic Clinic | B106: ASAP Health Max 30 8 oz. | C106: 2160 E. Brown Rd. Ste. 3 | D106: 480-834-7992 | E106: Apache Chiropractic Clinic | F106: , ASAP Health Max 30 8 oz.
A107: Apple A Day | B107: Silver Biotics 4 oz. , ASAP365 Silver Gel 1.5 oz., ASAP 22ppm 8 oz. | C107: #5 Beckworth Drive | D107: (864)244-8977 | E107: Apple A Day | F107: , Silver Biotics 4 oz. , ASAP365 Silver Gel 1.5 oz., ASAP 22ppm 8 oz.
A108: Apple A Day - OH | B108: Silver Biotics 4 oz. | C108: 600 S. Blanchard St | D108: 419-423-3973 | E108: Apple A Day - OH | F108: , Silver Biotics 4 oz.
A109: Apple A Day GA | E109: Apple A Day GA
A110: Apple A Day UT | E110: Apple A Day UT
A111: Apple Crate | B111: Silver Biotics 16 oz., ASAP365 Silver Gel 1.5 oz., ASAP365 Silver Gel 4 oz. | C111: 5430 Camden Rd. #103 | D111: 910-423-8800 | E111: Apple Crate | F111: , Silver Biotics 16 oz., ASAP365 Silver Gel 1.5 oz., ASAP365 Silver Gel 4 oz.
A112: Apple Crate - Raeford | B112: Silver Biotics 16 oz., ASAP365 Silver Gel 1.5 oz., ASAP365 Silver Gel 4 oz. | C112: 2711 Raeford Rd. #110 | D112: 910-426-7777 | E112: Apple Crate - Raeford | F112: , Silver Biotics 16 oz., ASAP365 Silver Gel 1.5 oz., ASAP365 Silver Gel 4 oz.
A113: Apple Tree Natural Foods | E113: Apple Tree Natural Foods
A114: Arcadia Chiropractic Clinic, Inc | B114: ASAP365 Silver Gel 1.5 oz. | C114: 936 North Mills Ave | D114: 863-494-7110 | E114: Inc Arcadia Chiropractic Clinic | F114: , ASAP365 Silver Gel 1.5 oz.
A115: Arizona Natural Health Service | B115: ASAP Health Max 10 16 oz., ASAP Health Max Gel 24 ppm 4 oz. | C115: 2640 W. Palomino Dr. | D115: 480-345-1163 | E115: Arizona Natural Health Service | F115: , ASAP Health Max 10 16 oz., ASAP Health Max Gel 24 ppm 4 oz.
A116: Arts District Healing Center | B116: Silver Biotics 4 oz. | C116: 620 E 1st Street | D116: 858-220-0286 | E116: Arts District Healing Center | F116: , Silver Biotics 4 oz.
A117: Ashley-Martin Manufacturing, LLC | E117: LLC Ashley-Martin Manufacturing
A118: ASN Health | B118: ASAP Health Max 10 8 oz. | C118: 3315 E Russell Rd Ste A-4219 | D118: 702-454-0015 | E118: ASN Health | F118: , ASAP Health Max 10 8 oz.
A119: Aspen Co-Pak | E119: Aspen Co-Pak
A120: Associated Healing Arts | B120: ASAP Health Max 10 16 oz. | C120: 109 Royal Pine Lane | D120: 317-770-0540 | E120: Associated Healing Arts | F120: , ASAP Health Max 10 16 oz.
A121: Astawan, Leanne | B121: ASAP Health Max Gel 24 ppm 1.5 oz. | C121: 191 King St South | D121: 519-578-4230 | E121: Leanne Astawan | F121: , ASAP Health Max Gel 24 ppm 1.5 oz.
A122: Athens Surgery Clinic | B122: Silver Biotics 16 oz., ASAP365 Silver Gel 4 oz., ASAP Health Max 10 16 oz. | C122: 1005 W. Madison Ave. | D122: 423-744-7540 | E122: Athens Surgery Clinic | F122: , Silver Biotics 16 oz., ASAP365 Silver Gel 4 oz., ASAP Health Max 10 16 oz.
A123: Atkins Pharmacy | B123: Silver Biotics 4 oz. , Silver Biotics 32 oz. | C123: 701 Third Street | D123: 830-693-2972 | E123: Atkins Pharmacy | F123: , Silver Biotics 4 oz. , Silver Biotics 32 oz.
A124: Auburn Nutrition | E124: Auburn Nutrition
A125: Australian Body Therapeutics | B125: ASAP365 Silver Gel 4 oz. | C125: 4010 East Ave. | D125: 925-667-0815 | E125: Australian Body Therapeutics | F125: , ASAP365 Silver Gel 4 oz.
A126: Avian & Feline Hospital | B126: Silver Biotics 16 oz. | C126: 3300 Hartzdale Dr Ste 108 | D126: 717-730-3755 | E126: Avian & Feline Hospital | F126: , Silver Biotics 16 oz.
A127: Axel Kraft International Limited | B127: ASAP365 Silver Gel 1.5 oz., ASAP365 Silver Gel 4 oz. | C127: 99 Engelhard Drive | D127: 905-841-6840 | E127: Axel Kraft International Limited | F127: , ASAP365 Silver Gel 1.5 oz., ASAP365 Silver Gel 4 oz.
A128: Azure Standard | B128: Silver Biotics 16 oz., ASAP365 Silver Gel 4 oz. | C128: 79709 Dufur Valley Road | D128: 541-467-2213 x29 | E128: Azure Standard | F128: , Silver Biotics 16 oz., ASAP365 Silver Gel 4 oz.
A129: B B Prop | B129: Silver Biotics 16 oz. | C129: PO Box 110 | D129: 608-691-2608 | E129: B B Prop | F129: , Silver Biotics 16 oz.
A130: Baar Products | B130: ASAP365 Silver Gel 1.5 oz. | C130: PO Box 60 | D130: 610-873-4591 | E130: Baar Products | F130: , ASAP365 Silver Gel 1.5 oz.
A131: Back LLC, Dr. Hillary | B131: ASAP Health Max 10 16 oz. | C131: 20 North 4th Street | D131: 970-963-6500 | E131: Dr. Hillary Back LLC | F131: , ASAP Health Max 10 16 oz.
A132: Back To Back Chiropractic | B132: ASAP Health Max 30 16 oz. | C132: 15615 North Oracle Road Ste. 135 | D132: 520-818-3774 | E132: Back To Back Chiropractic | F132: , ASAP Health Max 30 16 oz.
A133: Back to Basics | B133: ASAP Health Max 10 16 oz. | C133: 16119 McMullen Hwy. | D133: 301-729-9355 | E133: Back to Basics | F133: , ASAP Health Max 10 16 oz.
A134: Back To Eden Wellness Center | B134: ASAP Health Max 10 8 oz., ASAP Health Max 30 8 oz., ASAP Health Max 30 16 oz. | C134: 209 SW Federal Hwy | D134: 772-600-5815 | E134: Back To Eden Wellness Center | F134: , ASAP Health Max 10 8 oz., ASAP Health Max 30 8 oz., ASAP Health Max 30 16 oz.
A135: Back To Health Chiropractic | C135: 125 Horseshoe Lane | D135: 215-412-8081 | E135: Back To Health Chiropractic
A136: Back to Health Chiropractic - MI | B136: ASAP Health Max 10 16 oz., ASAP Health Max Gel 24 ppm 4 oz. | C136: 38165 Utica Rd | D136: 586-939-2040 | E136: Back to Health Chiropractic - MI | F136: , ASAP Health Max 10 16 oz., ASAP Health Max Gel 24 ppm 4 oz.
A137: Back To Health Chiropractic WY | B137: ASAP Health Max 30 8 oz., ASAP Health Max 30 16 oz., ASAP Health Max Gel 24 ppm 1.5 oz. | C137: 120 S Main St | D137: 307-787-6400 | E137: Back To Health Chiropractic WY | F137: , ASAP Health Max 30 8 oz., ASAP Health Max 30 16 oz., ASAP Health Max Gel 24 ppm 1.5 oz.
A138: Back to the Basics | B138: Silver Biotics 4 oz. | C138: 1603 Main Street SW Suite A | D138: 505-869-3901 | E138: Back to the Basics | F138: , Silver Biotics 4 oz.
A139: Bailey ND, Dr. Steven A | B139: Silver Biotics 16 oz. | C139: 1540 South E. Clinton Street | D139: 503-224-8083 | E139: Dr. Steven A Bailey ND | F139: , Silver Biotics 16 oz.
A140: Balance Chiropractic | B140: ASAP Health Max 10 16 oz. | C140: 477 NE Revere Ave. | D140: 541-383-5156 | E140: Balance Chiropractic | F140: , ASAP Health Max 10 16 oz.
A141: Balance For Health | E141: Balance For Health
A142: Balance Metabolic Evaluation Center | B142: ASAP Health Max 30 16 oz. | C142: 1627 Tillinghast Dr. | D142: 614-571-3151 | E142: Balance Metabolic Evaluation Center | F142: , ASAP Health Max 30 16 oz.
A143: Balance of Life | B143: ASAP Health Max 30 16 oz., ASAP Health Max Gel 24 ppm 4 oz. | C143: 3985 Medina Rd Ste 250 | D143: 330-764-4242 | E143: Balance of Life | F143: , ASAP Health Max 30 16 oz., ASAP Health Max Gel 24 ppm 4 oz.
A144: Banker Enterprises | B144: ASAP 10ppm 8 oz., ASAP 10ppm 8 oz. | C144: 10858 Hwy 55 | D144: 205-678-8105 | E144: Banker Enterprises | F144: , ASAP 10ppm 8 oz., ASAP 10ppm 8 oz.
A145: Barba, Brenda | E145: Brenda Barba
A146: Barnett, Paul | B146: ASAP365 Silver Gel 4 oz. | C146: 2060 Vallejo St. #3 | D146: 415-307-8491 | E146: Paul Barnett | F146: , ASAP365 Silver Gel 4 oz.
A147: Barrett, Pat | B147: Silver Biotics 16 oz., ASAP Solution 16 oz. | C147: 713 S. Wilson St. | D147: 618-439-6779 | E147: Pat Barrett | F147: , Silver Biotics 16 oz., ASAP Solution 16 oz.
A148: Barron, Ruth Ann ND | B148: ASAP Health Max 10 8 oz., ASAP Health Max 30 8 oz., ASAP Health Max 30 16 oz. | C148: 1940 Avenue Road | D148: 416-385-9277 | E148: Ruth Ann ND Barron | F148: , ASAP Health Max 10 8 oz., ASAP Health Max 30 8 oz., ASAP Health Max 30 16 oz.
A149: Bartlett, Katy | B149: ASAP Health Max 30 16 oz. | C149: 715 E. Hyman Ave. #18 | D149: 970-920-9798 | E149: Katy Bartlett | F149: , ASAP Health Max 30 16 oz.
A150: Baruch, Keith | B150: ASAP Health Max 10 16 oz. | C150: Unit 3 | D150: 303-638-3374 | E150: Keith Baruch | F150: , ASAP Health Max 10 16 oz.
A151: Basic Living Essentials | B151: Silver Biotics 16 oz., ASAP Health Max 10 8 oz., ASAP Health Max 10 16 oz., ASAP Health Max 30 16 oz. | C151: 73 Midwayroad | D151: 505-838-4071 | E151: Basic Living Essentials | F151: , Silver Biotics 16 oz., ASAP Health Max 10 8 oz., ASAP Health Max 10 16 oz., ASAP Health Max 30 16 oz.
A152: Baskin, Robert N MD | B152: ASAP Health Max 30 16 oz. | C152: 507 N Alexander St | D152: 813-754-3504 | E152: Robert N MD Baskin | F152: , ASAP Health Max 30 16 oz.
A153: Bassett's Health Food Store | B153: Silver Biotics 4 oz. , ASAP 10ppm 8 oz., ASAP 22ppm 8 oz., ASAP 10ppm 8 oz., ASAP Solution 16 oz. | C153: 3344 Secor | D153: (419)531-2911 | E153: Bassett's Health Food Store | F153: , Silver Biotics 4 oz. , ASAP 10ppm 8 oz., ASAP 22ppm 8 oz., ASAP 10ppm 8 oz., ASAP Solution 16 oz.
A154: Bates, Greg | B154: ASAP Health Max 10 8 oz. | C154: 115 E 2nd St. Suite #101 | D154: 714-544-3904 | E154: Greg Bates | F154: , ASAP Health Max 10 8 oz.
A155: Bathurst Dupont Animal Hospital | B155: ASAP Health Max 30 8 oz. | C155: 1012 Bathurst St. | D155: 416 588 3056 | E155: Bathurst Dupont Animal Hospital | F155: , ASAP Health Max 30 8 oz.
A156: Batson, Miller & Associates, LTD | B156: Silver Biotics 16 oz., ASAP Health Max Gel 24 ppm 4 oz. | C156: Ragoonath Kelly Village | D156: 868-222-8261 | E156: Miller & Associates, LTD Batson | F156: , Silver Biotics 16 oz., ASAP Health Max Gel 24 ppm 4 oz.
A157: Baucom Farms | B157: Silver Biotics 16 oz. | C157: 2218 Hwy 52 | D157: 208-642-4905 | E157: Baucom Farms | F157: , Silver Biotics 16 oz.
A158: Baughman, Evelyn | B158: Silver Biotics 32 oz., ASAP365 Silver Gel 4 oz. | C158: 18070 Highway 16 | D158: 225-698-3321 | E158: Evelyn Baughman | F158: , Silver Biotics 32 oz., ASAP365 Silver Gel 4 oz.
A159: Baum, Becky | E159: Becky Baum
A160: Bay Pharmacy | E160: Bay Pharmacy
A161: Be Healthy With Nurse Nancy | B161: ASAP Health Max 10 16 oz., ASAP Health Max 30 16 oz. | C161: 11130 W. Primrose Pl. | D161: 623-451-7416 | E161: Be Healthy With Nurse Nancy | F161: , ASAP Health Max 10 16 oz., ASAP Health Max 30 16 oz.
A162: Beaumont, Dr. Sue | B162: ASAP Health Max 30 8 oz. | C162: 12650 W Belmont Ave | D162: 303-972-3003 | E162: Dr. Sue Beaumont | F162: , ASAP Health Max 30 8 oz.
A163: Beaute Therapies | B163: ASAP Health Max 10 8 oz., ASAP Health Max 30 8 oz., ASAP Health Max 30 16 oz. | C163: 2511 South Dixie Hwy. | D163: 561-653-3399 | E163: Beaute Therapies | F163: , ASAP Health Max 10 8 oz., ASAP Health Max 30 8 oz., ASAP Health Max 30 16 oz.
A164: Beautiful Image | B164: ASAP Health Max 30 8 oz. | C164: 701 West Oakland Park Blvd. | D164: 954-535-5358 | E164: Beautiful Image | F164: , ASAP Health Max 30 8 oz.
A165: Beauty By Mary Schook, LLC | B165: Silver Biotics 4 oz. , ASAP365 Silver Gel 4 oz. | C165: 36 East 23rd Street 4th Floor | D165: 917-676-7464 | E165: LLC Beauty By Mary Schook | F165: , Silver Biotics 4 oz. , ASAP365 Silver Gel 4 oz.
A166: Becker, Marilynn | B166: ASAP Health Max Gel 24 ppm 4 oz. | C166: 147 North Flower St. | D166: 714-488-3240 | E166: Marilynn Becker | F166: , ASAP Health Max Gel 24 ppm 4 oz.
A167: Bee Happy Natural Foods | B167: Silver Biotics 16 oz., ASAP365 Silver Gel 1.5 oz., ASAP365 Silver Gel 4 oz. | C167: 2002 C Hwy 15 North | D167: 601-428-9708 | E167: Bee Happy Natural Foods | F167: , Silver Biotics 16 oz., ASAP365 Silver Gel 1.5 oz., ASAP365 Silver Gel 4 oz.
A168: Beem's Nutrition Chesterley | B168: Silver Biotics 16 oz., Silver Biotics 32 oz. | C168: 7611 Ryegrass Rd. | D168: cell: 509-961-4408 | E168: Beem's Nutrition Chesterley | F168: , Silver Biotics 16 oz., Silver Biotics 32 oz.
A169: Begin Healing INC. | B169: ASAP Health Max 30 16 oz. | C169: 2300 SW 11th St | D169: 218-327-0444 | E169: Begin Healing INC. | F169: , ASAP Health Max 30 16 oz.
A170: Bekermus DC, Dr. Ron | B170: ASAP Health Max 30 16 oz. | C170: 16 Louis Avenue | D170: 845-369-1310 | E170: Dr. Ron Bekermus DC | F170: , ASAP Health Max 30 16 oz.
A171: Belsher, Michelle RN | B171: ASAP Health Max 30 16 oz. | C171: 4 Old Sunset Rd | D171: 520-678-6086 | E171: Michelle RN Belsher | F171: , ASAP Health Max 30 16 oz.
A172: Benedict, Dr. Steve | B172: ASAP 22ppm 8 oz. | C172: 12340 Santa Monica Blvd. Ste. 300 | D172: 310-442-7697 | E172: Dr. Steve Benedict | F172: , ASAP 22ppm 8 oz.
A173: Berchtold Iridologist, Pam | B173: Silver Biotics 32 oz. | C173: 9 Redbrick Road | D173: 716-667-0030 | E173: Pam Berchtold Iridologist | F173: , Silver Biotics 32 oz.
A174: Berggren, Barbara | B174: Silver Biotics 16 oz., Silver Biotics 32 oz. | C174: 2028-16th Terrace NW | D174: 651-636-2805 | E174: Barbara Berggren | F174: , Silver Biotics 16 oz., Silver Biotics 32 oz.
A175: Bernstein, Debra M.D. | B175: ASAP Health Max 10 8 oz., ASAP Health Max 10 16 oz., ASAP Health Max 30 8 oz., ASAP Health Max 30 16 oz., ASAP Health Max Gel 24 ppm 4 oz. | C175: 5812 York Road | D175: 215-794-7880 | E175: Debra M.D. Bernstein | F175: , ASAP Health Max 10 8 oz., ASAP Health Max 10 16 oz., ASAP Health Max 30 8 oz., ASAP Health Max 30 16 oz., ASAP Health Max Gel 24 ppm 4 oz.
A176: Best of Health NY | B176: Silver Biotics 4 oz. , Silver Biotics 16 oz. | C176: 2840 Delaware Ave | D176: 716-874-6422 | E176: Best of Health NY | F176: , Silver Biotics 4 oz. , Silver Biotics 16 oz.
A177: Bethel Home | B177: Silver Biotics 16 oz., ASAP Health Max 10 16 oz. | C177: PO Box 391 | D177: 625-846-2186 | E177: Bethel Home | F177: , Silver Biotics 16 oz., ASAP Health Max 10 16 oz.
A178: Bethel Nutritional Consulting | B178: Silver Biotics 16 oz., ASAP365 Silver Gel 1.5 oz., ASAP365 Silver Gel 4 oz. | C178: 599 West 190th Street Ste.1 | D178: 212-568-5330 | E178: Bethel Nutritional Consulting | F178: , Silver Biotics 16 oz., ASAP365 Silver Gel 1.5 oz., ASAP365 Silver Gel 4 oz.
A179: Betsy's Health Foods | B179: Silver Biotics 4 oz. , Silver Biotics 16 oz., ASAP365 Silver Gel 1.5 oz., ASAP365 Silver Gel 4 oz., ASAP 22ppm 8 oz. | C179: 5730 Cypress Creek Pkwy | D179: 281-440-9081 | E179: Betsy's Health Foods | F179: , Silver Biotics 4 oz. , Silver Biotics 16 oz., ASAP365 Silver Gel 1.5 oz., ASAP365 Silver Gel 4 oz., ASAP 22ppm 8 oz.
A180: Better Health CR | B180: Silver Biotics 16 oz. | C180: 8741 County Rd. 25-2 | D180: 419-445-6405 | E180: Better Health CR | F180: , Silver Biotics 16 oz.
A181: Better Living | B181: Silver Biotics 16 oz. | C181: 19 Dinev Rd Unit 102 | D181: 845-248-6705 | E181: Better Living | F181: , Silver Biotics 16 oz.
A182: Bhutta, Joyce | B182: ASAP365 Silver Gel 4 oz. | C182: 9858 Gingerwood Dr | D182: 813-786-5781 | E182: Joyce Bhutta | F182: , ASAP365 Silver Gel 4 oz.
A183: Bi-Rite Medical | C183: 409 Broadway | D183: 307-362-6691 | E183: Bi-Rite Medical
A184: Biffert, Nancy CNA | B184: ASAP Health Max 10 8 oz., ASAP Health Max 30 8 oz., ASAP Health Max 30 16 oz., ASAP Health Max Gel 24 ppm 1.5 oz. | C184: E 2571 Birch Lane | D184: 715-256-0458 | E184: Nancy CNA Biffert | F184: , ASAP Health Max 10 8 oz., ASAP Health Max 30 8 oz., ASAP Health Max 30 16 oz., ASAP Health Max Gel 24 ppm 1.5 oz.
A185: Big John's Health Center | E185: Big John's Health Center
A186: Big Sky Eye Care | B186: Silver Biotics 16 oz., ASAP Health Max 30 8 oz. | C186: 820 West Main | D186: 406-363-2020 | E186: Big Sky Eye Care | F186: , Silver Biotics 16 oz., ASAP Health Max 30 8 oz.
A187: Big Sky Integrative Health | B187: ASAP Health Max 30 8 oz. | C187: 8707 N Jackrabbit Lane Ste.E | D187: 406-388-6676 | E187: Big Sky Integrative Health | F187: , ASAP Health Max 30 8 oz.
A188: Big Stone Chiropractic Health Center | B188: ASAP Health Max 30 16 oz. | C188: 16 Second Street NW | D188: 320-487-1010 | E188: Big Stone Chiropractic Health Center | F188: , ASAP Health Max 30 16 oz.
A189: Bilanxcode Functional Medicine | B189: ASAP Health Max 30 16 oz. | C189: 1076 West Side Dr | D189: 847-981-8803 | E189: Bilanxcode Functional Medicine | F189: , ASAP Health Max 30 16 oz.
A190: Billies Health Food Center | B190: Silver Biotics 16 oz. | C190: 313 S. Osage Ave. | D190: 918-336-8609 | E190: Billies Health Food Center | F190: , Silver Biotics 16 oz.
A191: Bingham's Whole Foods | B191: Silver Biotics 16 oz. | C191: 4380 W. 9600 N. | D191: 435-257-6878 | E191: Bingham's Whole Foods | F191: , Silver Biotics 16 oz.
A192: Binkowski, Dr. Norbert | B192: ASAP Health Max 10 8 oz. | C192: 2300 Carroll Lane | D192: 716-997-4875 | E192: Dr. Norbert Binkowski | F192: , ASAP Health Max 10 8 oz.
A193: Bio Harmonic Health | B193: ASAP Health Max 30 16 oz., ASAP Health Max Gel 24 ppm 1.5 oz. | C193: 8117 East Granada Rd | D193: 480-491-5573 | E193: Bio Harmonic Health | F193: , ASAP Health Max 30 16 oz., ASAP Health Max Gel 24 ppm 1.5 oz.
A194: Bio Medical/4 Life Research | E194: Bio Medical/4 Life Research
A195: BioEco/Karl Prazak | B195: ASAP 10ppm 8 oz., ASAP 22ppm 8 oz., ASAP 10ppm 8 oz. | C195: 9230 2nd Ave. SW Ste. 622-C | D195: 253-225-4437 | E195: BioEco/Karl Prazak | F195: , ASAP 10ppm 8 oz., ASAP 22ppm 8 oz., ASAP 10ppm 8 oz.
A196: Biofeed Back Health Awareness | B196: ASAP Health Max 10 8 oz., ASAP Health Max 30 8 oz., ASAP Health Max 30 16 oz. | C196: 104 Ronda Ann Lane | D196: 501-282-3427 | E196: Biofeed Back Health Awareness | F196: , ASAP Health Max 10 8 oz., ASAP Health Max 30 8 oz., ASAP Health Max 30 16 oz.
A197: Bioforce Nutria | B197: Silver Biotics 16 oz. | C197: 44056 Ginkgo Dr. | D197: 586-323-9287 | E197: Bioforce Nutria | F197: , Silver Biotics 16 oz.
A198: Biomat Wellness Center | B198: ASAP Health Max 10 8 oz., ASAP Health Max 30 8 oz., ASAP Health Max 30 16 oz. | C198: 118 Ross St. #9 | D198: 415-328-4618 | E198: Biomat Wellness Center | F198: , ASAP Health Max 10 8 oz., ASAP Health Max 30 8 oz., ASAP Health Max 30 16 oz.
A199: Biomechanics Clinic | B199: ASAP Health Max 30 16 oz. | C199: PO Box 367 | D199: 208-397-4156 | E199: Biomechanics Clinic | F199: , ASAP Health Max 30 16 oz.
A200: Bishop RN, Sally | B200: Silver Biotics 16 oz. | C200: 415 E. 85th Street, Suite J | D200: 212-988-6589 | E200: Sally Bishop RN | F200: , Silver Biotics 16 oz.
A201: Bisson Chiropractic | B201: ASAP Health Max 10 16 oz. | C201: 12256 State Line Road | D201: 913-345-9888 | E201: Bisson Chiropractic | F201: , ASAP Health Max 10 16 oz.
... 1596 more rows

Sheet Legend (hidden)
A1: Item | B1: Memo
A2: 10-04SB:10-04SB WS | B2: Silver Biotics 4 oz.
A3: 10-04SBOL | B3: Silver Biotics 4 oz.
A4: 10-08 R:10-08 FF | B4: ASAP 10ppm 8 oz.
A5: 10-08 SBR:10-08 SBWS | B5: Silver Biotics 8 oz.
A6: 10-16 ASAP | B6: ASAP Solution 16 oz.
A7: 10-16 ASAP R | B7: ASAP Solution 16 oz.
A8: 10-SB MP | B8: Silver Biotics 16 oz., Silver Biotics 08 oz., Silver Biotics 04 oz.
A9: 10-SB MP 2 | B9: Silver Biotics 16 oz., Silver Biotics 08 oz., Silver Biotics 04 oz., ASAP365 Silver Gel 1.5 oz., ASAP365 Silver Gel 4 oz.
A10: 14-04C | B10: ASAP Pet Shield Gel 4 oz.
A11: 22-08C WS | B11: ASAP 22ppm 8 oz.
A12: 24-USBC R1.5 oz.:24-USBC WS 1.5 oz. | B12: ASAP365 Silver Gel 1.5 oz.
A13: 24-USBCGel R | B13: ASAP365 Silver Gel 1.5 oz.
A14: 24-USBCGel R:24-USBC WS 4 oz. | B14: ASAP365 Silver Gel 4 oz.
A15: 30-08 C:30-08CWS | B15: ASAP Health Max 30 8 oz.
A16: 30-08 HM10 | B16: ASAP Health Max 10 8 oz.
A17: 30-16 C:30-16 WS | B17: ASAP Health Max 30 16 oz.
A18: 30-16 HM 10 WS | B18: ASAP Health Max 10 16 oz.
A19: 30-HCP MP | B19: ASAP Health Max 30 8 oz., ASAP Health Max 30 16 oz., ASAP Health Max 10 8 oz.,
A20: 32-AGX | B20: ASAP-AGX-32-Dental
A21: 32-AGX-D | B21: ASAP-AGX-32-Dental
A22: 24-HM Gel 1.5 oz. | B22: ASAP Health Max Gel 24 ppm 1.5 oz.
A23: 24-HM Gel 4 oz. | B23: ASAP Health Max Gel 24 ppm 4 oz.
A24: 10-16SB:10-16SB WS | B24: Silver Biotics 16 oz.
A25: 10-32 SB | B25: Silver Biotics 32 oz.
A26: 08S | B26: 8 oz.- Spray Nozzle MSRP $1.00
A27: 10-01 Gal | B27: One Gallon ASAP Solution-10 ppm
A28: 100390 | B28: 5 Gallon ASAP Solution 10 ppm
A29: 10-04ST PL | B29: 4 oz.-w/Spray Top Private Label 10 ppm Cobalt Blue Bottle HydroSol Silver Label with
A30: 10-05 Gal | B30: One 5 Gallon Bucket 10 ppm
A31: 10-08 Blank | B31: 8 oz. Bottle w/Cap 10 ppm
A32: 10-08 Blank | B32: 8 oz.-w/Cap Private Label 10 ppm Boston Round Bottle
A33: 10-08 R:10-08 PL | B33: 8 oz.-w/Cap Private Label 10 ppm Cobalt Blue Bottle
A34: 10-15 Gal | B34: One 15 Gallon Container 10 ppm
A35: 10-16PL | B35: 16 oz. Private Label 10 ppm
A36: 10-55 Gal | B36: One 55 Gallon Drum 10 ppm
A37: 12-08 PL | B37: 8 oz.-w/Cap Private Label Cobalt Blue Bottle 12 ppm
A38: 12-16 oz. PL | B38: 16 oz.-w/Cap Private Label Cobalt Blue Bottle 12 ppm
A39: 14-01 Gal | B39: One Gallon 14 ppm
A40: 14-08 PL | B40: 8 oz.-w/Cap 14 ppm
A41: 14-55 Gal | B41: One 55 Gallon Drum 14 ppm
A42: 22-03 PL | B42: 3.38 oz.- 22 ppm Gel/Private Label
A43: 22-55 Gel | B43: One 55 Gallon Drum 22 ppm Cosmetic Gel
A44: 24 -SG 5 Gal | B44: One 5 Gallon Bucket 24 PPM Cosmetic Spray Gel
A45: 24-04 Blank | B45: 24 ppm Gel 4 oz. Tube (Blank)
A46: 24-04 PL | B46: 4 oz. Tube 24 ppm Cosmetic Gel
A47: 24-04 SG | B47: 4 oz. No Label Cosmetic Spray Gel/W Spray Top
A48: 24-05 Bulk Gel | B48: Five Gallons of 24 ppm Gel
A49: 24-1.5 Blank | B49: 24 ppm Cosmetic Gel 1.5 oz. Tube
A50: 24-1.5-PL | B50: 1.5 oz. Tube 24 ppm
A51: 24-55 Gal | B51: 55 Gallon Drum 24 ppm USBC
A52: 30-01 Gal | B52: One Gallon ASAP Health Max 30
A53: 30-16PL | B53: 16 oz. w/Cap Private Label Cobalt Blue Bottle 30 ppm
A54: 30-55 Gal | B54: One 55 Gallon Drum 30 ppm
A55: 32-016S | B55: 16 oz Spray Top
A56: Advertising Credit | B56: Marketing (1.5) Program
A57: B1004 | B57: Silver Biotics/Ultimate Skin & Body Flyer
A58: Bank Fee | B58: Wire Fee
A59: Credit | B59: Adjustment
A60: F001 | B60: ASAP Solution Flyers
A61: F002 | B61: ASAP Solution Plus Flyers
A62: F004 | B62: ASAP Health Max 30/10 Flyers
A63: F009 | B63: ABL Folder
A64: LCN-4276 | B64: Silver Shield 18 ppm
A65: LCN-4277 | B65: Silver Shield 18 ppm - 16oz
A66: LCN-4950 | B66: Silver Shield Gel (3 oz.)
A67: LRU-4074 | B67: RU1 Colloidal Silver (14 ppm)
A68: LUA-4074 | B68: UA1 Colloidal Silver (14 ppm)
A69: LUS-4950 | B69: Silver Shield Gel (3 oz)
A70: Materials | B70: 8 oz. Silver Max Labels 16,500
A71: Materials Handling | B71: 2012 Franchise Convention Booth Fee
A72: Product Price ADJ | B72: Product Price Adjustment
A73: Spoils | B73: Spoils
A74: Vol Dis | B74: Volume Discount
A75: B1005 | B75: Silver Biotics/USBC Tri-Fold
A76: F007 | B76: ABL Difference Flyer
A77: DISCOUNT | B77: Direct
A78: BOGO | B78: BOGO
A79: Shipping | B79: Shipping to David Yaloz 1/17/2012
A80: Promo Discount | B80: Sale
A81: Intro Discount | B81: Introductory Sale
A82: Survey | B82: Survey Discount
A83: MP Discount | B83: MP Discount
A84: Shipping | B84: Shipping
A85: HCP Feb '12 | B85: HCP 20% Off
A86: F006 | B86: ASAP Health Max Tri-Fold
A87: BI DISCOUNT | B87: BUY-IN DISCOUNT
A88: 10-08 R:10-08 DP | B88: 8 oz.-w/Cap ASAP10 Silver Solution
A89: 10-08 R:10-08 DP | B89: 8 oz.-w/Cap ASAP Solution 10 PPM
A90: 10-08 R:10-08 DP | B90: 8 oz.-w/Cap ASAP10 Silver Solution (SAMPLE)
A91: F008 | B91: Rejuvenating the Skin - Selman Article
A92: COD Charge | B92: COD Charge
A93: 24-1.5 PL | B93: 1.5 oz. Tube 24 ppm Cosmetic Gel
A94: 10-08 SBR:10-08 BISB | B94: 8 oz.-w/Cap Silver Biotics 10 ppm
A95: 24-1.5 PL | B95: 1.5 oz. Tube 24 ppm
A96: LDO-4274 | B96: Silver Shield 18 ppm
A97: LUK-4274 | B97: Silver Shield 18 ppm
A98: LUS-4274 | B98: Silver Shield 18 ppm
A99: LUK-4950 | B99: Silver Shield Gel (3 oz)
A100: PL1-4276 | B100: Silver Shield 18 ppm

Sheet original (hidden)
D1: Type | E1: Date | F1: Num | G1: Name Address | H1: Name Street1 | I1: Name Street2 | J1: Name City | K1: Name State | L1: Name Zip | M1: Name Contact | N1: Name Phone # | O1: Name E-Mail | P1: Memo | Q1: Name | R1: Item | S1: Qty | T1: U/M | U1: Sales Price | V1: Amount | W1: Balance
B2: 3 Rivers Health Center
D3: Invoice | E3: 2012-08-13 | F3: 45274 | G3: 390 West 13th Street Idaho Falls, ID 83402 | H3: 390 West 13th Street | J3: Idaho Falls | K3: ID | L3: 83402 | M3: Randi | N3: 208-523-3531 | O3: 3rivershealthcenter@gmail.com | P3: MULTI-PACK #1 06-Silver Biotics 16 oz. 06-Silver Biotics 08 oz. 03-Silver Biotics 04 oz. ... | Q3: 3 Rivers Health Center | R3: 10-SB MP | S3: 1 | U3: 251.04 | V3: =ROUND(IF(ISNUMBER(U3), S3*U3, S3),5) -> 251.04 | W3: =ROUND(W2+V3,5) -> 251.04
D4: Invoice | E4: 2012-08-13 | F4: 45274 | G4: 390 West 13th Street Idaho Falls, ID 83402 | H4: 390 West 13th Street | J4: Idaho Falls | K4: ID | L4: 83402 | M4: Randi | N4: 208-523-3531 | O4: 3rivershealthcenter@gmail.com | P4: Sale | Q4: 3 Rivers Health Center | R4: Promo Discount | U4: -0.25 | V4: -62.76 | W4: 188.28
D5: Invoice | E5: 2012-08-13 | F5: 45274 | G5: 390 West 13th Street Idaho Falls, ID 83402 | H5: 390 West 13th Street | J5: Idaho Falls | K5: ID | L5: 83402 | M5: Randi | N5: 208-523-3531 | O5: 3rivershealthcenter@gmail.com | P5: Silver Biotics/USBC Tri-Fold | Q5: 3 Rivers Health Center | R5: B1005 | S5: 12 | U5: 0 | V5: =ROUND(IF(ISNUMBER(U5), S5*U5, S5),5) -> 0 | W5: 188.28
D6: Invoice | E6: 2012-08-13 | F6: 45274 | G6: 390 West 13th Street Idaho Falls, ID 83402 | H6: 390 West 13th Street | J6: Idaho Falls | K6: ID | L6: 83402 | M6: Randi | N6: 208-523-3531 | O6: 3rivershealthcenter@gmail.com | P6: ABL Difference Flyer | Q6: 3 Rivers Health Center | R6: F007 | S6: 12 | T6: ea | U6: 0 | V6: =ROUND(IF(ISNUMBER(U6), S6*U6, S6),5) -> 0 | W6: 188.28
D7: Invoice | E7: 2012-10-31 | F7: 46812 | G7: 390 West 13th Street Idaho Falls, ID 83402 | H7: 390 West 13th Street | J7: Idaho Falls | K7: ID | L7: 83402 | M7: Randi | N7: 208-523-3531 | O7: 3rivershealthcenter@gmail.com | P7: 4 oz. w/Spray Top Silver Biotics 10 ppm | Q7: 3 Rivers Health Center | R7: 10-04SB:10-04SB WS | S7: 6 | U7: 9.28 | V7: =ROUND(IF(ISNUMBER(U7), S7*U7, S7),5) -> 55.68 | W7: 243.96
D8: Invoice | E8: 2012-10-31 | F8: 46812 | G8: 390 West 13th Street Idaho Falls, ID 83402 | H8: 390 West 13th Street | J8: Idaho Falls | K8: ID | L8: 83402 | M8: Randi | N8: 208-523-3531 | O8: 3rivershealthcenter@gmail.com | P8: Direct | Q8: 3 Rivers Health Center | R8: DISCOUNT | U8: -0.15 | V8: -8.35 | W8: 235.61
D9: Invoice | E9: 2012-10-31 | F9: 46812 | G9: 390 West 13th Street Idaho Falls, ID 83402 | H9: 390 West 13th Street | J9: Idaho Falls | K9: ID | L9: 83402 | M9: Randi | N9: 208-523-3531 | O9: 3rivershealthcenter@gmail.com | P9: 8 oz.-w/Cap Silver Biotics 10 ppm | Q9: 3 Rivers Health Center | R9: 10-08 SBR:10-08 SBWS | S9: 12 | U9: 15.5 | V9: =ROUND(IF(ISNUMBER(U9), S9*U9, S9),5) -> 186 | W9: 421.61
D10: Invoice | E10: 2012-10-31 | F10: 46812 | G10: 390 West 13th Street Idaho Falls, ID 83402 | H10: 390 West 13th Street | J10: Idaho Falls | K10: ID | L10: 83402 | M10: Randi | N10: 208-523-3531 | O10: 3rivershealthcenter@gmail.com | P10: Sale | Q10: 3 Rivers Health Center | R10: Promo Discount | U10: -0.25 | V10: -46.5 | W10: 375.11
D11: Invoice | E11: 2012-10-31 | F11: 46812 | G11: 390 West 13th Street Idaho Falls, ID 83402 | H11: 390 West 13th Street | J11: Idaho Falls | K11: ID | L11: 83402 | M11: Randi | N11: 208-523-3531 | O11: 3rivershealthcenter@gmail.com | P11: Silver Biotics/USBC Tri-Fold | Q11: 3 Rivers Health Center | R11: B1005 | S11: 24 | U11: 0 | V11: =ROUND(IF(ISNUMBER(U11), S11*U11, S11),5) -> 0 | W11: 375.11
D12: Invoice | E12: 2012-10-31 | F12: 46812 | G12: 390 West 13th Street Idaho Falls, ID 83402 | H12: 390 West 13th Street | J12: Idaho Falls | K12: ID | L12: 83402 | M12: Randi | N12: 208-523-3531 | O12: 3rivershealthcenter@gmail.com | P12: ABL Difference Flyer | Q12: 3 Rivers Health Center | R12: F007 | S12: 24 | T12: ea | U12: 0 | V12: =ROUND(IF(ISNUMBER(U12), S12*U12, S12),5) -> 0 | W12: 375.11
B13: Total 3 Rivers Health Center | S13: =ROUND(SUM(S2:S12),5) -> 91 | V13: =ROUND(SUM(V2:V12),5) -> 375.11 | W13: =W12 -> 375.11
B14: A & S Natural Health
D15: Invoice | E15: 2012-01-05 | F15: 41547 | G15: 1559 Hanes Mall Blvd. Winston Salem, NC 27103 | H15: 1559 Hanes Mall Blvd. | J15: Winston Salem | K15: NC | L15: 27103 | N15: 336-774-8600 | P15: 16 oz. W/Cap Silver Biotics 10 ppm | Q15: A & S Natural Health | R15: 10-16SB:10-16SB WS | S15: 12 | U15: 21.7 | V15: =ROUND(IF(ISNUMBER(U15), S15*U15, S15),5) -> 260.4 | W15: =ROUND(W14+V15,5) -> 260.4
D16: Invoice | E16: 2012-01-05 | F16: 41547 | G16: 1559 Hanes Mall Blvd. Winston Salem, NC 27103 | H16: 1559 Hanes Mall Blvd. | J16: Winston Salem | K16: NC | L16: 27103 | N16: 336-774-8600 | P16: Direct | Q16: A & S Natural Health | R16: DISCOUNT | U16: -0.15 | V16: -39.06 | W16: 221.34
D17: Invoice | E17: 2012-01-05 | F17: 41547 | G17: 1559 Hanes Mall Blvd. Winston Salem, NC 27103 | H17: 1559 Hanes Mall Blvd. | J17: Winston Salem | K17: NC | L17: 27103 | N17: 336-774-8600 | P17: ASAP Ultimate Skin & Body Care 1.5 oz. | Q17: A & S Natural Health | R17: 24-USBC R1.5 oz.:24-USBC WS 1.5 oz. | S17: 12 | U17: 6.2 | V17: =ROUND(IF(ISNUMBER(U17), S17*U17, S17),5) -> 74.4 | W17: 295.74
D18: Invoice | E18: 2012-01-05 | F18: 41547 | G18: 1559 Hanes Mall Blvd. Winston Salem, NC 27103 | H18: 1559 Hanes Mall Blvd. | J18: Winston Salem | K18: NC | L18: 27103 | N18: 336-774-8600 | P18: Direct | Q18: A & S Natural Health | R18: DISCOUNT | U18: -0.15 | V18: -11.16 | W18: 284.58
D19: Invoice | E19: 2012-01-05 | F19: 41547 | G19: 1559 Hanes Mall Blvd. Winston Salem, NC 27103 | H19: 1559 Hanes Mall Blvd. | J19: Winston Salem | K19: NC | L19: 27103 | N19: 336-774-8600 | P19: ASAP Ultimate Skin & Body Care 4 oz. WS | Q19: A & S Natural Health | R19: 24-USBCGel R:24-USBC WS 4 oz. | S19: 12 | U19: 14.84 | V19: =ROUND(IF(ISNUMBER(U19), S19*U19, S19),5) -> 178.08 | W19: 462.66
D20: Invoice | E20: 2012-01-05 | F20: 41547 | G20: 1559 Hanes Mall Blvd. Winston Salem, NC 27103 | H20: 1559 Hanes Mall Blvd. | J20: Winston Salem | K20: NC | L20: 27103 | N20: 336-774-8600 | P20: Direct | Q20: A & S Natural Health | R20: DISCOUNT | U20: -0.15 | V20: -26.71 | W20: 435.95
D21: Invoice | E21: 2012-01-05 | F21: 41547 | G21: 1559 Hanes Mall Blvd. Winston Salem, NC 27103 | H21: 1559 Hanes Mall Blvd. | J21: Winston Salem | K21: NC | L21: 27103 | N21: 336-774-8600 | P21: Silver Biotics/USBC Tri-Fold | Q21: A & S Natural Health | R21: B1005 | S21: 36 | U21: 0 | V21: =ROUND(IF(ISNUMBER(U21), S21*U21, S21),5) -> 0 | W21: 435.95
D22: Invoice | E22: 2012-01-18 | F22: 41751 | G22: 1559 Hanes Mall Blvd. Winston Salem, NC 27103 | H22: 1559 Hanes Mall Blvd. | J22: Winston Salem | K22: NC | L22: 27103 | N22: 336-774-8600 | P22: 4 oz. w/Spray Top Silver Biotics 10 ppm | Q22: A & S Natural Health | R22: 10-04SB:10-04SB WS | S22: 12 | U22: 9.28 | V22: =ROUND(IF(ISNUMBER(U22), S22*U22, S22),5) -> 111.36 | W22: 547.31
D23: Invoice | E23: 2012-01-18 | F23: 41751 | G23: 1559 Hanes Mall Blvd. Winston Salem, NC 27103 | H23: 1559 Hanes Mall Blvd. | J23: Winston Salem | K23: NC | L23: 27103 | N23: 336-774-8600 | P23: Direct | Q23: A & S Natural Health | R23: DISCOUNT | U23: -0.15 | V23: -16.7 | W23: 530.61
D24: Invoice | E24: 2012-01-18 | F24: 41751 | G24: 1559 Hanes Mall Blvd. Winston Salem, NC 27103 | H24: 1559 Hanes Mall Blvd. | J24: Winston Salem | K24: NC | L24: 27103 | N24: 336-774-8600 | P24: ASAP Ultimate Skin & Body Care 1.5 oz. | Q24: A & S Natural Health | R24: 24-USBC R1.5 oz.:24-USBC WS 1.5 oz. | S24: 12 | U24: 6.2 | V24: =ROUND(IF(ISNUMBER(U24), S24*U24, S24),5) -> 74.4 | W24: 605.01
D25: Invoice | E25: 2012-01-18 | F25: 41751 | G25: 1559 Hanes Mall Blvd. Winston Salem, NC 27103 | H25: 1559 Hanes Mall Blvd. | J25: Winston Salem | K25: NC | L25: 27103 | N25: 336-774-8600 | P25: Direct | Q25: A & S Natural Health | R25: DISCOUNT | U25: -0.15 | V25: -11.16 | W25: 593.85
D26: Invoice | E26: 2012-01-18 | F26: 41751 | G26: 1559 Hanes Mall Blvd. Winston Salem, NC 27103 | H26: 1559 Hanes Mall Blvd. | J26: Winston Salem | K26: NC | L26: 27103 | N26: 336-774-8600 | P26: Silver Biotics/USBC Tri-Fold | Q26: A & S Natural Health | R26: B1005 | S26: 24 | U26: 0 | V26: =ROUND(IF(ISNUMBER(U26), S26*U26, S26),5) -> 0 | W26: 593.85
D27: Invoice | E27: 2012-03-02 | F27: 42608 | G27: 1559 Hanes Mall Blvd. Winston Salem, NC 27103 | H27: 1559 Hanes Mall Blvd. | J27: Winston Salem | K27: NC | L27: 27103 | N27: 336-774-8600 | P27: 4 oz. w/Spray Top Silver Biotics 10 ppm | Q27: A & S Natural Health | R27: 10-04SB:10-04SB WS | S27: 12 | U27: 9.28 | V27: =ROUND(IF(ISNUMBER(U27), S27*U27, S27),5) -> 111.36 | W27: 705.21
D28: Invoice | E28: 2012-03-02 | F28: 42608 | G28: 1559 Hanes Mall Blvd. Winston Salem, NC 27103 | H28: 1559 Hanes Mall Blvd. | J28: Winston Salem | K28: NC | L28: 27103 | N28: 336-774-8600 | P28: Sale | Q28: A & S Natural Health | R28: Promo Discount | U28: -0.25 | V28: -27.84 | W28: 677.37
D29: Invoice | E29: 2012-03-02 | F29: 42608 | G29: 1559 Hanes Mall Blvd. Winston Salem, NC 27103 | H29: 1559 Hanes Mall Blvd. | J29: Winston Salem | K29: NC | L29: 27103 | N29: 336-774-8600 | P29: 8 oz.-w/Cap Silver Biotics 10 ppm | Q29: A & S Natural Health | R29: 10-08 SBR:10-08 SBWS | S29: 12 | U29: 15.5 | V29: =ROUND(IF(ISNUMBER(U29), S29*U29, S29),5) -> 186 | W29: 863.37
D30: Invoice | E30: 2012-03-02 | F30: 42608 | G30: 1559 Hanes Mall Blvd. Winston Salem, NC 27103 | H30: 1559 Hanes Mall Blvd. | J30: Winston Salem | K30: NC | L30: 27103 | N30: 336-774-8600 | P30: Sale | Q30: A & S Natural Health | R30: Promo Discount | U30: -0.25 | V30: -46.5 | W30: 816.87
D31: Invoice | E31: 2012-03-02 | F31: 42608 | G31: 1559 Hanes Mall Blvd. Winston Salem, NC 27103 | H31: 1559 Hanes Mall Blvd. | J31: Winston Salem | K31: NC | L31: 27103 | N31: 336-774-8600 | P31: 16 oz. W/Cap Silver Biotics 10 ppm | Q31: A & S Natural Health | R31: 10-16SB:10-16SB WS | S31: 12 | U31: 21.7 | V31: =ROUND(IF(ISNUMBER(U31), S31*U31, S31),5) -> 260.4 | W31: 1077.27
D32: Invoice | E32: 2012-03-02 | F32: 42608 | G32: 1559 Hanes Mall Blvd. Winston Salem, NC 27103 | H32: 1559 Hanes Mall Blvd. | J32: Winston Salem | K32: NC | L32: 27103 | N32: 336-774-8600 | P32: Sale | Q32: A & S Natural Health | R32: Promo Discount | U32: -0.25 | V32: -65.1 | W32: 1012.17
D33: Invoice | E33: 2012-03-02 | F33: 42608 | G33: 1559 Hanes Mall Blvd. Winston Salem, NC 27103 | H33: 1559 Hanes Mall Blvd. | J33: Winston Salem | K33: NC | L33: 27103 | N33: 336-774-8600 | P33: ASAP Ultimate Skin & Body Care 4 oz. WS | Q33: A & S Natural Health | R33: 24-USBCGel R:24-USBC WS 4 oz. | S33: 12 | U33: 14.84 | V33: =ROUND(IF(ISNUMBER(U33), S33*U33, S33),5) -> 178.08 | W33: 1190.25
D34: Invoice | E34: 2012-03-02 | F34: 42608 | G34: 1559 Hanes Mall Blvd. Winston Salem, NC 27103 | H34: 1559 Hanes Mall Blvd. | J34: Winston Salem | K34: NC | L34: 27103 | N34: 336-774-8600 | P34: Sale | Q34: A & S Natural Health | R34: Promo Discount | U34: -0.25 | V34: -44.52 | W34: 1145.73
D35: Invoice | E35: 2012-03-02 | F35: 42608 | G35: 1559 Hanes Mall Blvd. Winston Salem, NC 27103 | H35: 1559 Hanes Mall Blvd. | J35: Winston Salem | K35: NC | L35: 27103 | N35: 336-774-8600 | P35: Silver Biotics/USBC Tri-Fold | Q35: A & S Natural Health | R35: B1005 | S35: 48 | U35: 0 | V35: =ROUND(IF(ISNUMBER(U35), S35*U35, S35),5) -> 0 | W35: 1145.73
D36: Invoice | E36: 2012-03-26 | F36: 43123 | G36: 1559 Hanes Mall Blvd. Winston Salem, NC 27103 | H36: 1559 Hanes Mall Blvd. | J36: Winston Salem | K36: NC | L36: 27103 | N36: 336-774-8600 | P36: 16 oz. W/Cap Silver Biotics 10 ppm | Q36: A & S Natural Health | R36: 10-16SB:10-16SB WS | S36: 12 | U36: 21.7 | V36: =ROUND(IF(ISNUMBER(U36), S36*U36, S36),5) -> 260.4 | W36: 1406.13
D37: Invoice | E37: 2012-03-26 | F37: 43123 | G37: 1559 Hanes Mall Blvd. Winston Salem, NC 27103 | H37: 1559 Hanes Mall Blvd. | J37: Winston Salem | K37: NC | L37: 27103 | N37: 336-774-8600 | P37: Sale | Q37: A & S Natural Health | R37: Promo Discount | U37: -0.25 | V37: -65.1 | W37: 1341.03
D38: Invoice | E38: 2012-03-26 | F38: 43123 | G38: 1559 Hanes Mall Blvd. Winston Salem, NC 27103 | H38: 1559 Hanes Mall Blvd. | J38: Winston Salem | K38: NC | L38: 27103 | N38: 336-774-8600 | P38: Silver Biotics/USBC Tri-Fold | Q38: A & S Natural Health | R38: B1005 | S38: 12 | U38: 0 | V38: =ROUND(IF(ISNUMBER(U38), S38*U38, S38),5) -> 0 | W38: 1341.03
D39: Invoice | E39: 2012-04-17 | F39: 43541 | G39: 1559 Hanes Mall Blvd. Winston Salem, NC 27103 | H39: 1559 Hanes Mall Blvd. | J39: Winston Salem | K39: NC | L39: 27103 | N39: 336-774-8600 | P39: 4 oz. w/Spray Top Silver Biotics 10 ppm | Q39: A & S Natural Health | R39: 10-04SB:10-04SB WS | S39: 12 | U39: 9.28 | V39: =ROUND(IF(ISNUMBER(U39), S39*U39, S39),5) -> 111.36 | W39: 1452.39
D40: Invoice | E40: 2012-04-17 | F40: 43541 | G40: 1559 Hanes Mall Blvd. Winston Salem, NC 27103 | H40: 1559 Hanes Mall Blvd. | J40: Winston Salem | K40: NC | L40: 27103 | N40: 336-774-8600 | P40: Direct | Q40: A & S Natural Health | R40: DISCOUNT | U40: -0.15 | V40: -16.7 | W40: 1435.69
D41: Invoice | E41: 2012-04-17 | F41: 43541 | G41: 1559 Hanes Mall Blvd. Winston Salem, NC 27103 | H41: 1559 Hanes Mall Blvd. | J41: Winston Salem | K41: NC | L41: 27103 | N41: 336-774-8600 | P41: 16 oz. W/Cap Silver Biotics 10 ppm | Q41: A & S Natural Health | R41: 10-16SB:10-16SB WS | S41: 12 | U41: 21.7 | V41: =ROUND(IF(ISNUMBER(U41), S41*U41, S41),5) -> 260.4 | W41: 1696.09
D42: Invoice | E42: 2012-04-17 | F42: 43541 | G42: 1559 Hanes Mall Blvd. Winston Salem, NC 27103 | H42: 1559 Hanes Mall Blvd. | J42: Winston Salem | K42: NC | L42: 27103 | N42: 336-774-8600 | P42: Direct | Q42: A & S Natural Health | R42: DISCOUNT | U42: -0.15 | V42: -39.06 | W42: 1657.03
D43: Invoice | E43: 2012-04-17 | F43: 43541 | G43: 1559 Hanes Mall Blvd. Winston Salem, NC 27103 | H43: 1559 Hanes Mall Blvd. | J43: Winston Salem | K43: NC | L43: 27103 | N43: 336-774-8600 | P43: ASAP365 Silver Gel 4 oz. | Q43: A & S Natural Health | R43: 24-USBCGel R:24-USBC WS 4 oz. | S43: 12 | U43: 14.84 | V43: =ROUND(IF(ISNUMBER(U43), S43*U43, S43),5) -> 178.08 | W43: 1835.11
D44: Invoice | E44: 2012-04-17 | F44: 43541 | G44: 1559 Hanes Mall Blvd. Winston Salem, NC 27103 | H44: 1559 Hanes Mall Blvd. | J44: Winston Salem | K44: NC | L44: 27103 | N44: 336-774-8600 | P44: Direct | Q44: A & S Natural Health | R44: DISCOUNT | U44: -0.15 | V44: -26.71 | W44: 1808.4
D45: Invoice | E45: 2012-04-17 | F45: 43541 | G45: 1559 Hanes Mall Blvd. Winston Salem, NC 27103 | H45: 1559 Hanes Mall Blvd. | J45: Winston Salem | K45: NC | L45: 27103 | N45: 336-774-8600 | P45: Silver Biotics/USBC Tri-Fold | Q45: A & S Natural Health | R45: B1005 | S45: 36 | U45: 0 | V45: =ROUND(IF(ISNUMBER(U45), S45*U45, S45),5) -> 0 | W45: 1808.4
D46: Invoice | E46: 2012-04-30 | F46: 43744 | G46: 1559 Hanes Mall Blvd. Winston Salem, NC 27103 | H46: 1559 Hanes Mall Blvd. | J46: Winston Salem | K46: NC | L46: 27103 | N46: 336-774-8600 | P46: ASAP365 Silver Gel 4 oz. | Q46: A & S Natural Health | R46: 24-USBCGel R:24-USBC WS 4 oz. | S46: 12 | U46: 14.84 | V46: =ROUND(IF(ISNUMBER(U46), S46*U46, S46),5) -> 178.08 | W46: 1986.48
D47: Invoice | E47: 2012-04-30 | F47: 43744 | G47: 1559 Hanes Mall Blvd. Winston Salem, NC 27103 | H47: 1559 Hanes Mall Blvd. | J47: Winston Salem | K47: NC | L47: 27103 | N47: 336-774-8600 | P47: Direct | Q47: A & S Natural Health | R47: DISCOUNT | U47: -0.15 | V47: -26.71 | W47: 1959.77
D48: Invoice | E48: 2012-04-30 | F48: 43744 | G48: 1559 Hanes Mall Blvd. Winston Salem, NC 27103 | H48: 1559 Hanes Mall Blvd. | J48: Winston Salem | K48: NC | L48: 27103 | N48: 336-774-8600 | P48: 8 oz.-w/Cap Silver Biotics 10 ppm | Q48: A & S Natural Health | R48: 10-08 SBR:10-08 SBWS | S48: 12 | U48: 15.5 | V48: =ROUND(IF(ISNUMBER(U48), S48*U48, S48),5) -> 186 | W48: 2145.77
D49: Invoice | E49: 2012-04-30 | F49: 43744 | G49: 1559 Hanes Mall Blvd. Winston Salem, NC 27103 | H49: 1559 Hanes Mall Blvd. | J49: Winston Salem | K49: NC | L49: 27103 | N49: 336-774-8600 | P49: Direct | Q49: A & S Natural Health | R49: DISCOUNT | U49: -0.15 | V49: -27.9 | W49: 2117.87
D50: Invoice | E50: 2012-04-30 | F50: 43744 | G50: 1559 Hanes Mall Blvd. Winston Salem, NC 27103 | H50: 1559 Hanes Mall Blvd. | J50: Winston Salem | K50: NC | L50: 27103 | N50: 336-774-8600 | P50: Silver Biotics/USBC Tri-Fold | Q50: A & S Natural Health | R50: B1005 | S50: 24 | U50: 0 | V50: =ROUND(IF(ISNUMBER(U50), S50*U50, S50),5) -> 0 | W50: 2117.87
D51: Invoice | E51: 2012-04-30 | F51: 43744 | G51: 1559 Hanes Mall Blvd. Winston Salem, NC 27103 | H51: 1559 Hanes Mall Blvd. | J51: Winston Salem | K51: NC | L51: 27103 | N51: 336-774-8600 | P51: ABL Difference Flyer | Q51: A & S Natural Health | R51: F007 | S51: 12 | T51: ea | U51: 0 | V51: =ROUND(IF(ISNUMBER(U51), S51*U51, S51),5) -> 0 | W51: 2117.87
D52: Invoice | E52: 2012-06-05 | F52: 44260 | G52: 1559 Hanes Mall Blvd. Winston Salem, NC 27103 | H52: 1559 Hanes Mall Blvd. | J52: Winston Salem | K52: NC | L52: 27103 | N52: 336-774-8600 | P52: ASAP365 Silver Gel 4 oz. | Q52: A & S Natural Health | R52: 24-USBCGel R:24-USBC WS 4 oz. | S52: 12 | U52: 14.84 | V52: =ROUND(IF(ISNUMBER(U52), S52*U52, S52),5) -> 178.08 | W52: 2295.95
D53: Invoice | E53: 2012-06-05 | F53: 44260 | G53: 1559 Hanes Mall Blvd. Winston Salem, NC 27103 | H53: 1559 Hanes Mall Blvd. | J53: Winston Salem | K53: NC | L53: 27103 | N53: 336-774-8600 | P53: Direct | Q53: A & S Natural Health | R53: DISCOUNT | U53: -0.15 | V53: -26.71 | W53: 2269.24
D54: Invoice | E54: 2012-06-05 | F54: 44260 | G54: 1559 Hanes Mall Blvd. Winston Salem, NC 27103 | H54: 1559 Hanes Mall Blvd. | J54: Winston Salem | K54: NC | L54: 27103 | N54: 336-774-8600 | P54: ASAP365 Silver Gel 1.5 oz. | Q54: A & S Natural Health | R54: 24-USBC R1.5 oz.:24-USBC WS 1.5 oz. | S54: 25 | U54: 6.2 | V54: =ROUND(IF(ISNUMBER(U54), S54*U54, S54),5) -> 155 | W54: 2424.24
D55: Invoice | E55: 2012-06-05 | F55: 44260 | G55: 1559 Hanes Mall Blvd. Winston Salem, NC 27103 | H55: 1559 Hanes Mall Blvd. | J55: Winston Salem | K55: NC | L55: 27103 | N55: 336-774-8600 | P55: BOGO | Q55: A & S Natural Health | R55: BOGO | U55: -0.35 | V55: -54.25 | W55: 2369.99
D56: Invoice | E56: 2012-06-05 | F56: 44260 | G56: 1559 Hanes Mall Blvd. Winston Salem, NC 27103 | H56: 1559 Hanes Mall Blvd. | J56: Winston Salem | K56: NC | L56: 27103 | N56: 336-774-8600 | P56: Silver Biotics/USBC Tri-Fold | Q56: A & S Natural Health | R56: B1005 | S56: 24 | U56: 0 | V56: =ROUND(IF(ISNUMBER(U56), S56*U56, S56),5) -> 0 | W56: 2369.99
D57: Invoice | E57: 2012-06-05 | F57: 44260 | G57: 1559 Hanes Mall Blvd. Winston Salem, NC 27103 | H57: 1559 Hanes Mall Blvd. | J57: Winston Salem | K57: NC | L57: 27103 | N57: 336-774-8600 | P57: ABL Difference Flyer | Q57: A & S Natural Health | R57: F007 | S57: 24 | T57: ea | U57: 0 | V57: =ROUND(IF(ISNUMBER(U57), S57*U57, S57),5) -> 0 | W57: 2369.99
D58: Invoice | E58: 2012-06-19 | F58: 44502 | G58: 1559 Hanes Mall Blvd. Winston Salem, NC 27103 | H58: 1559 Hanes Mall Blvd. | J58: Winston Salem | K58: NC | L58: 27103 | N58: 336-774-8600 | P58: 16 oz. W/Cap Silver Biotics 10 ppm | Q58: A & S Natural Health | R58: 10-16SB:10-16SB WS | S58: 12 | U58: 21.7 | V58: =ROUND(IF(ISNUMBER(U58), S58*U58, S58),5) -> 260.4 | W58: 2630.39
D59: Invoice | E59: 2012-06-19 | F59: 44502 | G59: 1559 Hanes Mall Blvd. Winston Salem, NC 27103 | H59: 1559 Hanes Mall Blvd. | J59: Winston Salem | K59: NC | L59: 27103 | N59: 336-774-8600 | P59: Direct | Q59: A & S Natural Health | R59: DISCOUNT | U59: -0.15 | V59: -39.06 | W59: 2591.33
D60: Invoice | E60: 2012-06-19 | F60: 44502 | G60: 1559 Hanes Mall Blvd. Winston Salem, NC 27103 | H60: 1559 Hanes Mall Blvd. | J60: Winston Salem | K60: NC | L60: 27103 | N60: 336-774-8600 | P60: 8 oz.-w/Cap Silver Biotics 10 ppm | Q60: A & S Natural Health | R60: 10-08 SBR:10-08 SBWS | S60: 12 | U60: 15.5 | V60: =ROUND(IF(ISNUMBER(U60), S60*U60, S60),5) -> 186 | W60: 2777.33
D61: Invoice | E61: 2012-06-19 | F61: 44502 | G61: 1559 Hanes Mall Blvd. Winston Salem, NC 27103 | H61: 1559 Hanes Mall Blvd. | J61: Winston Salem | K61: NC | L61: 27103 | N61: 336-774-8600 | P61: BOG | Q61: A & S Natural Health | R61: BOGO | U61: -0.35 | V61: -65.1 | W61: 2712.23
D62: Invoice | E62: 2012-06-19 | F62: 44502 | G62: 1559 Hanes Mall Blvd. Winston Salem, NC 27103 | H62: 1559 Hanes Mall Blvd. | J62: Winston Salem | K62: NC | L62: 27103 | N62: 336-774-8600 | P62: 4 oz. w/Spray Top Silver Biotics 10 ppm | Q62: A & S Natural Health | R62: 10-04SB:10-04SB WS | S62: 12 | U62: 9.28 | V62: =ROUND(IF(ISNUMBER(U62), S62*U62, S62),5) -> 111.36 | W62: 2823.59
D63: Invoice | E63: 2012-06-19 | F63: 44502 | G63: 1559 Hanes Mall Blvd. Winston Salem, NC 27103 | H63: 1559 Hanes Mall Blvd. | J63: Winston Salem | K63: NC | L63: 27103 | N63: 336-774-8600 | P63: Sale | Q63: A & S Natural Health | R63: Promo Discount | U63: -0.25 | V63: -27.84 | W63: 2795.75
D64: Invoice | E64: 2012-06-19 | F64: 44502 | G64: 1559 Hanes Mall Blvd. Winston Salem, NC 27103 | H64: 1559 Hanes Mall Blvd. | J64: Winston Salem | K64: NC | L64: 27103 | N64: 336-774-8600 | P64: Silver Biotics/USBC Tri-Fold | Q64: A & S Natural Health | R64: B1005 | S64: 36 | U64: 0 | V64: =ROUND(IF(ISNUMBER(U64), S64*U64, S64),5) -> 0 | W64: 2795.75
D65: Invoice | E65: 2012-06-19 | F65: 44502 | G65: 1559 Hanes Mall Blvd. Winston Salem, NC 27103 | H65: 1559 Hanes Mall Blvd. | J65: Winston Salem | K65: NC | L65: 27103 | N65: 336-774-8600 | P65: ABL Difference Flyer | Q65: A & S Natural Health | R65: F007 | S65: 36 | T65: ea | U65: 0 | V65: =ROUND(IF(ISNUMBER(U65), S65*U65, S65),5) -> 0 | W65: 2795.75
D66: Invoice | E66: 2012-07-03 | F66: 44727 | G66: 1559 Hanes Mall Blvd. Winston Salem, NC 27103 | H66: 1559 Hanes Mall Blvd. | J66: Winston Salem | K66: NC | L66: 27103 | N66: 336-774-8600 | P66: ASAP365 Silver Gel 4 oz. | Q66: A & S Natural Health | R66: 24-USBCGel R:24-USBC WS 4 oz. | S66: 12 | U66: 14.84 | V66: =ROUND(IF(ISNUMBER(U66), S66*U66, S66),5) -> 178.08 | W66: 2973.83
D67: Invoice | E67: 2012-07-03 | F67: 44727 | G67: 1559 Hanes Mall Blvd. Winston Salem, NC 27103 | H67: 1559 Hanes Mall Blvd. | J67: Winston Salem | K67: NC | L67: 27103 | N67: 336-774-8600 | P67: Direct | Q67: A & S Natural Health | R67: DISCOUNT | U67: -0.15 | V67: -26.71 | W67: 2947.12
D68: Invoice | E68: 2012-07-03 | F68: 44727 | G68: 1559 Hanes Mall Blvd. Winston Salem, NC 27103 | H68: 1559 Hanes Mall Blvd. | J68: Winston Salem | K68: NC | L68: 27103 | N68: 336-774-8600 | P68: ABL Difference Flyer | Q68: A & S Natural Health | R68: F007 | S68: 12 | T68: ea | U68: 0 | V68: =ROUND(IF(ISNUMBER(U68), S68*U68, S68),5) -> 0 | W68: 2947.12
D69: Invoice | E69: 2012-07-03 | F69: 44727 | G69: 1559 Hanes Mall Blvd. Winston Salem, NC 27103 | H69: 1559 Hanes Mall Blvd. | J69: Winston Salem | K69: NC | L69: 27103 | N69: 336-774-8600 | P69: Silver Biotics/USBC Tri-Fold | Q69: A & S Natural Health | R69: B1005 | S69: 12 | U69: 0 | V69: =ROUND(IF(ISNUMBER(U69), S69*U69, S69),5) -> 0 | W69: 2947.12
D70: Invoice | E70: 2012-07-19 | F70: 44905 | G70: 1559 Hanes Mall Blvd. Winston Salem, NC 27103 | H70: 1559 Hanes Mall Blvd. | J70: Winston Salem | K70: NC | L70: 27103 | N70: 336-774-8600 | P70: 4 oz. w/Spray Top Silver Biotics 10 ppm | Q70: A & S Natural Health | R70: 10-04SB:10-04SB WS | S70: 12 | U70: 9.28 | V70: =ROUND(IF(ISNUMBER(U70), S70*U70, S70),5) -> 111.36 | W70: 3058.48
D71: Invoice | E71: 2012-07-19 | F71: 44905 | G71: 1559 Hanes Mall Blvd. Winston Salem, NC 27103 | H71: 1559 Hanes Mall Blvd. | J71: Winston Salem | K71: NC | L71: 27103 | N71: 336-774-8600 | P71: Direct | Q71: A & S Natural Health | R71: DISCOUNT | U71: -0.15 | V71: -16.7 | W71: 3041.78
D72: Invoice | E72: 2012-07-19 | F72: 44905 | G72: 1559 Hanes Mall Blvd. Winston Salem, NC 27103 | H72: 1559 Hanes Mall Blvd. | J72: Winston Salem | K72: NC | L72: 27103 | N72: 336-774-8600 | P72: 16 oz. W/Cap Silver Biotics 10 ppm | Q72: A & S Natural Health | R72: 10-16SB:10-16SB WS | S72: 12 | U72: 21.7 | V72: =ROUND(IF(ISNUMBER(U72), S72*U72, S72),5) -> 260.4 | W72: 3302.18
D73: Invoice | E73: 2012-07-19 | F73: 44905 | G73: 1559 Hanes Mall Blvd. Winston Salem, NC 27103 | H73: 1559 Hanes Mall Blvd. | J73: Winston Salem | K73: NC | L73: 27103 | N73: 336-774-8600 | P73: Direct | Q73: A & S Natural Health | R73: DISCOUNT | U73: -0.15 | V73: -39.06 | W73: 3263.12
D74: Invoice | E74: 2012-07-19 | F74: 44905 | G74: 1559 Hanes Mall Blvd. Winston Salem, NC 27103 | H74: 1559 Hanes Mall Blvd. | J74: Winston Salem | K74: NC | L74: 27103 | N74: 336-774-8600 | P74: ASAP365 Silver Gel 1.5 oz. | Q74: A & S Natural Health | R74: 24-USBC R1.5 oz.:24-USBC WS 1.5 oz. | S74: 12 | U74: 6.2 | V74: =ROUND(IF(ISNUMBER(U74), S74*U74, S74),5) -> 74.4 | W74: 3337.52
D75: Invoice | E75: 2012-07-19 | F75: 44905 | G75: 1559 Hanes Mall Blvd. Winston Salem, NC 27103 | H75: 1559 Hanes Mall Blvd. | J75: Winston Salem | K75: NC | L75: 27103 | N75: 336-774-8600 | P75: Direct | Q75: A & S Natural Health | R75: DISCOUNT | U75: -0.15 | V75: -11.16 | W75: 3326.36
D76: Invoice | E76: 2012-07-19 | F76: 44905 | G76: 1559 Hanes Mall Blvd. Winston Salem, NC 27103 | H76: 1559 Hanes Mall Blvd. | J76: Winston Salem | K76: NC | L76: 27103 | N76: 336-774-8600 | P76: ASAP365 Silver Gel 4 oz. | Q76: A & S Natural Health | R76: 24-USBCGel R:24-USBC WS 4 oz. | S76: 12 | U76: 14.84 | V76: =ROUND(IF(ISNUMBER(U76), S76*U76, S76),5) -> 178.08 | W76: 3504.44
D77: Invoice | E77: 2012-07-19 | F77: 44905 | G77: 1559 Hanes Mall Blvd. Winston Salem, NC 27103 | H77: 1559 Hanes Mall Blvd. | J77: Winston Salem | K77: NC | L77: 27103 | N77: 336-774-8600 | P77: Direct | Q77: A & S Natural Health | R77: DISCOUNT | U77: -0.15 | V77: -26.71 | W77: 3477.73
D78: Invoice | E78: 2012-07-19 | F78: 44905 | G78: 1559 Hanes Mall Blvd. Winston Salem, NC 27103 | H78: 1559 Hanes Mall Blvd. | J78: Winston Salem | K78: NC | L78: 27103 | N78: 336-774-8600 | P78: Silver Biotics/USBC Tri-Fold | Q78: A & S Natural Health | R78: B1005 | S78: 48 | U78: 0 | V78: =ROUND(IF(ISNUMBER(U78), S78*U78, S78),5) -> 0 | W78: 3477.73
D79: Invoice | E79: 2012-07-19 | F79: 44905 | G79: 1559 Hanes Mall Blvd. Winston Salem, NC 27103 | H79: 1559 Hanes Mall Blvd. | J79: Winston Salem | K79: NC | L79: 27103 | N79: 336-774-8600 | P79: ABL Difference Flyer | Q79: A & S Natural Health | R79: F007 | S79: 48 | T79: ea | U79: 0 | V79: =ROUND(IF(ISNUMBER(U79), S79*U79, S79),5) -> 0 | W79: =ROUND(W78+V79,5) -> 3477.73
D80: Invoice | E80: 2012-08-07 | F80: 45181 | G80: 1559 Hanes Mall Blvd. Winston Salem, NC 27103 | H80: 1559 Hanes Mall Blvd. | J80: Winston Salem | K80: NC | L80: 27103 | N80: 336-774-8600 | P80: 16 oz. W/Cap Silver Biotics 10 ppm | Q80: A & S Natural Health | R80: 10-16SB:10-16SB WS | S80: 24 | U80: 21.7 | V80: =ROUND(IF(ISNUMBER(U80), S80*U80, S80),5) -> 520.8 | W80: 3998.53
D81: Invoice | E81: 2012-08-07 | F81: 45181 | G81: 1559 Hanes Mall Blvd. Winston Salem, NC 27103 | H81: 1559 Hanes Mall Blvd. | J81: Winston Salem | K81: NC | L81: 27103 | N81: 336-774-8600 | P81: Direct | Q81: A & S Natural Health | R81: DISCOUNT | U81: -0.15 | V81: -78.12 | W81: 3920.41
D82: Invoice | E82: 2012-08-07 | F82: 45181 | G82: 1559 Hanes Mall Blvd. Winston Salem, NC 27103 | H82: 1559 Hanes Mall Blvd. | J82: Winston Salem | K82: NC | L82: 27103 | N82: 336-774-8600 | P82: ASAP365 Silver Gel 1.5 oz. | Q82: A & S Natural Health | R82: 24-USBC R1.5 oz.:24-USBC WS 1.5 oz. | S82: 12 | U82: 6.2 | V82: =ROUND(IF(ISNUMBER(U82), S82*U82, S82),5) -> 74.4 | W82: 3994.81
D83: Invoice | E83: 2012-08-07 | F83: 45181 | G83: 1559 Hanes Mall Blvd. Winston Salem, NC 27103 | H83: 1559 Hanes Mall Blvd. | J83: Winston Salem | K83: NC | L83: 27103 | N83: 336-774-8600 | P83: Direct | Q83: A & S Natural Health | R83: DISCOUNT | U83: -0.15 | V83: -11.16 | W83: 3983.65
D84: Invoice | E84: 2012-08-07 | F84: 45181 | G84: 1559 Hanes Mall Blvd. Winston Salem, NC 27103 | H84: 1559 Hanes Mall Blvd. | J84: Winston Salem | K84: NC | L84: 27103 | N84: 336-774-8600 | P84: Silver Biotics/USBC Tri-Fold | Q84: A & S Natural Health | R84: B1005 | S84: 36 | U84: 0 | V84: =ROUND(IF(ISNUMBER(U84), S84*U84, S84),5) -> 0 | W84: 3983.65
D85: Invoice | E85: 2012-08-07 | F85: 45181 | G85: 1559 Hanes Mall Blvd. Winston Salem, NC 27103 | H85: 1559 Hanes Mall Blvd. | J85: Winston Salem | K85: NC | L85: 27103 | N85: 336-774-8600 | P85: ABL Difference Flyer | Q85: A & S Natural Health | R85: F007 | S85: 36 | T85: ea | U85: 0 | V85: =ROUND(IF(ISNUMBER(U85), S85*U85, S85),5) -> 0 | W85: 3983.65
D86: Invoice | E86: 2012-09-11 | F86: 45658 | G86: 1559 Hanes Mall Blvd. Winston Salem, NC 27103 | H86: 1559 Hanes Mall Blvd. | J86: Winston Salem | K86: NC | L86: 27103 | N86: 336-774-8600 | P86: 4 oz. w/Spray Top Silver Biotics 10 ppm | Q86: A & S Natural Health | R86: 10-04SB:10-04SB WS | S86: 12 | U86: 9.28 | V86: =ROUND(IF(ISNUMBER(U86), S86*U86, S86),5) -> 111.36 | W86: 4095.01
D87: Invoice | E87: 2012-09-11 | F87: 45658 | G87: 1559 Hanes Mall Blvd. Winston Salem, NC 27103 | H87: 1559 Hanes Mall Blvd. | J87: Winston Salem | K87: NC | L87: 27103 | N87: 336-774-8600 | P87: Direct | Q87: A & S Natural Health | R87: DISCOUNT | U87: -0.15 | V87: -16.7 | W87: 4078.31
D88: Invoice | E88: 2012-09-11 | F88: 45658 | G88: 1559 Hanes Mall Blvd. Winston Salem, NC 27103 | H88: 1559 Hanes Mall Blvd. | J88: Winston Salem | K88: NC | L88: 27103 | N88: 336-774-8600 | P88: 8 oz.-w/Cap Silver Biotics 10 ppm | Q88: A & S Natural Health | R88: 10-08 SBR:10-08 SBWS | S88: 12 | U88: 15.5 | V88: =ROUND(IF(ISNUMBER(U88), S88*U88, S88),5) -> 186 | W88: 4264.31
D89: Invoice | E89: 2012-09-11 | F89: 45658 | G89: 1559 Hanes Mall Blvd. Winston Salem, NC 27103 | H89: 1559 Hanes Mall Blvd. | J89: Winston Salem | K89: NC | L89: 27103 | N89: 336-774-8600 | P89: Direct | Q89: A & S Natural Health | R89: DISCOUNT | U89: -0.15 | V89: -27.9 | W89: 4236.41
D90: Invoice | E90: 2012-09-11 | F90: 45658 | G90: 1559 Hanes Mall Blvd. Winston Salem, NC 27103 | H90: 1559 Hanes Mall Blvd. | J90: Winston Salem | K90: NC | L90: 27103 | N90: 336-774-8600 | P90: 16 oz. W/Cap Silver Biotics 10 ppm | Q90: A & S Natural Health | R90: 10-16SB:10-16SB WS | S90: 12 | U90: 21.7 | V90: =ROUND(IF(ISNUMBER(U90), S90*U90, S90),5) -> 260.4 | W90: 4496.81
D91: Invoice | E91: 2012-09-11 | F91: 45658 | G91: 1559 Hanes Mall Blvd. Winston Salem, NC 27103 | H91: 1559 Hanes Mall Blvd. | J91: Winston Salem | K91: NC | L91: 27103 | N91: 336-774-8600 | P91: Direct | Q91: A & S Natural Health | R91: DISCOUNT | U91: -0.15 | V91: -39.06 | W91: 4457.75
D92: Invoice | E92: 2012-09-11 | F92: 45658 | G92: 1559 Hanes Mall Blvd. Winston Salem, NC 27103 | H92: 1559 Hanes Mall Blvd. | J92: Winston Salem | K92: NC | L92: 27103 | N92: 336-774-8600 | P92: ASAP365 Silver Gel 4 oz. | Q92: A & S Natural Health | R92: 24-USBCGel R:24-USBC WS 4 oz. | S92: 12 | U92: 14.84 | V92: =ROUND(IF(ISNUMBER(U92), S92*U92, S92),5) -> 178.08 | W92: 4635.83
D93: Invoice | E93: 2012-09-11 | F93: 45658 | G93: 1559 Hanes Mall Blvd. Winston Salem, NC 27103 | H93: 1559 Hanes Mall Blvd. | J93: Winston Salem | K93: NC | L93: 27103 | N93: 336-774-8600 | P93: Direct | Q93: A & S Natural Health | R93: DISCOUNT | U93: -0.15 | V93: -26.71 | W93: 4609.12
D94: Invoice | E94: 2012-09-11 | F94: 45658 | G94: 1559 Hanes Mall Blvd. Winston Salem, NC 27103 | H94: 1559 Hanes Mall Blvd. | J94: Winston Salem | K94: NC | L94: 27103 | N94: 336-774-8600 | P94: ASAP365 Silver Gel 1.5 oz. | Q94: A & S Natural Health | R94: 24-USBC R1.5 oz.:24-USBC WS 1.5 oz. | S94: 12 | U94: 6.2 | V94: =ROUND(IF(ISNUMBER(U94), S94*U94, S94),5) -> 74.4 | W94: 4683.52
D95: Invoice | E95: 2012-09-11 | F95: 45658 | G95: 1559 Hanes Mall Blvd. Winston Salem, NC 27103 | H95: 1559 Hanes Mall Blvd. | J95: Winston Salem | K95: NC | L95: 27103 | N95: 336-774-8600 | P95: Direct | Q95: A & S Natural Health | R95: DISCOUNT | U95: -0.15 | V95: -11.16 | W95: 4672.36
D96: Invoice | E96: 2012-09-11 | F96: 45658 | G96: 1559 Hanes Mall Blvd. Winston Salem, NC 27103 | H96: 1559 Hanes Mall Blvd. | J96: Winston Salem | K96: NC | L96: 27103 | N96: 336-774-8600 | P96: ABL Difference Flyer | Q96: A & S Natural Health | R96: F007 | S96: 60 | T96: ea | U96: 0 | V96: =ROUND(IF(ISNUMBER(U96), S96*U96, S96),5) -> 0 | W96: 4672.36
D97: Invoice | E97: 2012-09-11 | F97: 45658 | G97: 1559 Hanes Mall Blvd. Winston Salem, NC 27103 | H97: 1559 Hanes Mall Blvd. | J97: Winston Salem | K97: NC | L97: 27103 | N97: 336-774-8600 | P97: Silver Biotics/USBC Tri-Fold | Q97: A & S Natural Health | R97: B1005 | S97: 60 | U97: 0 | V97: =ROUND(IF(ISNUMBER(U97), S97*U97, S97),5) -> 0 | W97: 4672.36
D98: Invoice | E98: 2012-10-09 | F98: 46211 | G98: 1559 Hanes Mall Blvd. Winston Salem, NC 27103 | H98: 1559 Hanes Mall Blvd. | J98: Winston Salem | K98: NC | L98: 27103 | N98: 336-774-8600 | P98: 4 oz. w/Spray Top Silver Biotics 10 ppm | Q98: A & S Natural Health | R98: 10-04SB:10-04SB WS | S98: 12 | U98: 9.28 | V98: =ROUND(IF(ISNUMBER(U98), S98*U98, S98),5) -> 111.36 | W98: 4783.72
D99: Invoice | E99: 2012-10-09 | F99: 46211 | G99: 1559 Hanes Mall Blvd. Winston Salem, NC 27103 | H99: 1559 Hanes Mall Blvd. | J99: Winston Salem | K99: NC | L99: 27103 | N99: 336-774-8600 | P99: Sale | Q99: A & S Natural Health | R99: Promo Discount | U99: -0.25 | V99: -27.84 | W99: 4755.88
D100: Invoice | E100: 2012-10-09 | F100: 46211 | G100: 1559 Hanes Mall Blvd. Winston Salem, NC 27103 | H100: 1559 Hanes Mall Blvd. | J100: Winston Salem | K100: NC | L100: 27103 | N100: 336-774-8600 | P100: 8 oz.-w/Cap Silver Biotics 10 ppm | Q100: A & S Natural Health | R100: 10-08 SBR:10-08 SBWS | S100: 12 | U100: 15.5 | V100: =ROUND(IF(ISNUMBER(U100), S100*U100, S100),5) -> 186 | W100: 4941.88
D101: Invoice | E101: 2012-10-09 | F101: 46211 | G101: 1559 Hanes Mall Blvd. Winston Salem, NC 27103 | H101: 1559 Hanes Mall Blvd. | J101: Winston Salem | K101: NC | L101: 27103 | N101: 336-774-8600 | P101: Sale | Q101: A & S Natural Health | R101: Promo Discount | U101: -0.25 | V101: -46.5 | W101: 4895.38
D102: Invoice | E102: 2012-10-09 | F102: 46211 | G102: 1559 Hanes Mall Blvd. Winston Salem, NC 27103 | H102: 1559 Hanes Mall Blvd. | J102: Winston Salem | K102: NC | L102: 27103 | N102: 336-774-8600 | P102: 16 oz. W/Cap Silver Biotics 10 ppm | Q102: A & S Natural Health | R102: 10-16SB:10-16SB WS | S102: 24 | U102: 21.7 | V102: =ROUND(IF(ISNUMBER(U102), S102*U102, S102),5) -> 520.8 | W102: 5416.18
D103: Invoice | E103: 2012-10-09 | F103: 46211 | G103: 1559 Hanes Mall Blvd. Winston Salem, NC 27103 | H103: 1559 Hanes Mall Blvd. | J103: Winston Salem | K103: NC | L103: 27103 | N103: 336-774-8600 | P103: Sale | Q103: A & S Natural Health | R103: Promo Discount | U103: -0.25 | V103: -130.2 | W103: 5285.98
D104: Invoice | E104: 2012-10-09 | F104: 46211 | G104: 1559 Hanes Mall Blvd. Winston Salem, NC 27103 | H104: 1559 Hanes Mall Blvd. | J104: Winston Salem | K104: NC | L104: 27103 | N104: 336-774-8600 | P104: 32 oz. W/Cap Silver Biotics 10 ppm | Q104: A & S Natural Health | R104: 10-32 SB | S104: 8 | T104: ea | U104: 37.59 | V104: =ROUND(IF(ISNUMBER(U104), S104*U104, S104),5) -> 300.72 | W104: 5586.7
D105: Invoice | E105: 2012-10-09 | F105: 46211 | G105: 1559 Hanes Mall Blvd. Winston Salem, NC 27103 | H105: 1559 Hanes Mall Blvd. | J105: Winston Salem | K105: NC | L105: 27103 | N105: 336-774-8600 | P105: Sale | Q105: A & S Natural Health | R105: Promo Discount | U105: -0.25 | V105: -75.18 | W105: 5511.52
D106: Invoice | E106: 2012-10-09 | F106: 46211 | G106: 1559 Hanes Mall Blvd. Winston Salem, NC 27103 | H106: 1559 Hanes Mall Blvd. | J106: Winston Salem | K106: NC | L106: 27103 | N106: 336-774-8600 | P106: ASAP365 Silver Gel 1.5 oz. | Q106: A & S Natural Health | R106: 24-USBC R1.5 oz.:24-USBC WS 1.5 oz. | S106: 25 | U106: 6.2 | V106: =ROUND(IF(ISNUMBER(U106), S106*U106, S106),5) -> 155 | W106: 5666.52
D107: Invoice | E107: 2012-10-09 | F107: 46211 | G107: 1559 Hanes Mall Blvd. Winston Salem, NC 27103 | H107: 1559 Hanes Mall Blvd. | J107: Winston Salem | K107: NC | L107: 27103 | N107: 336-774-8600 | P107: Sale | Q107: A & S Natural Health | R107: Promo Discount | U107: -0.25 | V107: -38.75 | W107: 5627.77
D108: Invoice | E108: 2012-10-09 | F108: 46211 | G108: 1559 Hanes Mall Blvd. Winston Salem, NC 27103 | H108: 1559 Hanes Mall Blvd. | J108: Winston Salem | K108: NC | L108: 27103 | N108: 336-774-8600 | P108: ASAP365 Silver Gel 4 oz. | Q108: A & S Natural Health | R108: 24-USBCGel R:24-USBC WS 4 oz. | S108: 12 | U108: 14.84 | V108: =ROUND(IF(ISNUMBER(U108), S108*U108, S108),5) -> 178.08 | W108: 5805.85
D109: Invoice | E109: 2012-10-09 | F109: 46211 | G109: 1559 Hanes Mall Blvd. Winston Salem, NC 27103 | H109: 1559 Hanes Mall Blvd. | J109: Winston Salem | K109: NC | L109: 27103 | N109: 336-774-8600 | P109: Sale | Q109: A & S Natural Health | R109: Promo Discount | U109: -0.25 | V109: -44.52 | W109: 5761.33
D110: Invoice | E110: 2012-10-09 | F110: 46211 | G110: 1559 Hanes Mall Blvd. Winston Salem, NC 27103 | H110: 1559 Hanes Mall Blvd. | J110: Winston Salem | K110: NC | L110: 27103 | N110: 336-774-8600 | P110: Silver Biotics/USBC Tri-Fold | Q110: A & S Natural Health | R110: B1005 | S110: 96 | U110: 0 | V110: =ROUND(IF(ISNUMBER(U110), S110*U110, S110),5) -> 0 | W110: 5761.33
D111: Invoice | E111: 2012-10-09 | F111: 46211 | G111: 1559 Hanes Mall Blvd. Winston Salem, NC 27103 | H111: 1559 Hanes Mall Blvd. | J111: Winston Salem | K111: NC | L111: 27103 | N111: 336-774-8600 | P111: ABL Difference Flyer | Q111: A & S Natural Health | R111: F007 | S111: 96 | T111: ea | U111: 0 | V111: =ROUND(IF(ISNUMBER(U111), S111*U111, S111),5) -> 0 | W111: 5761.33
D112: Credit Memo | E112: 2012-10-15 | F112: 46350 | G112: 1559 Hanes Mall Blvd. Winston Salem, NC 27103 | H112: 1559 Hanes Mall Blvd. | J112: Winston Salem | K112: NC | L112: 27103 | N112: 336-774-8600 | P112: 4 oz. w/Spray Top Silver Biotics 10 ppm | Q112: A & S Natural Health | R112: 10-04SB:10-04SB WS | S112: -1 | U112: 9.28 | V112: =ROUND(IF(ISNUMBER(U112), S112*U112, S112),5) -> -9.28 | W112: 5752.05
D113: Credit Memo | E113: 2012-10-15 | F113: 46350 | G113: 1559 Hanes Mall Blvd. Winston Salem, NC 27103 | H113: 1559 Hanes Mall Blvd. | J113: Winston Salem | K113: NC | L113: 27103 | N113: 336-774-8600 | P113: Direct | Q113: A & S Natural Health | R113: DISCOUNT | U113: -0.15 | V113: 1.39 | W113: 5753.44
D114: Invoice | E114: 2012-11-15 | F114: 47201 | G114: 1559 Hanes Mall Blvd. Winston Salem, NC 27103 | H114: 1559 Hanes Mall Blvd. | J114: Winston Salem | K114: NC | L114: 27103 | N114: 336-774-8600 | P114: 4 oz. w/Spray Top Silver Biotics 10 ppm | Q114: A & S Natural Health | R114: 10-04SB:10-04SB WS | S114: 12 | U114: 9.28 | V114: =ROUND(IF(ISNUMBER(U114), S114*U114, S114),5) -> 111.36 | W114: 5864.8
D115: Invoice | E115: 2012-11-15 | F115: 47201 | G115: 1559 Hanes Mall Blvd. Winston Salem, NC 27103 | H115: 1559 Hanes Mall Blvd. | J115: Winston Salem | K115: NC | L115: 27103 | N115: 336-774-8600 | P115: Sale | Q115: A & S Natural Health | R115: Promo Discount | U115: -0.25 | V115: -27.84 | W115: 5836.96
D116: Invoice | E116: 2012-11-15 | F116: 47201 | G116: 1559 Hanes Mall Blvd. Winston Salem, NC 27103 | H116: 1559 Hanes Mall Blvd. | J116: Winston Salem | K116: NC | L116: 27103 | N116: 336-774-8600 | P116: ASAP365 Silver Gel 4 oz. | Q116: A & S Natural Health | R116: 24-USBCGel R:24-USBC WS 4 oz. | S116: 12 | U116: 14.84 | V116: =ROUND(IF(ISNUMBER(U116), S116*U116, S116),5) -> 178.08 | W116: 6015.04
D117: Invoice | E117: 2012-11-15 | F117: 47201 | G117: 1559 Hanes Mall Blvd. Winston Salem, NC 27103 | H117: 1559 Hanes Mall Blvd. | J117: Winston Salem | K117: NC | L117: 27103 | N117: 336-774-8600 | P117: Sale | Q117: A & S Natural Health | R117: Promo Discount | U117: -0.25 | V117: -44.52 | W117: 5970.52
D118: Invoice | E118: 2012-11-15 | F118: 47201 | G118: 1559 Hanes Mall Blvd. Winston Salem, NC 27103 | H118: 1559 Hanes Mall Blvd. | J118: Winston Salem | K118: NC | L118: 27103 | N118: 336-774-8600 | P118: Silver Biotics/USBC Tri-Fold | Q118: A & S Natural Health | R118: B1005 | S118: 24 | U118: 0 | V118: =ROUND(IF(ISNUMBER(U118), S118*U118, S118),5) -> 0 | W118: 5970.52
D119: Invoice | E119: 2012-11-15 | F119: 47201 | G119: 1559 Hanes Mall Blvd. Winston Salem, NC 27103 | H119: 1559 Hanes Mall Blvd. | J119: Winston Salem | K119: NC | L119: 27103 | N119: 336-774-8600 | P119: ABL Difference Flyer | Q119: A & S Natural Health | R119: F007 | S119: 24 | T119: ea | U119: 0 | V119: =ROUND(IF(ISNUMBER(U119), S119*U119, S119),5) -> 0 | W119: 5970.52
B120: Total A & S Natural Health | S120: =ROUND(SUM(S14:S119),5) -> 1389 | V120: =ROUND(SUM(V14:V119),5) -> 5970.52 | W120: =W119 -> 5970.52
B121: A Beautiful Face
D122: Invoice | E122: 2012-07-30 | F122: 45032 | G122: Linda Davis LE MP 792 South Main St Templeton, CA 93465 | H122: Linda Davis LE MP | I122: 792 South Main St | J122: Templeton | K122: CA | L122: 93465 | M122: Linda Davis LE MP | N122: 805-434-2961 | P122: ASAP365 Silver Gel 4 oz. | Q122: A Beautiful Face | R122: 24-USBCGel R:24-USBC WS 4 oz. | S122: 24 | U122: 14.84 | V122: =ROUND(IF(ISNUMBER(U122), S122*U122, S122),5) -> 356.16 | W122: =ROUND(W121+V122,5) -> 356.16
D123: Invoice | E123: 2012-07-30 | F123: 45032 | G123: Linda Davis LE MP 792 South Main St Templeton, CA 93465 | H123: Linda Davis LE MP | I123: 792 South Main St | J123: Templeton | K123: CA | L123: 93465 | M123: Linda Davis LE MP | N123: 805-434-2961 | P123: Direct | Q123: A Beautiful Face | R123: DISCOUNT | U123: -0.15 | V123: -53.42 | W123: 302.74
D124: Invoice | E124: 2012-07-30 | F124: 45032 | G124: Linda Davis LE MP 792 South Main St Templeton, CA 93465 | H124: Linda Davis LE MP | I124: 792 South Main St | J124: Templeton | K124: CA | L124: 93465 | M124: Linda Davis LE MP | N124: 805-434-2961 | P124: ABL Difference Flyer | Q124: A Beautiful Face | R124: F007 | S124: 12 | T124: ea | U124: 0 | V124: =ROUND(IF(ISNUMBER(U124), S124*U124, S124),5) -> 0 | W124: 302.74
D125: Invoice | E125: 2012-07-30 | F125: 45032 | G125: Linda Davis LE MP 792 South Main St Templeton, CA 93465 | H125: Linda Davis LE MP | I125: 792 South Main St | J125: Templeton | K125: CA | L125: 93465 | M125: Linda Davis LE MP | N125: 805-434-2961 | P125: Silver Biotics/USBC Tri-Fold | Q125: A Beautiful Face | R125: B1005 | S125: 12 | U125: 0 | V125: =ROUND(IF(ISNUMBER(U125), S125*U125, S125),5) -> 0 | W125: 302.74
D126: Invoice | E126: 2012-11-01 | F126: 46889 | G126: Linda Davis LE MP 792 South Main St Templeton, CA 93465 | H126: Linda Davis LE MP | I126: 792 South Main St | J126: Templeton | K126: CA | L126: 93465 | M126: Linda Davis LE MP | N126: 805-434-2961 | P126: ASAP365 Silver Gel 4 oz. | Q126: A Beautiful Face | R126: 24-USBCGel R:24-USBC WS 4 oz. | S126: 12 | U126: 14.84 | V126: =ROUND(IF(ISNUMBER(U126), S126*U126, S126),5) -> 178.08 | W126: 480.82
D127: Invoice | E127: 2012-11-01 | F127: 46889 | G127: Linda Davis LE MP 792 South Main St Templeton, CA 93465 | H127: Linda Davis LE MP | I127: 792 South Main St | J127: Templeton | K127: CA | L127: 93465 | M127: Linda Davis LE MP | N127: 805-434-2961 | P127: Sale | Q127: A Beautiful Face | R127: Promo Discount | U127: -0.25 | V127: -44.52 | W127: 436.3
D128: Invoice | E128: 2012-11-01 | F128: 46889 | G128: Linda Davis LE MP 792 South Main St Templeton, CA 93465 | H128: Linda Davis LE MP | I128: 792 South Main St | J128: Templeton | K128: CA | L128: 93465 | M128: Linda Davis LE MP | N128: 805-434-2961 | P128: Silver Biotics/USBC Tri-Fold | Q128: A Beautiful Face | R128: B1005 | S128: 12 | U128: 0 | V128: =ROUND(IF(ISNUMBER(U128), S128*U128, S128),5) -> 0 | W128: 436.3
D129: Invoice | E129: 2012-11-01 | F129: 46889 | G129: Linda Davis LE MP 792 South Main St Templeton, CA 93465 | H129: Linda Davis LE MP | I129: 792 South Main St | J129: Templeton | K129: CA | L129: 93465 | M129: Linda Davis LE MP | N129: 805-434-2961 | P129: ABL Difference Flyer | Q129: A Beautiful Face | R129: F007 | S129: 12 | T129: ea | U129: 0 | V129: =ROUND(IF(ISNUMBER(U129), S129*U129, S129),5) -> 0 | W129: 436.3
B130: Total A Beautiful Face | S130: =ROUND(SUM(S121:S129),5) -> 84 | V130: =ROUND(SUM(V121:V129),5) -> 436.3 | W130: =W129 -> 436.3
B131: A Better Way Massage, LLC
D132: Invoice | E132: 2012-01-10 | F132: 41626 | G132: PO Box 91 Custer, WA 98240 | H132: PO Box 91 | J132: Custer | K132: WA | L132: 98240 | M132: Shannon | N132: 360-389-0062 | O132: sfreemanlmp@msn.com | P132: 16 oz. W/Cap Silver Biotics 10 ppm | Q132: A Better Way Massage, LLC | R132: 10-16SB:10-16SB WS | S132: 60 | U132: 21.7 | V132: =ROUND(IF(ISNUMBER(U132), S132*U132, S132),5) -> 1302 | W132: =ROUND(W131+V132,5) -> 1302
D133: Invoice | E133: 2012-01-10 | F133: 41626 | G133: PO Box 91 Custer, WA 98240 | H133: PO Box 91 | J133: Custer | K133: WA | L133: 98240 | M133: Shannon | N133: 360-389-0062 | O133: sfreemanlmp@msn.com | P133: Introductory Sale | Q133: A Better Way Massage, LLC | R133: Intro Discount | U133: -0.3 | V133: -390.6 | W133: =ROUND(W132+V133,5) -> 911.4
D134: Invoice | E134: 2012-01-10 | F134: 41626 | G134: PO Box 91 Custer, WA 98240 | H134: PO Box 91 | J134: Custer | K134: WA | L134: 98240 | M134: Shannon | N134: 360-389-0062 | O134: sfreemanlmp@msn.com | P134: ASAP Ultimate Skin & Body Care 4 oz. WS | Q134: A Better Way Massage, LLC | R134: 24-USBCGel R:24-USBC WS 4 oz. | S134: 48 | U134: 14.84 | V134: =ROUND(IF(ISNUMBER(U134), S134*U134, S134),5) -> 712.32 | W134: =ROUND(W133+V134,5) -> 1623.72
D135: Invoice | E135: 2012-01-10 | F135: 41626 | G135: PO Box 91 Custer, WA 98240 | H135: PO Box 91 | J135: Custer | K135: WA | L135: 98240 | M135: Shannon | N135: 360-389-0062 | O135: sfreemanlmp@msn.com | P135: Introductory Sale | Q135: A Better Way Massage, LLC | R135: Intro Discount | U135: -0.3 | V135: -213.7 | W135: =ROUND(W134+V135,5) -> 1410.02
D136: Invoice | E136: 2012-01-10 | F136: 41626 | G136: PO Box 91 Custer, WA 98240 | H136: PO Box 91 | J136: Custer | K136: WA | L136: 98240 | M136: Shannon | N136: 360-389-0062 | O136: sfreemanlmp@msn.com | P136: Silver Biotics/USBC Tri-Fold | Q136: A Better Way Massage, LLC | R136: B1005 | S136: 60 | U136: 0 | V136: =ROUND(IF(ISNUMBER(U136), S136*U136, S136),5) -> 0 | W136: =ROUND(W135+V136,5) -> 1410.02
B137: Total A Better Way Massage, LLC | S137: =ROUND(SUM(S131:S136),5) -> 168 | V137: =ROUND(SUM(V131:V136),5) -> 1410.02 | W137: =W136 -> 1410.02
B138: A Better Way To Health
D139: Invoice | E139: 2012-02-01 | F139: 42048 | G139: Amy 76 Blake Road Epping, NH 03042 | H139: Amy | I139: 76 Blake Road | J139: Epping | K139: NH | L139: 03042 | M139: Amy | N139: 603-679-9595 | P139: 8 oz.-w/Cap Silver Biotics 10 ppm | Q139: A Better Way To Health | R139: 10-08 SBR:10-08 SBWS | S139: 12 | U139: 15.5 | V139: =ROUND(IF(ISNUMBER(U139), S139*U139, S139),5) -> 186 | W139: =ROUND(W138+V139,5) -> 186
D140: Invoice | E140: 2012-02-01 | F140: 42048 | G140: Amy 76 Blake Road Epping, NH 03042 | H140: Amy | I140: 76 Blake Road | J140: Epping | K140: NH | L140: 03042 | M140: Amy | N140: 603-679-9595 | P140: Introductory Sale | Q140: A Better Way To Health | R140: Intro Discount | U140: -0.3 | V140: -55.8 | W140: 130.2
D141: Invoice | E141: 2012-05-08 | F141: 43839 | G141: Amy 76 Blake Road Epping, NH 03042 | H141: Amy | I141: 76 Blake Road | J141: Epping | K141: NH | L141: 03042 | M141: Amy | N141: 603-679-9595 | P141: 16 oz. W/Cap Silver Biotics 10 ppm | Q141: A Better Way To Health | R141: 10-16SB:10-16SB WS | S141: 24 | U141: 21.7 | V141: =ROUND(IF(ISNUMBER(U141), S141*U141, S141),5) -> 520.8 | W141: 651
D142: Invoice | E142: 2012-05-08 | F142: 43839 | G142: Amy 76 Blake Road Epping, NH 03042 | H142: Amy | I142: 76 Blake Road | J142: Epping | K142: NH | L142: 03042 | M142: Amy | N142: 603-679-9595 | P142: Direct | Q142: A Better Way To Health | R142: DISCOUNT | U142: -0.15 | V142: -78.12 | W142: 572.88
D143: Invoice | E143: 2012-05-08 | F143: 43839 | G143: Amy 76 Blake Road Epping, NH 03042 | H143: Amy | I143: 76 Blake Road | J143: Epping | K143: NH | L143: 03042 | M143: Amy | N143: 603-679-9595 | P143: Survey Discount | Q143: A Better Way To Health | R143: Survey | U143: -0.1 | V143: -52.08 | W143: 520.8
D144: Invoice | E144: 2012-05-08 | F144: 43839 | G144: Amy 76 Blake Road Epping, NH 03042 | H144: Amy | I144: 76 Blake Road | J144: Epping | K144: NH | L144: 03042 | M144: Amy | N144: 603-679-9595 | P144: Silver Biotics/USBC Tri-Fold | Q144: A Better Way To Health | R144: B1005 | S144: 24 | U144: 0 | V144: =ROUND(IF(ISNUMBER(U144), S144*U144, S144),5) -> 0 | W144: 520.8
D145: Invoice | E145: 2012-10-03 | F145: 46062 | G145: Amy 76 Blake Road Epping, NH 03042 | H145: Amy | I145: 76 Blake Road | J145: Epping | K145: NH | L145: 03042 | M145: Amy | N145: 603-679-9595 | P145: ASAP365 Silver Gel 1.5 oz. | Q145: A Better Way To Health | R145: 24-USBC R1.5 oz.:24-USBC WS 1.5 oz. | S145: 25 | U145: 6.2 | V145: =ROUND(IF(ISNUMBER(U145), S145*U145, S145),5) -> 155 | W145: 675.8
D146: Invoice | E146: 2012-10-03 | F146: 46062 | G146: Amy 76 Blake Road Epping, NH 03042 | H146: Amy | I146: 76 Blake Road | J146: Epping | K146: NH | L146: 03042 | M146: Amy | N146: 603-679-9595 | P146: Sale | Q146: A Better Way To Health | R146: Promo Discount | U146: -0.25 | V146: -38.75 | W146: 637.05
D147: Invoice | E147: 2012-10-03 | F147: 46062 | G147: Amy 76 Blake Road Epping, NH 03042 | H147: Amy | I147: 76 Blake Road | J147: Epping | K147: NH | L147: 03042 | M147: Amy | N147: 603-679-9595 | P147: Silver Biotics/USBC Tri-Fold | Q147: A Better Way To Health | R147: B1005 | S147: 12 | U147: 0 | V147: =ROUND(IF(ISNUMBER(U147), S147*U147, S147),5) -> 0 | W147: 637.05
D148: Invoice | E148: 2012-10-03 | F148: 46062 | G148: Amy 76 Blake Road Epping, NH 03042 | H148: Amy | I148: 76 Blake Road | J148: Epping | K148: NH | L148: 03042 | M148: Amy | N148: 603-679-9595 | P148: ABL Difference Flyer | Q148: A Better Way To Health | R148: F007 | S148: 12 | T148: ea | U148: 0 | V148: =ROUND(IF(ISNUMBER(U148), S148*U148, S148),5) -> 0 | W148: 637.05
B149: Total A Better Way To Health | S149: =ROUND(SUM(S138:S148),5) -> 109 | V149: =ROUND(SUM(V138:V148),5) -> 637.05 | W149: =W148 -> 637.05
B150: A Clear View
D151: Invoice | E151: 2012-03-26 | F151: 43119 | G151: Patti Ballone 319 Thoroughbred Lane Macon, GA 31216 | H151: Patti Ballone | I151: 319 Thoroughbred Lane | J151: Macon | K151: GA | L151: 31216 | M151: Petti Ballone | O151: pattieballone@aol.com | P151: 16 oz. W/Cap Silver Biotics 10 ppm | Q151: A Clear View | R151: 10-16SB:10-16SB WS | S151: 12 | U151: 21.7 | V151: =ROUND(IF(ISNUMBER(U151), S151*U151, S151),5) -> 260.4 | W151: =ROUND(W150+V151,5) -> 260.4
D152: Invoice | E152: 2012-03-26 | F152: 43119 | G152: Patti Ballone 319 Thoroughbred Lane Macon, GA 31216 | H152: Patti Ballone | I152: 319 Thoroughbred Lane | J152: Macon | K152: GA | L152: 31216 | M152: Petti Ballone | O152: pattieballone@aol.com | P152: Sale | Q152: A Clear View | R152: Promo Discount | U152: -0.25 | V152: -65.1 | W152: 195.3
D153: Invoice | E153: 2012-03-26 | F153: 43119 | G153: Patti Ballone 319 Thoroughbred Lane Macon, GA 31216 | H153: Patti Ballone | I153: 319 Thoroughbred Lane | J153: Macon | K153: GA | L153: 31216 | M153: Petti Ballone | O153: pattieballone@aol.com | P153: Silver Biotics/USBC Tri-Fold | Q153: A Clear View | R153: B1005 | S153: 12 | U153: 0 | V153: =ROUND(IF(ISNUMBER(U153), S153*U153, S153),5) -> 0 | W153: 195.3
D154: Invoice | E154: 2012-03-28 | F154: 43202 | G154: Patti Ballone 319 Thoroughbred Lane Macon, GA 31216 | H154: Patti Ballone | I154: 319 Thoroughbred Lane | J154: Macon | K154: GA | L154: 31216 | M154: Petti Ballone | O154: pattieballone@aol.com | P154: 16 oz. W/Cap Silver Biotics 10 ppm | Q154: A Clear View | R154: 10-16SB:10-16SB WS | S154: 12 | U154: 21.7 | V154: =ROUND(IF(ISNUMBER(U154), S154*U154, S154),5) -> 260.4 | W154: 455.7
D155: Invoice | E155: 2012-03-28 | F155: 43202 | G155: Patti Ballone 319 Thoroughbred Lane Macon, GA 31216 | H155: Patti Ballone | I155: 319 Thoroughbred Lane | J155: Macon | K155: GA | L155: 31216 | M155: Petti Ballone | O155: pattieballone@aol.com | P155: Sale | Q155: A Clear View | R155: Promo Discount | U155: -0.25 | V155: -65.1 | W155: 390.6
D156: Invoice | E156: 2012-04-02 | F156: 43330 | G156: Patti Ballone 319 Thoroughbred Lane Macon, GA 31216 | H156: Patti Ballone | I156: 319 Thoroughbred Lane | J156: Macon | K156: GA | L156: 31216 | M156: Petti Ballone | O156: pattieballone@aol.com | P156: Silver Biotics/USBC Tri-Fold | Q156: A Clear View | R156: B1005 | S156: 24 | U156: 0 | V156: =ROUND(IF(ISNUMBER(U156), S156*U156, S156),5) -> 0 | W156: 390.6
D157: Invoice | E157: 2012-04-02 | F157: 43330 | G157: Patti Ballone 319 Thoroughbred Lane Macon, GA 31216 | H157: Patti Ballone | I157: 319 Thoroughbred Lane | J157: Macon | K157: GA | L157: 31216 | M157: Petti Ballone | O157: pattieballone@aol.com | P157: ABL Difference Flyer | Q157: A Clear View | R157: F007 | S157: 24 | T157: ea | U157: 0 | V157: =ROUND(IF(ISNUMBER(U157), S157*U157, S157),5) -> 0 | W157: 390.6
D158: Invoice | E158: 2012-05-10 | F158: 43896 | G158: Patti Ballone 319 Thoroughbred Lane Macon, GA 31216 | H158: Patti Ballone | I158: 319 Thoroughbred Lane | J158: Macon | K158: GA | L158: 31216 | M158: Petti Ballone | O158: pattieballone@aol.com | P158: MULTI-PACK #2 04-Silver Biotics 16 oz. 04-Silver Biotics 08 oz. 02-Silver Biotics 04 oz. ... | Q158: A Clear View | R158: 10-SB MP 2 | S158: 2 | U158: 251.52 | V158: =ROUND(IF(ISNUMBER(U158), S158*U158, S158),5) -> 503.04 | W158: 893.64
D159: Invoice | E159: 2012-05-10 | F159: 43896 | G159: Patti Ballone 319 Thoroughbred Lane Macon, GA 31216 | H159: Patti Ballone | I159: 319 Thoroughbred Lane | J159: Macon | K159: GA | L159: 31216 | M159: Petti Ballone | O159: pattieballone@aol.com | P159: Sale | Q159: A Clear View | R159: Promo Discount | U159: -0.25 | V159: -125.76 | W159: 767.88
D160: Invoice | E160: 2012-05-10 | F160: 43896 | G160: Patti Ballone 319 Thoroughbred Lane Macon, GA 31216 | H160: Patti Ballone | I160: 319 Thoroughbred Lane | J160: Macon | K160: GA | L160: 31216 | M160: Petti Ballone | O160: pattieballone@aol.com | P160: MP Discount | Q160: A Clear View | R160: MP Discount | U160: -0.05 | V160: -25.15 | W160: 742.73
D161: Invoice | E161: 2012-05-10 | F161: 43896 | G161: Patti Ballone 319 Thoroughbred Lane Macon, GA 31216 | H161: Patti Ballone | I161: 319 Thoroughbred Lane | J161: Macon | K161: GA | L161: 31216 | M161: Petti Ballone | O161: pattieballone@aol.com | P161: ABL Difference Flyer | Q161: A Clear View | R161: F007 | S161: 24 | T161: ea | U161: 0 | V161: =ROUND(IF(ISNUMBER(U161), S161*U161, S161),5) -> 0 | W161: 742.73
D162: Invoice | E162: 2012-07-17 | F162: 44865 | G162: Patti Ballone 319 Thoroughbred Lane Macon, GA 31216 | H162: Patti Ballone | I162: 319 Thoroughbred Lane | J162: Macon | K162: GA | L162: 31216 | M162: Petti Ballone | O162: pattieballone@aol.com | P162: MULTI-PACK #2 04-Silver Biotics 16 oz. 04-Silver Biotics 08 oz. 02-Silver Biotics 04 oz. ... | Q162: A Clear View | R162: 10-SB MP 2 | S162: 1 | U162: 251.52 | V162: =ROUND(IF(ISNUMBER(U162), S162*U162, S162),5) -> 251.52 | W162: 994.25
D163: Invoice | E163: 2012-07-17 | F163: 44865 | G163: Patti Ballone 319 Thoroughbred Lane Macon, GA 31216 | H163: Patti Ballone | I163: 319 Thoroughbred Lane | J163: Macon | K163: GA | L163: 31216 | M163: Petti Ballone | O163: pattieballone@aol.com | P163: Sale | Q163: A Clear View | R163: Promo Discount | U163: -0.25 | V163: -62.88 | W163: 931.37
D164: Invoice | E164: 2012-07-17 | F164: 44865 | G164: Patti Ballone 319 Thoroughbred Lane Macon, GA 31216 | H164: Patti Ballone | I164: 319 Thoroughbred Lane | J164: Macon | K164: GA | L164: 31216 | M164: Petti Ballone | O164: pattieballone@aol.com | P164: ABL Difference Flyer | Q164: A Clear View | R164: F007 | S164: 12 | T164: ea | U164: 0 | V164: =ROUND(IF(ISNUMBER(U164), S164*U164, S164),5) -> 0 | W164: 931.37
D165: Invoice | E165: 2012-10-03 | F165: 46064 | G165: Patti Ballone 319 Thoroughbred Lane Macon, GA 31216 | H165: Patti Ballone | I165: 319 Thoroughbred Lane | J165: Macon | K165: GA | L165: 31216 | M165: Petti Ballone | O165: pattieballone@aol.com | P165: 32 oz. W/Cap Silver Biotics 10 ppm | Q165: A Clear View | R165: 10-32 SB | S165: 8 | T165: ea | U165: 37.59 | V165: =ROUND(IF(ISNUMBER(U165), S165*U165, S165),5) -> 300.72 | W165: 1232.09
D166: Invoice | E166: 2012-10-03 | F166: 46064 | G166: Patti Ballone 319 Thoroughbred Lane Macon, GA 31216 | H166: Patti Ballone | I166: 319 Thoroughbred Lane | J166: Macon | K166: GA | L166: 31216 | M166: Petti Ballone | O166: pattieballone@aol.com | P166: Sale | Q166: A Clear View | R166: Promo Discount | U166: -0.25 | V166: -75.18 | W166: 1156.91
D167: Invoice | E167: 2012-10-03 | F167: 46064 | G167: Patti Ballone 319 Thoroughbred Lane Macon, GA 31216 | H167: Patti Ballone | I167: 319 Thoroughbred Lane | J167: Macon | K167: GA | L167: 31216 | M167: Petti Ballone | O167: pattieballone@aol.com | P167: Silver Biotics/USBC Tri-Fold | Q167: A Clear View | R167: B1005 | S167: 12 | U167: 0 | V167: =ROUND(IF(ISNUMBER(U167), S167*U167, S167),5) -> 0 | W167: 1156.91
D168: Invoice | E168: 2012-10-03 | F168: 46064 | G168: Patti Ballone 319 Thoroughbred Lane Macon, GA 31216 | H168: Patti Ballone | I168: 319 Thoroughbred Lane | J168: Macon | K168: GA | L168: 31216 | M168: Petti Ballone | O168: pattieballone@aol.com | P168: ABL Difference Flyer | Q168: A Clear View | R168: F007 | S168: 12 | T168: ea | U168: 0 | V168: =ROUND(IF(ISNUMBER(U168), S168*U168, S168),5) -> 0 | W168: 1156.91
D169: Invoice | E169: 2012-10-23 | F169: 46535 | G169: Patti Ballone 319 Thoroughbred Lane Macon, GA 31216 | H169: Patti Ballone | I169: 319 Thoroughbred Lane | J169: Macon | K169: GA | L169: 31216 | M169: Petti Ballone | O169: pattieballone@aol.com | P169: 32 oz. W/Cap Silver Biotics 10 ppm | Q169: A Clear View | R169: 10-32 SB | S169: 8 | T169: ea | U169: 37.59 | V169: =ROUND(IF(ISNUMBER(U169), S169*U169, S169),5) -> 300.72 | W169: 1457.63
D170: Invoice | E170: 2012-10-23 | F170: 46535 | G170: Patti Ballone 319 Thoroughbred Lane Macon, GA 31216 | H170: Patti Ballone | I170: 319 Thoroughbred Lane | J170: Macon | K170: GA | L170: 31216 | M170: Petti Ballone | O170: pattieballone@aol.com | P170: Sale | Q170: A Clear View | R170: Promo Discount | U170: -0.25 | V170: -75.18 | W170: 1382.45
D171: Invoice | E171: 2012-10-23 | F171: 46535 | G171: Patti Ballone 319 Thoroughbred Lane Macon, GA 31216 | H171: Patti Ballone | I171: 319 Thoroughbred Lane | J171: Macon | K171: GA | L171: 31216 | M171: Petti Ballone | O171: pattieballone@aol.com | P171: Silver Biotics/USBC Tri-Fold | Q171: A Clear View | R171: B1005 | S171: 12 | U171: 0 | V171: =ROUND(IF(ISNUMBER(U171), S171*U171, S171),5) -> 0 | W171: 1382.45
D172: Invoice | E172: 2012-10-23 | F172: 46535 | G172: Patti Ballone 319 Thoroughbred Lane Macon, GA 31216 | H172: Patti Ballone | I172: 319 Thoroughbred Lane | J172: Macon | K172: GA | L172: 31216 | M172: Petti Ballone | O172: pattieballone@aol.com | P172: ABL Difference Flyer | Q172: A Clear View | R172: F007 | S172: 12 | T172: ea | U172: 0 | V172: =ROUND(IF(ISNUMBER(U172), S172*U172, S172),5) -> 0 | W172: 1382.45
D173: Invoice | E173: 2012-11-01 | F173: 46887 | G173: Patti Ballone 319 Thoroughbred Lane Macon, GA 31216 | H173: Patti Ballone | I173: 319 Thoroughbred Lane | J173: Macon | K173: GA | L173: 31216 | M173: Petti Ballone | O173: pattieballone@aol.com | P173: ASAP365 Silver Gel 4 oz. | Q173: A Clear View | R173: 24-USBCGel R:24-USBC WS 4 oz. | S173: 12 | U173: 14.84 | V173: =ROUND(IF(ISNUMBER(U173), S173*U173, S173),5) -> 178.08 | W173: 1560.53
D174: Invoice | E174: 2012-11-01 | F174: 46887 | G174: Patti Ballone 319 Thoroughbred Lane Macon, GA 31216 | H174: Patti Ballone | I174: 319 Thoroughbred Lane | J174: Macon | K174: GA | L174: 31216 | M174: Petti Ballone | O174: pattieballone@aol.com | P174: Sale | Q174: A Clear View | R174: Promo Discount | U174: -0.25 | V174: -44.52 | W174: 1516.01
D175: Invoice | E175: 2012-11-01 | F175: 46887 | G175: Patti Ballone 319 Thoroughbred Lane Macon, GA 31216 | H175: Patti Ballone | I175: 319 Thoroughbred Lane | J175: Macon | K175: GA | L175: 31216 | M175: Petti Ballone | O175: pattieballone@aol.com | P175: Silver Biotics/USBC Tri-Fold | Q175: A Clear View | R175: B1005 | S175: 12 | U175: 0 | V175: =ROUND(IF(ISNUMBER(U175), S175*U175, S175),5) -> 0 | W175: 1516.01
D176: Invoice | E176: 2012-11-01 | F176: 46887 | G176: Patti Ballone 319 Thoroughbred Lane Macon, GA 31216 | H176: Patti Ballone | I176: 319 Thoroughbred Lane | J176: Macon | K176: GA | L176: 31216 | M176: Petti Ballone | O176: pattieballone@aol.com | P176: ABL Difference Flyer | Q176: A Clear View | R176: F007 | S176: 12 | T176: ea | U176: 0 | V176: =ROUND(IF(ISNUMBER(U176), S176*U176, S176),5) -> 0 | W176: 1516.01
D177: Invoice | E177: 2012-11-01 | F177: 46888 | G177: Patti Ballone 319 Thoroughbred Lane Macon, GA 31216 | H177: Patti Ballone | I177: 319 Thoroughbred Lane | J177: Macon | K177: GA | L177: 31216 | M177: Petti Ballone | O177: pattieballone@aol.com | P177: MULTI-PACK #2 04-Silver Biotics 16 oz. 04-Silver Biotics 08 oz. 02-Silver Biotics 04 oz. ... | Q177: A Clear View | R177: 10-SB MP 2 | S177: 1 | U177: 251.52 | V177: =ROUND(IF(ISNUMBER(U177), S177*U177, S177),5) -> 251.52 | W177: 1767.53
D178: Invoice | E178: 2012-11-01 | F178: 46888 | G178: Patti Ballone 319 Thoroughbred Lane Macon, GA 31216 | H178: Patti Ballone | I178: 319 Thoroughbred Lane | J178: Macon | K178: GA | L178: 31216 | M178: Petti Ballone | O178: pattieballone@aol.com | P178: Sale | Q178: A Clear View | R178: Promo Discount | U178: -0.25 | V178: -62.88 | W178: 1704.65
D179: Invoice | E179: 2012-11-01 | F179: 46888 | G179: Patti Ballone 319 Thoroughbred Lane Macon, GA 31216 | H179: Patti Ballone | I179: 319 Thoroughbred Lane | J179: Macon | K179: GA | L179: 31216 | M179: Petti Ballone | O179: pattieballone@aol.com | P179: MP Discount | Q179: A Clear View | R179: MP Discount | U179: -0.05 | V179: -12.58 | W179: 1692.07
D180: Invoice | E180: 2012-11-01 | F180: 46888 | G180: Patti Ballone 319 Thoroughbred Lane Macon, GA 31216 | H180: Patti Ballone | I180: 319 Thoroughbred Lane | J180: Macon | K180: GA | L180: 31216 | M180: Petti Ballone | O180: pattieballone@aol.com | P180: ABL Difference Flyer | Q180: A Clear View | R180: F007 | S180: 12 | T180: ea | U180: 0 | V180: =ROUND(IF(ISNUMBER(U180), S180*U180, S180),5) -> 0 | W180: 1692.07
B181: Total A Clear View | S181: =ROUND(SUM(S150:S180),5) -> 236 | V181: =ROUND(SUM(V150:V180),5) -> 1692.07 | W181: =W180 -> 1692.07
B182: A Dezign
D183: Invoice | E183: 2012-06-06 | F183: 44284 | G183: Allan Hale 5 West Hazel Drive Salem, UT 84653 | H183: Allan Hale | I183: 5 West Hazel Drive | J183: Salem | K183: UT | L183: 84653 | M183: Allan Hale | N183: 801-423-1234 | P183: 4 oz. w/Spray Top Silver Biotics 10 ppm | Q183: A Dezign | R183: 10-04SB:10-04SB WS | S183: 12 | U183: 9.28 | V183: =ROUND(IF(ISNUMBER(U183), S183*U183, S183),5) -> 111.36 | W183: =ROUND(W182+V183,5) -> 111.36
D184: Invoice | E184: 2012-06-06 | F184: 44284 | G184: Allan Hale 5 West Hazel Drive Salem, UT 84653 | H184: Allan Hale | I184: 5 West Hazel Drive | J184: Salem | K184: UT | L184: 84653 | M184: Allan Hale | N184: 801-423-1234 | P184: Direct | Q184: A Dezign | R184: DISCOUNT | U184: -0.15 | V184: -16.7 | W184: =ROUND(W183+V184,5) -> 94.66
D185: Invoice | E185: 2012-06-06 | F185: 44284 | G185: Allan Hale 5 West Hazel Drive Salem, UT 84653 | H185: Allan Hale | I185: 5 West Hazel Drive | J185: Salem | K185: UT | L185: 84653 | M185: Allan Hale | N185: 801-423-1234 | P185: Shipping | Q185: A Dezign | R185: Shipping | S185: 1 | U185: 8.75 | V185: =ROUND(IF(ISNUMBER(U185), S185*U185, S185),5) -> 8.75 | W185: =ROUND(W184+V185,5) -> 103.41
B186: Total A Dezign | S186: =ROUND(SUM(S182:S185),5) -> 13 | V186: =ROUND(SUM(V182:V185),5) -> 103.41 | W186: =W185 -> 103.41
B187: A Green Financial Group
D188: Invoice | E188: 2012-06-12 | F188: 44392 | G188: 10 N. Washington Street Ypsilanti, MI 48197 | H188: 10 N. Washington Street | J188: Ypsilanti | K188: MI | L188: 48197 | M188: Allen Green | N188: 734-485-7100 | O188: agreen@agreen.us | P188: 8 oz.-w/Cap ASAP10 Silver Solution | Q188: A Green Financial Group | R188: 10-08 R:10-08 FF | S188: 50 | U188: 9.2 | V188: =ROUND(IF(ISNUMBER(U188), S188*U188, S188),5) -> 460 | W188: =ROUND(W187+V188,5) -> 460
D189: Invoice | E189: 2012-08-15 | F189: 45313 | G189: 10 N. Washington Street Ypsilanti, MI 48197 | H189: 10 N. Washington Street | J189: Ypsilanti | K189: MI | L189: 48197 | M189: Allen Green | N189: 734-485-7100 | O189: agreen@agreen.us | P189: ASAP365 Silver Gel 4 oz. | Q189: A Green Financial Group | R189: 24-USBCGel R:24-USBC WS 4 oz. | S189: 24 | U189: 14.84 | V189: =ROUND(IF(ISNUMBER(U189), S189*U189, S189),5) -> 356.16 | W189: =ROUND(W188+V189,5) -> 816.16
D190: Invoice | E190: 2012-11-16 | F190: 47215 | G190: 10 N. Washington Street Ypsilanti, MI 48197 | H190: 10 N. Washington Street | J190: Ypsilanti | K190: MI | L190: 48197 | M190: Allen Green | N190: 734-485-7100 | O190: agreen@agreen.us | P190: 8 oz.-w/Cap ASAP10 Silver Solution | Q190: A Green Financial Group | R190: 10-08 R:10-08 FF | S190: 50 | U190: 9.2 | V190: =ROUND(IF(ISNUMBER(U190), S190*U190, S190),5) -> 460 | W190: =ROUND(W189+V190,5) -> 1276.16
B191: Total A Green Financial Group | S191: =ROUND(SUM(S187:S190),5) -> 124 | V191: =ROUND(SUM(V187:V190),5) -> 1276.16 | W191: =W190 -> 1276.16
B192: A Health Forest
D193: Invoice | E193: 2012-01-26 | F193: 41940 | G193: Tom Slade PO Box 1748 Durango, CO 81302 | H193: Tom Slade | I193: PO Box 1748 | J193: Durango | K193: CO | L193: 81302 | M193: Tom Slade | N193: 505-326-4190 | P193: MULTI-PACK #1 06-Silver Biotics 16 oz. 06-Silver Biotics 08 oz. 03-Silver Biotics 04 oz. ... | Q193: A Health Forest | R193: 10-SB MP | S193: 1 | U193: 188.28 | V193: =ROUND(IF(ISNUMBER(U193), S193*U193, S193),5) -> 188.28 | W193: =ROUND(W192+V193,5) -> 188.28
D194: Invoice | E194: 2012-02-09 | F194: 42210 | G194: Tom Slade PO Box 1748 Durango, CO 81302 | H194: Tom Slade | I194: PO Box 1748 | J194: Durango | K194: CO | L194: 81302 | M194: Tom Slade | N194: 505-326-4190 | P194: 8 oz.-w/Cap ASAP Solution Plus 22 ppm | Q194: A Health Forest | R194: 22-08C WS | S194: 12 | U194: 19.84 | V194: =ROUND(IF(ISNUMBER(U194), S194*U194, S194),5) -> 238.08 | W194: 426.36
D195: Invoice | E195: 2012-02-09 | F195: 42210 | G195: Tom Slade PO Box 1748 Durango, CO 81302 | H195: Tom Slade | I195: PO Box 1748 | J195: Durango | K195: CO | L195: 81302 | M195: Tom Slade | N195: 505-326-4190 | P195: Direct | Q195: A Health Forest | R195: DISCOUNT | U195: -0.15 | V195: -35.71 | W195: 390.65
D196: Invoice | E196: 2012-06-07 | F196: 44301 | G196: Tom Slade PO Box 1748 Durango, CO 81302 | H196: Tom Slade | I196: PO Box 1748 | J196: Durango | K196: CO | L196: 81302 | M196: Tom Slade | N196: 505-326-4190 | P196: MULTI-PACK #1 06-Silver Biotics 16 oz. 06-Silver Biotics 08 oz. 03-Silver Biotics 04 oz. ... | Q196: A Health Forest | R196: 10-SB MP | S196: 1 | U196: 251.04 | V196: =ROUND(IF(ISNUMBER(U196), S196*U196, S196),5) -> 251.04 | W196: 641.69
D197: Invoice | E197: 2012-06-07 | F197: 44301 | G197: Tom Slade PO Box 1748 Durango, CO 81302 | H197: Tom Slade | I197: PO Box 1748 | J197: Durango | K197: CO | L197: 81302 | M197: Tom Slade | N197: 505-326-4190 | P197: Sale | Q197: A Health Forest | R197: Promo Discount | U197: -0.25 | V197: -62.76 | W197: 578.93
D198: Invoice | E198: 2012-07-16 | F198: 44847 | G198: Tom Slade PO Box 1748 Durango, CO 81302 | H198: Tom Slade | I198: PO Box 1748 | J198: Durango | K198: CO | L198: 81302 | M198: Tom Slade | N198: 505-326-4190 | P198: MULTI-PACK #1 06-Silver Biotics 16 oz. 06-Silver Biotics 08 oz. 03-Silver Biotics 04 oz. ... | Q198: A Health Forest | R198: 10-SB MP | S198: 1 | U198: 251.04 | V198: =ROUND(IF(ISNUMBER(U198), S198*U198, S198),5) -> 251.04 | W198: 829.97
D199: Invoice | E199: 2012-07-16 | F199: 44847 | G199: Tom Slade PO Box 1748 Durango, CO 81302 | H199: Tom Slade | I199: PO Box 1748 | J199: Durango | K199: CO | L199: 81302 | M199: Tom Slade | N199: 505-326-4190 | P199: Sale | Q199: A Health Forest | R199: Promo Discount | U199: -0.25 | V199: -62.76 | W199: 767.21
B200: Total A Health Forest | S200: =ROUND(SUM(S192:S199),5) -> 15 | V200: =ROUND(SUM(V192:V199),5) -> 767.21 | W200: =W199 -> 767.21
... 4300 more rows

Sheet Needs to be done
B1: Instructions
B2: 1. The excel file used to update the list must be taken from QuickBooks by taking a list of all the transactions by customer in the last 9 to 12 months.
B3: 2. If the sheet "ALL" is empty. The excel document "Store Locator" must be saved in the same folder as this document.
B4: 3. The "Update Store Locator" button uses Internet Explorer and will send the map to your email.
B5: 4. The "Update Store List" button takes a couple of minutes to proccess.
B6: 5. If the "Update Store Locator" gives you an error. Try it a second time, it should work.
